Body,Body Name,Transaction No,Invoice Ref.,Vendor Name,Expense Code,Expense Type, Date,Amount
http://statistics.data.gov.uk/id/local-authority-district/23UB,Cheltenham Borough Council,457972,REDACTED,ACCESS ACCOMODATION,C-H22400-3244,Homelessness-Supporting People,23-Sep-11,500.00
http://statistics.data.gov.uk/id/local-authority-district/23UB,Cheltenham Borough Council,458273,0985373,ADASTRA,C-1T27F1-3568,BU5-Artist Fees,28-Sep-11,"1,000.00"
http://statistics.data.gov.uk/id/local-authority-district/23UB,Cheltenham Borough Council,458316,REDACTED,ADAMS ESTATE AGENTS,C-H22400-3828,Homelessness-Prevention Fund,29-Sep-11,550.00
http://statistics.data.gov.uk/id/local-authority-district/23UB,Cheltenham Borough Council,457561,1112-011,A P DELL,C-1T14C1-3151,Gordon Smith-Specialist Equipment,15-Sep-11,130.00
http://statistics.data.gov.uk/id/local-authority-district/23UB,Cheltenham Borough Council,457561,1112-011,A P DELL,C-1T17E1-3151,Alan Carr-Specialist Equipment,15-Sep-11,130.00
http://statistics.data.gov.uk/id/local-authority-district/23UB,Cheltenham Borough Council,457561,1112-011,A P DELL,C-1T18A1-3151,Greg Davies-Specialist Equipment,15-Sep-11,130.00
http://statistics.data.gov.uk/id/local-authority-district/23UB,Cheltenham Borough Council,457561,1112-011,A P DELL,C-1T18B1-3151,Tony Christie-Specialist Equipment,15-Sep-11,130.00
http://statistics.data.gov.uk/id/local-authority-district/23UB,Cheltenham Borough Council,457561,1112-011,A P DELL,C-1T22B1-3151,Loudon Wainwrig-Specialist Equipment,15-Sep-11,130.00
http://statistics.data.gov.uk/id/local-authority-district/23UB,Cheltenham Borough Council,457561,1112-011,A P DELL,C-1T24D1-3151,Dom Joly-Specialist Equipment,15-Sep-11,130.00
http://statistics.data.gov.uk/id/local-authority-district/23UB,Cheltenham Borough Council,457561,1112-011,A P DELL,C-1T29B1-3151,Ladysmith Black-Specialist Equipment,15-Sep-11,130.00
http://statistics.data.gov.uk/id/local-authority-district/23UB,Cheltenham Borough Council,458369,19512812-15,ADT FIRE & SECURITY PLC,C-L41100-1114,AG & M-Security systems,29-Sep-11,334.63
http://statistics.data.gov.uk/id/local-authority-district/23UB,Cheltenham Borough Council,458369,19512812-15,ADT FIRE & SECURITY PLC,C-L41100-1114,AG & M-Security systems,29-Sep-11,491.31
http://statistics.data.gov.uk/id/local-authority-district/23UB,Cheltenham Borough Council,458369,19512812-15,ADT FIRE & SECURITY PLC,C-L41100-1114,AG & M-Security systems,29-Sep-11,995.87
http://statistics.data.gov.uk/id/local-authority-district/23UB,Cheltenham Borough Council,458370,19512811-15,ADT FIRE & SECURITY PLC,C-L41100-1114,AG & M-Security systems,29-Sep-11,262.61
http://statistics.data.gov.uk/id/local-authority-district/23UB,Cheltenham Borough Council,456997,143207,A&E FIRE EQUIPMENT LTD,C-H46200-1104,Fire. Syst.Serv-Council House repairs,09-Sep-11,11.80
http://statistics.data.gov.uk/id/local-authority-district/23UB,Cheltenham Borough Council,456999,143184,A&E FIRE EQUIPMENT LTD,C-H46200-1104,Fire. Syst.Serv-Council House repairs,09-Sep-11,6.58
http://statistics.data.gov.uk/id/local-authority-district/23UB,Cheltenham Borough Council,457002,143206,A&E FIRE EQUIPMENT LTD,C-H46200-1104,Fire. Syst.Serv-Council House repairs,09-Sep-11,18.30
http://statistics.data.gov.uk/id/local-authority-district/23UB,Cheltenham Borough Council,457001,143182,A&E FIRE EQUIPMENT LTD,C-H46200-1104,Fire. Syst.Serv-Council House repairs,09-Sep-11,6.58
http://statistics.data.gov.uk/id/local-authority-district/23UB,Cheltenham Borough Council,457000,143183,A&E FIRE EQUIPMENT LTD,C-H46200-1104,Fire. Syst.Serv-Council House repairs,09-Sep-11,6.58
http://statistics.data.gov.uk/id/local-authority-district/23UB,Cheltenham Borough Council,456998,143185,A&E FIRE EQUIPMENT LTD,C-H46200-1104,Fire. Syst.Serv-Council House repairs,09-Sep-11,6.58
http://statistics.data.gov.uk/id/local-authority-district/23UB,Cheltenham Borough Council,457003,143205,A&E FIRE EQUIPMENT LTD,C-H46200-1104,Fire. Syst.Serv-Council House repairs,09-Sep-11,86.36
http://statistics.data.gov.uk/id/local-authority-district/23UB,Cheltenham Borough Council,457014,142925,A&E FIRE EQUIPMENT LTD,C-H46200-1104,Fire. Syst.Serv-Council House repairs,09-Sep-11,13.50
http://statistics.data.gov.uk/id/local-authority-district/23UB,Cheltenham Borough Council,457013,142841,A&E FIRE EQUIPMENT LTD,C-H46200-1104,Fire. Syst.Serv-Council House repairs,09-Sep-11,126.32
http://statistics.data.gov.uk/id/local-authority-district/23UB,Cheltenham Borough Council,457012,142923,A&E FIRE EQUIPMENT LTD,C-H46200-1104,Fire. Syst.Serv-Council House repairs,09-Sep-11,27.94
http://statistics.data.gov.uk/id/local-authority-district/23UB,Cheltenham Borough Council,457011,142924,A&E FIRE EQUIPMENT LTD,C-H46200-1104,Fire. Syst.Serv-Council House repairs,09-Sep-11,150.00
http://statistics.data.gov.uk/id/local-authority-district/23UB,Cheltenham Borough Council,457008,142701,A&E FIRE EQUIPMENT LTD,C-H46200-1104,Fire. Syst.Serv-Council House repairs,09-Sep-11,103.59
http://statistics.data.gov.uk/id/local-authority-district/23UB,Cheltenham Borough Council,457007,142839,A&E FIRE EQUIPMENT LTD,C-H46200-1104,Fire. Syst.Serv-Council House repairs,09-Sep-11,6.00
http://statistics.data.gov.uk/id/local-authority-district/23UB,Cheltenham Borough Council,457006,142723,A&E FIRE EQUIPMENT LTD,C-H46200-1104,Fire. Syst.Serv-Council House repairs,09-Sep-11,99.56
http://statistics.data.gov.uk/id/local-authority-district/23UB,Cheltenham Borough Council,457005,143209,A&E FIRE EQUIPMENT LTD,C-H46200-1104,Fire. Syst.Serv-Council House repairs,09-Sep-11,11.80
http://statistics.data.gov.uk/id/local-authority-district/23UB,Cheltenham Borough Council,457004,143208,A&E FIRE EQUIPMENT LTD,C-H46200-1104,Fire. Syst.Serv-Council House repairs,09-Sep-11,87.95
http://statistics.data.gov.uk/id/local-authority-district/23UB,Cheltenham Borough Council,457015,142840,A&E FIRE EQUIPMENT LTD,C-H46200-1104,Fire. Syst.Serv-Council House repairs,09-Sep-11,153.00
http://statistics.data.gov.uk/id/local-authority-district/23UB,Cheltenham Borough Council,457009,143374,A&E FIRE EQUIPMENT LTD,C-HC4869-C302,Sheltered Hsg-Building Contractor,09-Sep-11,48.42
http://statistics.data.gov.uk/id/local-authority-district/23UB,Cheltenham Borough Council,456732,143651,A&E FIRE EQUIPMENT LTD,C-HC4869-C302,Sheltered Hsg-Building Contractor,09-Sep-11,345.00
http://statistics.data.gov.uk/id/local-authority-district/23UB,Cheltenham Borough Council,457010,143571,A&E FIRE EQUIPMENT LTD,C-HC4869-C302,Sheltered Hsg-Building Contractor,09-Sep-11,181.40
http://statistics.data.gov.uk/id/local-authority-district/23UB,Cheltenham Borough Council,456731,143652,A&E FIRE EQUIPMENT LTD,C-HC4870-C302,Fire Protection-Building Contractor,09-Sep-11,145.00
http://statistics.data.gov.uk/id/local-authority-district/23UB,Cheltenham Borough Council,456733,143505,A&E FIRE EQUIPMENT LTD,C-HC4870-C302,Fire Protection-Building Contractor,09-Sep-11,905.36
http://statistics.data.gov.uk/id/local-authority-district/23UB,Cheltenham Borough Council,457217,143466,A&E FIRE EQUIPMENT LTD,C-H44600-1104,J D Court-Council House repairs,15-Sep-11,140.26
http://statistics.data.gov.uk/id/local-authority-district/23UB,Cheltenham Borough Council,457204,143258,A&E FIRE EQUIPMENT LTD,C-H46200-1104,Fire. Syst.Serv-Council House repairs,15-Sep-11,141.78
http://statistics.data.gov.uk/id/local-authority-district/23UB,Cheltenham Borough Council,457206,143386,A&E FIRE EQUIPMENT LTD,C-H46200-1104,Fire. Syst.Serv-Council House repairs,15-Sep-11,208.14
http://statistics.data.gov.uk/id/local-authority-district/23UB,Cheltenham Borough Council,457205,143472,A&E FIRE EQUIPMENT LTD,C-H46200-1104,Fire. Syst.Serv-Council House repairs,15-Sep-11,12.45
http://statistics.data.gov.uk/id/local-authority-district/23UB,Cheltenham Borough Council,457209,143255,A&E FIRE EQUIPMENT LTD,C-H46200-1104,Fire. Syst.Serv-Council House repairs,15-Sep-11,13.68
http://statistics.data.gov.uk/id/local-authority-district/23UB,Cheltenham Borough Council,457211,143368,A&E FIRE EQUIPMENT LTD,C-H46200-1104,Fire. Syst.Serv-Council House repairs,15-Sep-11,11.80
http://statistics.data.gov.uk/id/local-authority-district/23UB,Cheltenham Borough Council,457213,143458,A&E FIRE EQUIPMENT LTD,C-H46200-1104,Fire. Syst.Serv-Council House repairs,15-Sep-11,28.79
http://statistics.data.gov.uk/id/local-authority-district/23UB,Cheltenham Borough Council,457215,143467,A&E FIRE EQUIPMENT LTD,C-H46200-1104,Fire. Syst.Serv-Council House repairs,15-Sep-11,234.21
http://statistics.data.gov.uk/id/local-authority-district/23UB,Cheltenham Borough Council,457218,143257,A&E FIRE EQUIPMENT LTD,C-H46200-1104,Fire. Syst.Serv-Council House repairs,15-Sep-11,12.45
http://statistics.data.gov.uk/id/local-authority-district/23UB,Cheltenham Borough Council,457553,143470,A&E FIRE EQUIPMENT LTD,C-H46200-1104,Fire. Syst.Serv-Council House repairs,15-Sep-11,22.95
http://statistics.data.gov.uk/id/local-authority-district/23UB,Cheltenham Borough Council,457232,143387,A&E FIRE EQUIPMENT LTD,C-H46200-1104,Fire. Syst.Serv-Council House repairs,15-Sep-11,18.02
http://statistics.data.gov.uk/id/local-authority-district/23UB,Cheltenham Borough Council,457231,143690,A&E FIRE EQUIPMENT LTD,C-H46200-1104,Fire. Syst.Serv-Council House repairs,15-Sep-11,7.52
http://statistics.data.gov.uk/id/local-authority-district/23UB,Cheltenham Borough Council,457230,143370,A&E FIRE EQUIPMENT LTD,C-H46200-1104,Fire. Syst.Serv-Council House repairs,15-Sep-11,19.60
http://statistics.data.gov.uk/id/local-authority-district/23UB,Cheltenham Borough Council,457229,143371,A&E FIRE EQUIPMENT LTD,C-H46200-1104,Fire. Syst.Serv-Council House repairs,15-Sep-11,28.70
http://statistics.data.gov.uk/id/local-authority-district/23UB,Cheltenham Borough Council,457228,143373,A&E FIRE EQUIPMENT LTD,C-H46200-1104,Fire. Syst.Serv-Council House repairs,15-Sep-11,24.80
http://statistics.data.gov.uk/id/local-authority-district/23UB,Cheltenham Borough Council,457227,143372,A&E FIRE EQUIPMENT LTD,C-H46200-1104,Fire. Syst.Serv-Council House repairs,15-Sep-11,24.15
http://statistics.data.gov.uk/id/local-authority-district/23UB,Cheltenham Borough Council,457226,143375,A&E FIRE EQUIPMENT LTD,C-H46200-1104,Fire. Syst.Serv-Council House repairs,15-Sep-11,26.97
http://statistics.data.gov.uk/id/local-authority-district/23UB,Cheltenham Borough Council,457225,143304,A&E FIRE EQUIPMENT LTD,C-H46200-1104,Fire. Syst.Serv-Council House repairs,15-Sep-11,121.03
http://statistics.data.gov.uk/id/local-authority-district/23UB,Cheltenham Borough Council,457224,143364,A&E FIRE EQUIPMENT LTD,C-H46200-1104,Fire. Syst.Serv-Council House repairs,15-Sep-11,102.21
http://statistics.data.gov.uk/id/local-authority-district/23UB,Cheltenham Borough Council,457223,143471,A&E FIRE EQUIPMENT LTD,C-H46200-1104,Fire. Syst.Serv-Council House repairs,15-Sep-11,12.45
http://statistics.data.gov.uk/id/local-authority-district/23UB,Cheltenham Borough Council,457222,143365,A&E FIRE EQUIPMENT LTD,C-H46200-1104,Fire. Syst.Serv-Council House repairs,15-Sep-11,11.80
http://statistics.data.gov.uk/id/local-authority-district/23UB,Cheltenham Borough Council,457221,143366,A&E FIRE EQUIPMENT LTD,C-H46200-1104,Fire. Syst.Serv-Council House repairs,15-Sep-11,11.80
http://statistics.data.gov.uk/id/local-authority-district/23UB,Cheltenham Borough Council,457220,143367,A&E FIRE EQUIPMENT LTD,C-H46200-1104,Fire. Syst.Serv-Council House repairs,15-Sep-11,11.80
http://statistics.data.gov.uk/id/local-authority-district/23UB,Cheltenham Borough Council,457219,143369,A&E FIRE EQUIPMENT LTD,C-H46200-1104,Fire. Syst.Serv-Council House repairs,15-Sep-11,11.80
http://statistics.data.gov.uk/id/local-authority-district/23UB,Cheltenham Borough Council,457216,143256,A&E FIRE EQUIPMENT LTD,C-H46200-1104,Fire. Syst.Serv-Council House repairs,15-Sep-11,14.62
http://statistics.data.gov.uk/id/local-authority-district/23UB,Cheltenham Borough Council,457214,143363,A&E FIRE EQUIPMENT LTD,C-H46200-1104,Fire. Syst.Serv-Council House repairs,15-Sep-11,44.69
http://statistics.data.gov.uk/id/local-authority-district/23UB,Cheltenham Borough Council,457212,143600,A&E FIRE EQUIPMENT LTD,C-H46200-1104,Fire. Syst.Serv-Council House repairs,15-Sep-11,10.34
http://statistics.data.gov.uk/id/local-authority-district/23UB,Cheltenham Borough Council,457210,143469,A&E FIRE EQUIPMENT LTD,C-H46200-1104,Fire. Syst.Serv-Council House repairs,15-Sep-11,15.70
http://statistics.data.gov.uk/id/local-authority-district/23UB,Cheltenham Borough Council,457208,143254,A&E FIRE EQUIPMENT LTD,C-H46200-1104,Fire. Syst.Serv-Council House repairs,15-Sep-11,195.24
http://statistics.data.gov.uk/id/local-authority-district/23UB,Cheltenham Borough Council,457207,143468,A&E FIRE EQUIPMENT LTD,C-H46200-1104,Fire. Syst.Serv-Council House repairs,15-Sep-11,13.10
http://statistics.data.gov.uk/id/local-authority-district/23UB,Cheltenham Borough Council,458360,143705,A&E FIRE EQUIPMENT LTD,C-C22120-1808,Sports & Open S-RM-Routine works,29-Sep-11,6.58
http://statistics.data.gov.uk/id/local-authority-district/23UB,Cheltenham Borough Council,458223,143699,A&E FIRE EQUIPMENT LTD,C-C22120-1808,Sports & Open S-RM-Routine works,29-Sep-11,10.34
http://statistics.data.gov.uk/id/local-authority-district/23UB,Cheltenham Borough Council,458224,143700,A&E FIRE EQUIPMENT LTD,C-C22120-1808,Sports & Open S-RM-Routine works,29-Sep-11,10.34
http://statistics.data.gov.uk/id/local-authority-district/23UB,Cheltenham Borough Council,458222,143698,A&E FIRE EQUIPMENT LTD,C-C22120-1808,Sports & Open S-RM-Routine works,29-Sep-11,3.76
http://statistics.data.gov.uk/id/local-authority-district/23UB,Cheltenham Borough Council,458221,143697,A&E FIRE EQUIPMENT LTD,C-C22120-1808,Sports & Open S-RM-Routine works,29-Sep-11,2.82
http://statistics.data.gov.uk/id/local-authority-district/23UB,Cheltenham Borough Council,458225,143701,A&E FIRE EQUIPMENT LTD,C-C22120-1808,Sports & Open S-RM-Routine works,29-Sep-11,1.88
http://statistics.data.gov.uk/id/local-authority-district/23UB,Cheltenham Borough Council,458228,143706,A&E FIRE EQUIPMENT LTD,C-C22120-1808,Sports & Open S-RM-Routine works,29-Sep-11,9.40
http://statistics.data.gov.uk/id/local-authority-district/23UB,Cheltenham Borough Council,458230,143704,A&E FIRE EQUIPMENT LTD,C-C22120-1808,Sports & Open S-RM-Routine works,29-Sep-11,6.58
http://statistics.data.gov.uk/id/local-authority-district/23UB,Cheltenham Borough Council,458229,143707,A&E FIRE EQUIPMENT LTD,C-C22120-1808,Sports & Open S-RM-Routine works,29-Sep-11,2.82
http://statistics.data.gov.uk/id/local-authority-district/23UB,Cheltenham Borough Council,458226,143702,A&E FIRE EQUIPMENT LTD,C-C22120-1808,Sports & Open S-RM-Routine works,29-Sep-11,2.82
http://statistics.data.gov.uk/id/local-authority-district/23UB,Cheltenham Borough Council,458219,143695,A&E FIRE EQUIPMENT LTD,C-C23140-1808,Public Convnces-RM-Routine works,29-Sep-11,106.81
http://statistics.data.gov.uk/id/local-authority-district/23UB,Cheltenham Borough Council,458227,143703,A&E FIRE EQUIPMENT LTD,C-C23140-1808,Public Convnces-RM-Routine works,29-Sep-11,2.82
http://statistics.data.gov.uk/id/local-authority-district/23UB,Cheltenham Borough Council,458220,143696,A&E FIRE EQUIPMENT LTD,C-C23140-1808,Public Convnces-RM-Routine works,29-Sep-11,9.40
http://statistics.data.gov.uk/id/local-authority-district/23UB,Cheltenham Borough Council,458242,144040,A&E FIRE EQUIPMENT LTD,C-D13100-1115,Muni Off Blgs-Fire prevention,29-Sep-11,380.00
http://statistics.data.gov.uk/id/local-authority-district/23UB,Cheltenham Borough Council,458240,144039,A&E FIRE EQUIPMENT LTD,C-D13100-1808,Muni Off Blgs-RM-Routine works,29-Sep-11,153.22
http://statistics.data.gov.uk/id/local-authority-district/23UB,Cheltenham Borough Council,458234,143767,A&E FIRE EQUIPMENT LTD,C-D13550-1115,Area Off -E.Hse-Fire prevention,29-Sep-11,252.46
http://statistics.data.gov.uk/id/local-authority-district/23UB,Cheltenham Borough Council,458236,143807,A&E FIRE EQUIPMENT LTD,C-D14100-1808,Depot Building-RM-Routine works,29-Sep-11,167.87
http://statistics.data.gov.uk/id/local-authority-district/23UB,Cheltenham Borough Council,458233,143754,A&E FIRE EQUIPMENT LTD,C-D30200-1124,Misc Props & Ld-Berkeley Mews  Repairs,29-Sep-11,8.46
http://statistics.data.gov.uk/id/local-authority-district/23UB,Cheltenham Borough Council,458218,143689,A&E FIRE EQUIPMENT LTD,C-D33950-1808,Resource Centre-RM-Routine works,29-Sep-11,46.62
http://statistics.data.gov.uk/id/local-authority-district/23UB,Cheltenham Borough Council,458231,143743,A&E FIRE EQUIPMENT LTD,C-E21100-1808,Car Prks-Off St-RM-Routine works,29-Sep-11,194.53
http://statistics.data.gov.uk/id/local-authority-district/23UB,Cheltenham Borough Council,458232,143744,A&E FIRE EQUIPMENT LTD,C-E21100-1808,Car Prks-Off St-RM-Routine works,29-Sep-11,463.32
http://statistics.data.gov.uk/id/local-authority-district/23UB,Cheltenham Borough Council,458238,143982,A&E FIRE EQUIPMENT LTD,C-E21100-1808,Car Prks-Off St-RM-Routine works,29-Sep-11,45.12
http://statistics.data.gov.uk/id/local-authority-district/23UB,Cheltenham Borough Council,458241,144041,A&E FIRE EQUIPMENT LTD,C-L11500-1808,Rec Facilities-RM-Routine works,29-Sep-11,155.00
http://statistics.data.gov.uk/id/local-authority-district/23UB,Cheltenham Borough Council,458244,144085,A&E FIRE EQUIPMENT LTD,C-L11500-1808,Rec Facilities-RM-Routine works,29-Sep-11,27.26
http://statistics.data.gov.uk/id/local-authority-district/23UB,Cheltenham Borough Council,458246,144112,A&E FIRE EQUIPMENT LTD,C-L11500-1808,Rec Facilities-RM-Routine works,29-Sep-11,49.96
http://statistics.data.gov.uk/id/local-authority-district/23UB,Cheltenham Borough Council,458251,144140,A&E FIRE EQUIPMENT LTD,C-L11500-1808,Rec Facilities-RM-Routine works,29-Sep-11,149.88
http://statistics.data.gov.uk/id/local-authority-district/23UB,Cheltenham Borough Council,458245,144086,A&E FIRE EQUIPMENT LTD,C-L11500-1808,Rec Facilities-RM-Routine works,29-Sep-11,424.71
http://statistics.data.gov.uk/id/local-authority-district/23UB,Cheltenham Borough Council,458243,144084,A&E FIRE EQUIPMENT LTD,C-L11500-1808,Rec Facilities-RM-Routine works,29-Sep-11,27.26
http://statistics.data.gov.uk/id/local-authority-district/23UB,Cheltenham Borough Council,458237,143874,A&E FIRE EQUIPMENT LTD,C-L21100-1808,Town Hall-RM-Routine works,29-Sep-11,414.58
http://statistics.data.gov.uk/id/local-authority-district/23UB,Cheltenham Borough Council,458239,143994,A&E FIRE EQUIPMENT LTD,C-L21200-1808,Pump Room-RM-Routine works,29-Sep-11,163.36
http://statistics.data.gov.uk/id/local-authority-district/23UB,Cheltenham Borough Council,458235,143805,A&E FIRE EQUIPMENT LTD,C-L41100-1808,AG & M-RM-Routine works,29-Sep-11,129.12
http://statistics.data.gov.uk/id/local-authority-district/23UB,Cheltenham Borough Council,457237,37050, AES PUMP LIMITED,C-L11500-1811,Rec Facilities-RM-Plan.& Prev.Mech.Ctrct,15-Sep-11,"1,220.00"
http://statistics.data.gov.uk/id/local-authority-district/23UB,Cheltenham Borough Council,457108,51771,ALPHA COLOUR PRINTERS LTD,C-C22190-3544,Allotments-Competition Expenses,09-Sep-11,76.00
http://statistics.data.gov.uk/id/local-authority-district/23UB,Cheltenham Borough Council,456738,51721,ALPHA COLOUR PRINTERS LTD,C-D12430-3401,Housing & CT Be-Printing - general,09-Sep-11,114.00
http://statistics.data.gov.uk/id/local-authority-district/23UB,Cheltenham Borough Council,456739,51699,ALPHA COLOUR PRINTERS LTD,C-D12430-3401,Housing & CT Be-Printing - general,09-Sep-11,"1,025.00"
http://statistics.data.gov.uk/id/local-authority-district/23UB,Cheltenham Borough Council,456737,51698,ALPHA COLOUR PRINTERS LTD,C-D21100-3401,Dem Process-Printing - general,09-Sep-11,25.00
http://statistics.data.gov.uk/id/local-authority-district/23UB,Cheltenham Borough Council,457045,S1758,ALPHA COLOUR PRINTERS LTD,C-L41100-3540,AG & M-Educ-lectures/workshops,09-Sep-11,220.00
http://statistics.data.gov.uk/id/local-authority-district/23UB,Cheltenham Borough Council,457603,51757,ALPHA COLOUR PRINTERS LTD,C-1T27F1-3406,BU5-Printing-Promotion/Mkting,23-Sep-11,55.00
http://statistics.data.gov.uk/id/local-authority-district/23UB,Cheltenham Borough Council,457743,516797,ALPHA COLOUR PRINTERS LTD,C-L21100-3920,Town Hall-Advertising,23-Sep-11,"7,500.00"
http://statistics.data.gov.uk/id/local-authority-district/23UB,Cheltenham Borough Council,457743,516797,ALPHA COLOUR PRINTERS LTD,C-L21100-3920,Town Hall-Advertising,23-Sep-11,"1,280.00"
http://statistics.data.gov.uk/id/local-authority-district/23UB,Cheltenham Borough Council,456885,0749,ANDERSON CIVIL ENGINEERING UK LIMITED,C-D21250-3972,Civil Emergency-EU Restoration Fund,09-Sep-11,"5,947.64"
http://statistics.data.gov.uk/id/local-authority-district/23UB,Cheltenham Borough Council,456885,0749,ANDERSON CIVIL ENGINEERING UK LIMITED,C-N11250-9227,Excluded,09-Sep-11,-185.00
http://statistics.data.gov.uk/id/local-authority-district/23UB,Cheltenham Borough Council,457336,25459,ARKELL AND HURCOMBE BRONZE WORK LTD,C-E63100-3111,Cemetery & Crem-Goods purch for resale,15-Sep-11,380.00
http://statistics.data.gov.uk/id/local-authority-district/23UB,Cheltenham Borough Council,457337,25458,ARKELL AND HURCOMBE BRONZE WORK LTD,C-E63100-3111,Cemetery & Crem-Goods purch for resale,15-Sep-11,125.00
http://statistics.data.gov.uk/id/local-authority-district/23UB,Cheltenham Borough Council,457344,25461,ARKELL AND HURCOMBE BRONZE WORK LTD,C-E63100-3111,Cemetery & Crem-Goods purch for resale,15-Sep-11,50.00
http://statistics.data.gov.uk/id/local-authority-district/23UB,Cheltenham Borough Council,457341,25460,ARKELL AND HURCOMBE BRONZE WORK LTD,C-E63100-3111,Cemetery & Crem-Goods purch for resale,15-Sep-11,49.00
http://statistics.data.gov.uk/id/local-authority-district/23UB,Cheltenham Borough Council,457339,25462,ARKELL AND HURCOMBE BRONZE WORK LTD,C-E63100-3111,Cemetery & Crem-Goods purch for resale,15-Sep-11,45.00
http://statistics.data.gov.uk/id/local-authority-district/23UB,Cheltenham Borough Council,457339,25462,ARKELL AND HURCOMBE BRONZE WORK LTD,C-E63100-3111,Cemetery & Crem-Goods purch for resale,15-Sep-11,570.00
http://statistics.data.gov.uk/id/local-authority-district/23UB,Cheltenham Borough Council,457659,ACH027,ARLINGCLOSE LIMITED,C-H35100-3501,Hsg.Direct.Cost-Hire of outside services,23-Sep-11,"2,400.00"
http://statistics.data.gov.uk/id/local-authority-district/23UB,Cheltenham Borough Council,457759,10627,ARTFUL LIMITED,C-B51120-3920,Develt Con-Advertising,23-Sep-11,"2,514.72"
http://statistics.data.gov.uk/id/local-authority-district/23UB,Cheltenham Borough Council,457355,13133,ART WORKS DESIGN CONSULTANTS (CHELT) LTD,C-L31100-3510,TIC-Promotion & Marketing,15-Sep-11,"7,690.95"
http://statistics.data.gov.uk/id/local-authority-district/23UB,Cheltenham Borough Council,457357,13130,ART WORKS DESIGN CONSULTANTS (CHELT) LTD,C-L31100-3510,TIC-Promotion & Marketing,15-Sep-11,150.00
http://statistics.data.gov.uk/id/local-authority-district/23UB,Cheltenham Borough Council,457358,13128,ART WORKS DESIGN CONSULTANTS (CHELT) LTD,C-L31100-3510,TIC-Promotion & Marketing,15-Sep-11,120.00
http://statistics.data.gov.uk/id/local-authority-district/23UB,Cheltenham Borough Council,457354,13124,ART WORKS DESIGN CONSULTANTS (CHELT) LTD,C-L31100-3510,TIC-Promotion & Marketing,15-Sep-11,30.00
http://statistics.data.gov.uk/id/local-authority-district/23UB,Cheltenham Borough Council,457892,10914,ARTIFAX SOFTWARE LTD,C-L21100-3623,Town Hall-Cmpter-sftwre lic purch,23-Sep-11,"1,966.50"
http://statistics.data.gov.uk/id/local-authority-district/23UB,Cheltenham Borough Council,456554,1016832519,ARVAL UK LIMITED,C-N42250-3112,DSO Stores - Stock purchases,02-Sep-11,103.94
http://statistics.data.gov.uk/id/local-authority-district/23UB,Cheltenham Borough Council,456555,1016832517,ARVAL UK LIMITED,C-N42250-3112,DSO Stores - Stock purchases,02-Sep-11,"1,612.68"
http://statistics.data.gov.uk/id/local-authority-district/23UB,Cheltenham Borough Council,456553,1016832518,ARVAL UK LIMITED,C-N42250-3112,DSO Stores - Stock purchases,02-Sep-11,39.59
http://statistics.data.gov.uk/id/local-authority-district/23UB,Cheltenham Borough Council,457454,1016934087,ARVAL UK LIMITED,C-N42250-3112,DSO Stores - Stock purchases,15-Sep-11,818.28
http://statistics.data.gov.uk/id/local-authority-district/23UB,Cheltenham Borough Council,457455,1016934088,ARVAL UK LIMITED,C-N42250-3112,DSO Stores - Stock purchases,15-Sep-11,13.79
http://statistics.data.gov.uk/id/local-authority-district/23UB,Cheltenham Borough Council,458192,SIN060430,ASA AWARDS CENTRE,C-L11500-8360,Rec Facilities-Swim Coaching,29-Sep-11,14.11
http://statistics.data.gov.uk/id/local-authority-district/23UB,Cheltenham Borough Council,458192,SIN060430,ASA AWARDS CENTRE,C-L11500-8360,Rec Facilities-Swim Coaching,29-Sep-11,14.11
http://statistics.data.gov.uk/id/local-authority-district/23UB,Cheltenham Borough Council,458192,SIN060430,ASA AWARDS CENTRE,C-L11500-8360,Rec Facilities-Swim Coaching,29-Sep-11,18.81
http://statistics.data.gov.uk/id/local-authority-district/23UB,Cheltenham Borough Council,458192,SIN060430,ASA AWARDS CENTRE,C-L11500-8360,Rec Facilities-Swim Coaching,29-Sep-11,86.21
http://statistics.data.gov.uk/id/local-authority-district/23UB,Cheltenham Borough Council,458192,SIN060430,ASA AWARDS CENTRE,C-L11500-8360,Rec Facilities-Swim Coaching,29-Sep-11,84.65
http://statistics.data.gov.uk/id/local-authority-district/23UB,Cheltenham Borough Council,458192,SIN060430,ASA AWARDS CENTRE,C-L11500-8360,Rec Facilities-Swim Coaching,29-Sep-11,105.02
http://statistics.data.gov.uk/id/local-authority-district/23UB,Cheltenham Borough Council,458192,SIN060430,ASA AWARDS CENTRE,C-L11500-8360,Rec Facilities-Swim Coaching,29-Sep-11,76.81
http://statistics.data.gov.uk/id/local-authority-district/23UB,Cheltenham Borough Council,458192,SIN060430,ASA AWARDS CENTRE,C-L11500-8360,Rec Facilities-Swim Coaching,29-Sep-11,3.14
http://statistics.data.gov.uk/id/local-authority-district/23UB,Cheltenham Borough Council,458192,SIN060430,ASA AWARDS CENTRE,C-L11500-8360,Rec Facilities-Swim Coaching,29-Sep-11,1.57
http://statistics.data.gov.uk/id/local-authority-district/23UB,Cheltenham Borough Council,458192,SIN060430,ASA AWARDS CENTRE,C-L11500-8360,Rec Facilities-Swim Coaching,29-Sep-11,20.38
http://statistics.data.gov.uk/id/local-authority-district/23UB,Cheltenham Borough Council,458192,SIN060430,ASA AWARDS CENTRE,C-L11500-8360,Rec Facilities-Swim Coaching,29-Sep-11,7.84
http://statistics.data.gov.uk/id/local-authority-district/23UB,Cheltenham Borough Council,458192,SIN060430,ASA AWARDS CENTRE,C-L11500-8360,Rec Facilities-Swim Coaching,29-Sep-11,10.00
http://statistics.data.gov.uk/id/local-authority-district/23UB,Cheltenham Borough Council,458192,SIN060430,ASA AWARDS CENTRE,C-L11500-8360,Rec Facilities-Swim Coaching,29-Sep-11,3.14
http://statistics.data.gov.uk/id/local-authority-district/23UB,Cheltenham Borough Council,458192,SIN060430,ASA AWARDS CENTRE,C-L11500-8360,Rec Facilities-Swim Coaching,29-Sep-11,3.14
http://statistics.data.gov.uk/id/local-authority-district/23UB,Cheltenham Borough Council,458192,SIN060430,ASA AWARDS CENTRE,C-L11500-8360,Rec Facilities-Swim Coaching,29-Sep-11,9.41
http://statistics.data.gov.uk/id/local-authority-district/23UB,Cheltenham Borough Council,458192,SIN060430,ASA AWARDS CENTRE,C-L11500-8360,Rec Facilities-Swim Coaching,29-Sep-11,1.57
http://statistics.data.gov.uk/id/local-authority-district/23UB,Cheltenham Borough Council,458192,SIN060430,ASA AWARDS CENTRE,C-L11500-8360,Rec Facilities-Swim Coaching,29-Sep-11,23.51
http://statistics.data.gov.uk/id/local-authority-district/23UB,Cheltenham Borough Council,458192,SIN060430,ASA AWARDS CENTRE,C-L11500-8360,Rec Facilities-Swim Coaching,29-Sep-11,37.62
http://statistics.data.gov.uk/id/local-authority-district/23UB,Cheltenham Borough Council,457379,0076733,ATS EUROMASTER LTD,C-C24100-3501,Fleet Maint-Hire of outside services,15-Sep-11,"4,285.65"
http://statistics.data.gov.uk/id/local-authority-district/23UB,Cheltenham Borough Council,457718,1913,BALCARRAS SCHOOL,C-L16100-3501,Holiday Rec-Hire of outside services,23-Sep-11,"2,375.00"
http://statistics.data.gov.uk/id/local-authority-district/23UB,Cheltenham Borough Council,456713,94404923,BALL COLEGRAVE SEEDS LTD,C-C22140-3127,Nursery-Materials-Bedding,09-Sep-11,13.59
http://statistics.data.gov.uk/id/local-authority-district/23UB,Cheltenham Borough Council,456711,94404919,BALL COLEGRAVE SEEDS LTD,C-C22140-3127,Nursery-Materials-Bedding,09-Sep-11,216.78
http://statistics.data.gov.uk/id/local-authority-district/23UB,Cheltenham Borough Council,456712,94404920,BALL COLEGRAVE SEEDS LTD,C-C22140-3127,Nursery-Materials-Bedding,09-Sep-11,319.67
http://statistics.data.gov.uk/id/local-authority-district/23UB,Cheltenham Borough Council,456714,94402253,BALL COLEGRAVE SEEDS LTD,C-C22140-3127,Nursery-Materials-Bedding,09-Sep-11,28.46
http://statistics.data.gov.uk/id/local-authority-district/23UB,Cheltenham Borough Council,456716,94404922,BALL COLEGRAVE SEEDS LTD,C-C22140-3127,Nursery-Materials-Bedding,09-Sep-11,103.33
http://statistics.data.gov.uk/id/local-authority-district/23UB,Cheltenham Borough Council,456715,94404921,BALL COLEGRAVE SEEDS LTD,C-C22140-3127,Nursery-Materials-Bedding,09-Sep-11,187.16
http://statistics.data.gov.uk/id/local-authority-district/23UB,Cheltenham Borough Council,457475,94409629,BALL COLEGRAVE SEEDS LTD,C-C22140-3127,Nursery-Materials-Bedding,15-Sep-11,48.32
http://statistics.data.gov.uk/id/local-authority-district/23UB,Cheltenham Borough Council,457473,94412469,BALL COLEGRAVE SEEDS LTD,C-C22140-3127,Nursery-Materials-Bedding,15-Sep-11,62.97
http://statistics.data.gov.uk/id/local-authority-district/23UB,Cheltenham Borough Council,457472,94409627,BALL COLEGRAVE SEEDS LTD,C-C22140-3127,Nursery-Materials-Bedding,15-Sep-11,38.40
http://statistics.data.gov.uk/id/local-authority-district/23UB,Cheltenham Borough Council,457471,94409626,BALL COLEGRAVE SEEDS LTD,C-C22140-3127,Nursery-Materials-Bedding,15-Sep-11,209.66
http://statistics.data.gov.uk/id/local-authority-district/23UB,Cheltenham Borough Council,457469,94409628,BALL COLEGRAVE SEEDS LTD,C-C22140-3127,Nursery-Materials-Bedding,15-Sep-11,37.67
http://statistics.data.gov.uk/id/local-authority-district/23UB,Cheltenham Borough Council,457468,94412468,BALL COLEGRAVE SEEDS LTD,C-C22140-3127,Nursery-Materials-Bedding,15-Sep-11,207.20
http://statistics.data.gov.uk/id/local-authority-district/23UB,Cheltenham Borough Council,457466,94411277,BALL COLEGRAVE SEEDS LTD,C-C22140-3127,Nursery-Materials-Bedding,15-Sep-11,155.71
http://statistics.data.gov.uk/id/local-authority-district/23UB,Cheltenham Borough Council,457556,20282,BAM AGENCY LIMITED,C-1T01G1-3510,Fascinatg Aida-Promotion & Marketing,15-Sep-11,55.00
http://statistics.data.gov.uk/id/local-authority-district/23UB,Cheltenham Borough Council,457556,20282,BAM AGENCY LIMITED,C-1T02G1-3510,Jimmy Carr-Promotion & Marketing,15-Sep-11,55.00
http://statistics.data.gov.uk/id/local-authority-district/23UB,Cheltenham Borough Council,457556,20282,BAM AGENCY LIMITED,C-1T02H1-3510,Milton Jones-Promotion & Marketing,15-Sep-11,55.00
http://statistics.data.gov.uk/id/local-authority-district/23UB,Cheltenham Borough Council,457556,20282,BAM AGENCY LIMITED,C-1T18G1-3510,Tony Hawks-Promotion & Marketing,15-Sep-11,55.00
http://statistics.data.gov.uk/id/local-authority-district/23UB,Cheltenham Borough Council,457556,20282,BAM AGENCY LIMITED,C-1T20G1-3510,60s Gold-Promotion & Marketing,15-Sep-11,55.00
http://statistics.data.gov.uk/id/local-authority-district/23UB,Cheltenham Borough Council,457556,20282,BAM AGENCY LIMITED,C-1T20H1-3510,Dave Gorman-Promotion & Marketing,15-Sep-11,55.00
http://statistics.data.gov.uk/id/local-authority-district/23UB,Cheltenham Borough Council,457556,20282,BAM AGENCY LIMITED,C-1T21G1-3510,Puptry of Penis-Promotion & Marketing,15-Sep-11,55.00
http://statistics.data.gov.uk/id/local-authority-district/23UB,Cheltenham Borough Council,457556,20282,BAM AGENCY LIMITED,C-1T23G1-3510,Hgh Schl Rocks-Promotion & Marketing,15-Sep-11,55.00
http://statistics.data.gov.uk/id/local-authority-district/23UB,Cheltenham Borough Council,457556,20282,BAM AGENCY LIMITED,C-1T24G1-3510,Joe Wilkinson-Promotion & Marketing,15-Sep-11,55.00
http://statistics.data.gov.uk/id/local-authority-district/23UB,Cheltenham Borough Council,457556,20282,BAM AGENCY LIMITED,C-1T28G1-3510,Dave Spikey-Promotion & Marketing,15-Sep-11,55.00
http://statistics.data.gov.uk/id/local-authority-district/23UB,Cheltenham Borough Council,456680,2011/003,BATH ROAD TRADERS ASSOCIATION,C-C23140-3501,Public Convnces-Hire of outside services,09-Sep-11,572.00
http://statistics.data.gov.uk/id/local-authority-district/23UB,Cheltenham Borough Council,457452,688,JASON R C BAYLISS,C-C22110-3501,Parks & Gardens-Hire of outside services,15-Sep-11,559.00
http://statistics.data.gov.uk/id/local-authority-district/23UB,Cheltenham Borough Council,457439,696,JASON R C BAYLISS,C-C22120-3104,Spts/Open Space-Sports & play equipment,15-Sep-11,550.00
http://statistics.data.gov.uk/id/local-authority-district/23UB,Cheltenham Borough Council,457441,697,JASON R C BAYLISS,C-C22120-3104,Spts/Open Space-Sports & play equipment,15-Sep-11,275.00
http://statistics.data.gov.uk/id/local-authority-district/23UB,Cheltenham Borough Council,457451,695,JASON R C BAYLISS,C-C22120-3501,Spts/Open Space-Hire of outside services,15-Sep-11,40.00
http://statistics.data.gov.uk/id/local-authority-district/23UB,Cheltenham Borough Council,457452,688,JASON R C BAYLISS,C-N11250-9227,Excluded,15-Sep-11,-62.20
http://statistics.data.gov.uk/id/local-authority-district/23UB,Cheltenham Borough Council,457451,695,JASON R C BAYLISS,C-N11250-9227,Excluded,15-Sep-11,-6.00
http://statistics.data.gov.uk/id/local-authority-district/23UB,Cheltenham Borough Council,457441,697,JASON R C BAYLISS,C-N11250-9227,Excluded,15-Sep-11,-36.00
http://statistics.data.gov.uk/id/local-authority-district/23UB,Cheltenham Borough Council,457439,696,JASON R C BAYLISS,C-N11250-9227,Excluded,15-Sep-11,-72.60
http://statistics.data.gov.uk/id/local-authority-district/23UB,Cheltenham Borough Council,457041,78330,BERMAN GUEDES STRETTON,C-LC4006-C713,AG&M Dev Scheme-Other Professional Fees,09-Sep-11,"2,720.00"
http://statistics.data.gov.uk/id/local-authority-district/23UB,Cheltenham Borough Council,456622,220528,BHGS LTD,C-C22140-3127,Nursery-Materials-Bedding,02-Sep-11,424.80
http://statistics.data.gov.uk/id/local-authority-district/23UB,Cheltenham Borough Council,456622,220528,BHGS LTD,C-C22140-3127,Nursery-Materials-Bedding,02-Sep-11,197.50
http://statistics.data.gov.uk/id/local-authority-district/23UB,Cheltenham Borough Council,456622,220528,BHGS LTD,C-C22140-3127,Nursery-Materials-Bedding,02-Sep-11,28.75
http://statistics.data.gov.uk/id/local-authority-district/23UB,Cheltenham Borough Council,456622,220528,BHGS LTD,C-C22140-3127,Nursery-Materials-Bedding,02-Sep-11,197.50
http://statistics.data.gov.uk/id/local-authority-district/23UB,Cheltenham Borough Council,456621,220801,BHGS LTD,C-C22140-3127,Nursery-Materials-Bedding,02-Sep-11,395.00
http://statistics.data.gov.uk/id/local-authority-district/23UB,Cheltenham Borough Council,456394,60805,THE BIG SLEEP HOTEL,C-1T05E1-3206,Sumr Ball Fest-Miscellaneous Expenses,02-Sep-11,108.34
http://statistics.data.gov.uk/id/local-authority-district/23UB,Cheltenham Borough Council,456395,60808,THE BIG SLEEP HOTEL,C-1T05E1-3206,Sumr Ball Fest-Miscellaneous Expenses,02-Sep-11,108.34
http://statistics.data.gov.uk/id/local-authority-district/23UB,Cheltenham Borough Council,456397,60812,THE BIG SLEEP HOTEL,C-1T05E1-3206,Sumr Ball Fest-Miscellaneous Expenses,02-Sep-11,108.34
http://statistics.data.gov.uk/id/local-authority-district/23UB,Cheltenham Borough Council,456396,60810,THE BIG SLEEP HOTEL,C-1T05E1-3206,Sumr Ball Fest-Miscellaneous Expenses,02-Sep-11,108.34
http://statistics.data.gov.uk/id/local-authority-district/23UB,Cheltenham Borough Council,456398,60814,THE BIG SLEEP HOTEL,C-1T05E1-3206,Sumr Ball Fest-Miscellaneous Expenses,02-Sep-11,108.34
http://statistics.data.gov.uk/id/local-authority-district/23UB,Cheltenham Borough Council,456452,60832,THE BIG SLEEP HOTEL,C-1T05E1-3206,Sumr Ball Fest-Miscellaneous Expenses,02-Sep-11,108.34
http://statistics.data.gov.uk/id/local-authority-district/23UB,Cheltenham Borough Council,456451,60829,THE BIG SLEEP HOTEL,C-1T05E1-3206,Sumr Ball Fest-Miscellaneous Expenses,02-Sep-11,108.34
http://statistics.data.gov.uk/id/local-authority-district/23UB,Cheltenham Borough Council,456450,60826,THE BIG SLEEP HOTEL,C-1T05E1-3206,Sumr Ball Fest-Miscellaneous Expenses,02-Sep-11,108.34
http://statistics.data.gov.uk/id/local-authority-district/23UB,Cheltenham Borough Council,456449,60816,THE BIG SLEEP HOTEL,C-1T05E1-3206,Sumr Ball Fest-Miscellaneous Expenses,02-Sep-11,108.34
http://statistics.data.gov.uk/id/local-authority-district/23UB,Cheltenham Borough Council,456448,60804,THE BIG SLEEP HOTEL,C-1T05E1-3206,Sumr Ball Fest-Miscellaneous Expenses,02-Sep-11,108.34
http://statistics.data.gov.uk/id/local-authority-district/23UB,Cheltenham Borough Council,456447,60823,THE BIG SLEEP HOTEL,C-1T05E1-3206,Sumr Ball Fest-Miscellaneous Expenses,02-Sep-11,108.34
http://statistics.data.gov.uk/id/local-authority-district/23UB,Cheltenham Borough Council,456399,60821,THE BIG SLEEP HOTEL,C-1T05E1-3206,Sumr Ball Fest-Miscellaneous Expenses,02-Sep-11,108.34
http://statistics.data.gov.uk/id/local-authority-district/23UB,Cheltenham Borough Council,458139,REDACTED,ADRIAN B BLACKTON,C-HC7440-C801,DFG.96.Act-Grants,29-Sep-11,"4,970.40"
http://statistics.data.gov.uk/id/local-authority-district/23UB,Cheltenham Borough Council,455570,47SC 009470,BRENNTAG UK,C-L11500-1714,Rec Facilities-Chemicals,23-Sep-11,-18.00
http://statistics.data.gov.uk/id/local-authority-district/23UB,Cheltenham Borough Council,457727,47SI626034,BRENNTAG UK,C-L11500-1714,Rec Facilities-Chemicals,23-Sep-11,25.20
http://statistics.data.gov.uk/id/local-authority-district/23UB,Cheltenham Borough Council,457727,47SI626034,BRENNTAG UK,C-L11500-1714,Rec Facilities-Chemicals,23-Sep-11,17.70
http://statistics.data.gov.uk/id/local-authority-district/23UB,Cheltenham Borough Council,457727,47SI626034,BRENNTAG UK,C-L11500-1714,Rec Facilities-Chemicals,23-Sep-11,28.00
http://statistics.data.gov.uk/id/local-authority-district/23UB,Cheltenham Borough Council,457727,47SI626034,BRENNTAG UK,C-L11500-1714,Rec Facilities-Chemicals,23-Sep-11,22.00
http://statistics.data.gov.uk/id/local-authority-district/23UB,Cheltenham Borough Council,457727,47SI626034,BRENNTAG UK,C-L11500-1714,Rec Facilities-Chemicals,23-Sep-11,40.00
http://statistics.data.gov.uk/id/local-authority-district/23UB,Cheltenham Borough Council,457727,47SI626034,BRENNTAG UK,C-L11500-1714,Rec Facilities-Chemicals,23-Sep-11,120.00
http://statistics.data.gov.uk/id/local-authority-district/23UB,Cheltenham Borough Council,457727,47SI626034,BRENNTAG UK,C-L11500-1714,Rec Facilities-Chemicals,23-Sep-11,56.00
http://statistics.data.gov.uk/id/local-authority-district/23UB,Cheltenham Borough Council,457727,47SI626034,BRENNTAG UK,C-L11500-1714,Rec Facilities-Chemicals,23-Sep-11,732.90
http://statistics.data.gov.uk/id/local-authority-district/23UB,Cheltenham Borough Council,457727,47SI626034,BRENNTAG UK,C-L11500-1714,Rec Facilities-Chemicals,23-Sep-11,40.56
http://statistics.data.gov.uk/id/local-authority-district/23UB,Cheltenham Borough Council,456655,10178538,BREEDON AGGREGATES,C-E63100-1101,Cemetery & Crem-General building repairs,02-Sep-11,645.00
http://statistics.data.gov.uk/id/local-authority-district/23UB,Cheltenham Borough Council,456655,10178538,BREEDON AGGREGATES,C-E63100-1101,Cemetery & Crem-General building repairs,02-Sep-11,10.32
http://statistics.data.gov.uk/id/local-authority-district/23UB,Cheltenham Borough Council,456470,50288837/1,BRITISH GAS BUSINESS,C-D30200-1402,Misc Props & Ld-Electricity,02-Sep-11,"1,584.53"
http://statistics.data.gov.uk/id/local-authority-district/23UB,Cheltenham Borough Council,457090,1063,D W BROOKES,C-E21100-1101,Car Prks-Off St-General building repairs,09-Sep-11,"2,610.00"
http://statistics.data.gov.uk/id/local-authority-district/23UB,Cheltenham Borough Council,457090,1063,D W BROOKES,C-E21100-1101,Car Prks-Off St-General building repairs,09-Sep-11,"1,230.00"
http://statistics.data.gov.uk/id/local-authority-district/23UB,Cheltenham Borough Council,457089,121-002022,L G BROWN ASSOCIATES,C-E21100-3401,Car Prks-Off St-Printing - general,09-Sep-11,995.40
http://statistics.data.gov.uk/id/local-authority-district/23UB,Cheltenham Borough Council,457089,121-002022,L G BROWN ASSOCIATES,C-E36200-3401,On-St Car Prkng-Printing - general,09-Sep-11,995.40
http://statistics.data.gov.uk/id/local-authority-district/23UB,Cheltenham Borough Council,456620,135502,BULRUSH PEAT COMPANY LTD,C-C22140-3127,Nursery-Materials-Bedding,02-Sep-11,"5,041.60"
http://statistics.data.gov.uk/id/local-authority-district/23UB,Cheltenham Borough Council,457444,BRI15031641,BURNT TREE VEHICLE HIRE,C-C24100-2701,Fleet Maint-Hired transport,15-Sep-11,552.00
http://statistics.data.gov.uk/id/local-authority-district/23UB,Cheltenham Borough Council,456433,355,M J BURKE,C-H22400-5204,Homelessness-Provision of accommo(B&B),02-Sep-11,171.75
http://statistics.data.gov.uk/id/local-authority-district/23UB,Cheltenham Borough Council,456429,353,M J BURKE,C-H22400-5204,Homelessness-Provision of accommo(B&B),02-Sep-11,45.80
http://statistics.data.gov.uk/id/local-authority-district/23UB,Cheltenham Borough Council,456430,351,M J BURKE,C-H22400-5204,Homelessness-Provision of accommo(B&B),02-Sep-11,45.80
http://statistics.data.gov.uk/id/local-authority-district/23UB,Cheltenham Borough Council,456432,354,M J BURKE,C-H22400-5204,Homelessness-Provision of accommo(B&B),02-Sep-11,377.85
http://statistics.data.gov.uk/id/local-authority-district/23UB,Cheltenham Borough Council,456431,356,M J BURKE,C-H22400-5204,Homelessness-Provision of accommo(B&B),02-Sep-11,240.45
http://statistics.data.gov.uk/id/local-authority-district/23UB,Cheltenham Borough Council,456428,352,M J BURKE,C-H22400-5204,Homelessness-Provision of accommo(B&B),02-Sep-11,45.80
http://statistics.data.gov.uk/id/local-authority-district/23UB,Cheltenham Borough Council,458142,REDACTED,CAP SECURITY LIMITED,C-HC7440-C801,DFG.96.Act-Grants,29-Sep-11,"1,732.63"
http://statistics.data.gov.uk/id/local-authority-district/23UB,Cheltenham Borough Council,456421,4528,C AND R DECORATORS,C-H4207G-1104,Gen Wks 2207-Council House repairs,02-Sep-11,"1,222.32"
http://statistics.data.gov.uk/id/local-authority-district/23UB,Cheltenham Borough Council,456420,4531,C AND R DECORATORS,C-H4213G-1104,Gen Wks 2213-Council House repairs,02-Sep-11,"1,050.00"
http://statistics.data.gov.uk/id/local-authority-district/23UB,Cheltenham Borough Council,456419,4532,C AND R DECORATORS,C-HC4841-C302,Major Voids-Building Contractor,02-Sep-11,"10,119.55"
http://statistics.data.gov.uk/id/local-authority-district/23UB,Cheltenham Borough Council,456768,4552,C AND R DECORATORS,C-H22400-1125,Homelessness-Refurbishments,09-Sep-11,659.74
http://statistics.data.gov.uk/id/local-authority-district/23UB,Cheltenham Borough Council,456763,4534,C AND R DECORATORS,C-H4201G-1104,Gen Wks 2201-Council House repairs,09-Sep-11,21.75
http://statistics.data.gov.uk/id/local-authority-district/23UB,Cheltenham Borough Council,456762,4538,C AND R DECORATORS,C-H4203V-1104,Voids 2203-Council House repairs,09-Sep-11,192.85
http://statistics.data.gov.uk/id/local-authority-district/23UB,Cheltenham Borough Council,456767,4542,C AND R DECORATORS,C-H4207V-1104,Voids 2207-Council House repairs,09-Sep-11,"1,618.23"
http://statistics.data.gov.uk/id/local-authority-district/23UB,Cheltenham Borough Council,456764,4541,C AND R DECORATORS,C-H4209G-1104,Gen Wks 2209-Council House repairs,09-Sep-11,383.93
http://statistics.data.gov.uk/id/local-authority-district/23UB,Cheltenham Borough Council,456766,4537,C AND R DECORATORS,C-H4209V-1104,Voids 2209-Council House repairs,09-Sep-11,756.90
http://statistics.data.gov.uk/id/local-authority-district/23UB,Cheltenham Borough Council,456765,4551,C AND R DECORATORS,C-H4213G-1104,Gen Wks 2213-Council House repairs,09-Sep-11,396.00
http://statistics.data.gov.uk/id/local-authority-district/23UB,Cheltenham Borough Council,456769,4543,C AND R DECORATORS,C-H4214G-1104,Gen Wks 2214-Council House repairs,09-Sep-11,"1,200.00"
http://statistics.data.gov.uk/id/local-authority-district/23UB,Cheltenham Borough Council,457016,4556,C AND R DECORATORS,C-H44752-1104,Dis Adapts-Tech-Council House repairs,09-Sep-11,"1,248.51"
http://statistics.data.gov.uk/id/local-authority-district/23UB,Cheltenham Borough Council,457017,4554,C AND R DECORATORS,C-H44752-1104,Dis Adapts-Tech-Council House repairs,09-Sep-11,567.00
http://statistics.data.gov.uk/id/local-authority-district/23UB,Cheltenham Borough Council,457018,4557,C AND R DECORATORS,C-H44752-1104,Dis Adapts-Tech-Council House repairs,09-Sep-11,"1,198.28"
http://statistics.data.gov.uk/id/local-authority-district/23UB,Cheltenham Borough Council,457019,4555,C AND R DECORATORS,C-H44752-1104,Dis Adapts-Tech-Council House repairs,09-Sep-11,917.71
http://statistics.data.gov.uk/id/local-authority-district/23UB,Cheltenham Borough Council,457650,4561,C AND R DECORATORS,C-H4204V-1104,Voids 2204-Council House repairs,23-Sep-11,883.46
http://statistics.data.gov.uk/id/local-authority-district/23UB,Cheltenham Borough Council,457951,4568,C AND R DECORATORS,C-H4208V-1104,Voids 2208-Council House repairs,23-Sep-11,395.03
http://statistics.data.gov.uk/id/local-authority-district/23UB,Cheltenham Borough Council,457649,4562,C AND R DECORATORS,C-H4211V-1104,Voids 2211-Council House repairs,23-Sep-11,"5,256.99"
http://statistics.data.gov.uk/id/local-authority-district/23UB,Cheltenham Borough Council,457945,4566,C AND R DECORATORS,C-H4214V-1104,Voids 2214-Council House repairs,23-Sep-11,"1,095.25"
http://statistics.data.gov.uk/id/local-authority-district/23UB,Cheltenham Borough Council,457948,4567,C AND R DECORATORS,C-H4214V-1104,Voids 2214-Council House repairs,23-Sep-11,769.83
http://statistics.data.gov.uk/id/local-authority-district/23UB,Cheltenham Borough Council,457046,112394,C'ART,C-L41100-2701,AG & M-Hired transport,09-Sep-11,987.50
http://statistics.data.gov.uk/id/local-authority-district/23UB,Cheltenham Borough Council,458209,446,CARBREY HOUSING LIMITED,C-H22400-5204,Homelessness-Provision of accommo(B&B),29-Sep-11,250.30
http://statistics.data.gov.uk/id/local-authority-district/23UB,Cheltenham Borough Council,458210,0044,CARBREY HOUSING LIMITED,C-H22400-5204,Homelessness-Provision of accommo(B&B),29-Sep-11,250.30
http://statistics.data.gov.uk/id/local-authority-district/23UB,Cheltenham Borough Council,456825,REDACTED,CASTLE PROPERTIES,C-H22400-3828,Homelessness-Prevention Fund,09-Sep-11,595.00
http://statistics.data.gov.uk/id/local-authority-district/23UB,Cheltenham Borough Council,457021,REDACTED,CAUDLE ROOFING,C-H4211G-1104,Gen Wks 2211-Council House repairs,09-Sep-11,500.00
http://statistics.data.gov.uk/id/local-authority-district/23UB,Cheltenham Borough Council,456781,REDACTED,CAUDLE ROOFING,C-H4213G-1104,Gen Wks 2213-Council House repairs,09-Sep-11,600.00
http://statistics.data.gov.uk/id/local-authority-district/23UB,Cheltenham Borough Council,456776,REDACTED,CAUDLE ROOFING,C-H4214G-1104,Gen Wks 2214-Council House repairs,09-Sep-11,600.00
http://statistics.data.gov.uk/id/local-authority-district/23UB,Cheltenham Borough Council,457021,REDACTED,CAUDLE ROOFING,C-N11250-9227,Excluded,09-Sep-11,-60.00
http://statistics.data.gov.uk/id/local-authority-district/23UB,Cheltenham Borough Council,456781,REDACTED,CAUDLE ROOFING,C-N11250-9227,Excluded,09-Sep-11,-60.00
http://statistics.data.gov.uk/id/local-authority-district/23UB,Cheltenham Borough Council,456776,REDACTED,CAUDLE ROOFING,C-N11250-9227,Excluded,09-Sep-11,-20.00
http://statistics.data.gov.uk/id/local-authority-district/23UB,Cheltenham Borough Council,457021,REDACTED,CAUDLE ROOFING,C-H4211G-1104,Gen Wks 2211-Council House repairs,22-Sep-11,500.00
http://statistics.data.gov.uk/id/local-authority-district/23UB,Cheltenham Borough Council,456781,REDACTED,CAUDLE ROOFING,C-H4213G-1104,Gen Wks 2213-Council House repairs,22-Sep-11,600.00
http://statistics.data.gov.uk/id/local-authority-district/23UB,Cheltenham Borough Council,456776,REDACTED,CAUDLE ROOFING,C-H4214G-1104,Gen Wks 2214-Council House repairs,22-Sep-11,600.00
http://statistics.data.gov.uk/id/local-authority-district/23UB,Cheltenham Borough Council,457021,REDACTED,CAUDLE ROOFING,C-N11250-9227,Excluded,22-Sep-11,-60.00
http://statistics.data.gov.uk/id/local-authority-district/23UB,Cheltenham Borough Council,456781,REDACTED,CAUDLE ROOFING,C-N11250-9227,Excluded,22-Sep-11,-60.00
http://statistics.data.gov.uk/id/local-authority-district/23UB,Cheltenham Borough Council,456776,REDACTED,CAUDLE ROOFING,C-N11250-9227,Excluded,22-Sep-11,-20.00
http://statistics.data.gov.uk/id/local-authority-district/23UB,Cheltenham Borough Council,457021,REDACTED,CAUDLE ROOFING,C-H4211G-1104,Gen Wks 2211-Council House repairs,23-Sep-11,500.00
http://statistics.data.gov.uk/id/local-authority-district/23UB,Cheltenham Borough Council,456781,REDACTED,CAUDLE ROOFING,C-H4213G-1104,Gen Wks 2213-Council House repairs,23-Sep-11,600.00
http://statistics.data.gov.uk/id/local-authority-district/23UB,Cheltenham Borough Council,457628,REDACTED,CAUDLE ROOFING,C-H4214G-1104,Gen Wks 2214-Council House repairs,23-Sep-11,200.00
http://statistics.data.gov.uk/id/local-authority-district/23UB,Cheltenham Borough Council,456776,REDACTED,CAUDLE ROOFING,C-H4214G-1104,Gen Wks 2214-Council House repairs,23-Sep-11,600.00
http://statistics.data.gov.uk/id/local-authority-district/23UB,Cheltenham Borough Council,457021,REDACTED,CAUDLE ROOFING,C-N11250-9227,Excluded,23-Sep-11,-60.00
http://statistics.data.gov.uk/id/local-authority-district/23UB,Cheltenham Borough Council,457628,REDACTED,CAUDLE ROOFING,C-N11250-9227,Excluded,23-Sep-11,-20.00
http://statistics.data.gov.uk/id/local-authority-district/23UB,Cheltenham Borough Council,456781,REDACTED,CAUDLE ROOFING,C-N11250-9227,Excluded,23-Sep-11,-60.00
http://statistics.data.gov.uk/id/local-authority-district/23UB,Cheltenham Borough Council,456776,REDACTED,CAUDLE ROOFING,C-N11250-9227,Excluded,23-Sep-11,-20.00
http://statistics.data.gov.uk/id/local-authority-district/23UB,Cheltenham Borough Council,457257,INV376335,THE CHARTERED INST OF ENV HEALTH,C-E71150-3920,Public Protn Div-Advertising,15-Sep-11,700.00
http://statistics.data.gov.uk/id/local-authority-district/23UB,Cheltenham Borough Council,456721,31708,CHARTERHOUSE SECURITY MANAGEMENT,C-H46400-1104,Door Entry-Council House repairs,09-Sep-11,"2,602.69"
http://statistics.data.gov.uk/id/local-authority-district/23UB,Cheltenham Borough Council,457954,31811,CHARTERHOUSE SECURITY MANAGEMENT,C-H46400-1104,Door Entry-Council House repairs,23-Sep-11,555.48
http://statistics.data.gov.uk/id/local-authority-district/23UB,Cheltenham Borough Council,458162,hc6767,CHAMBERS MANAGEMENT CLIENT ACCOUNT,C-1T02G1-3568,Jimmy Carr-Artist Fees,29-Sep-11,"14,000.00"
http://statistics.data.gov.uk/id/local-authority-district/23UB,Cheltenham Borough Council,456474,CHAC-MOVEON,CHELTENHAM HOUSING AID CENTRE,C-H22400-3241,Homelessness-Homeless Forum,02-Sep-11,"2,500.00"
http://statistics.data.gov.uk/id/local-authority-district/23UB,Cheltenham Borough Council,456536,48273,CHELTENHAM GARDEN MACHINERY,C-C24100-3582,Fleet Maint-DSO Invoices,02-Sep-11,23.42
http://statistics.data.gov.uk/id/local-authority-district/23UB,Cheltenham Borough Council,456613,48311,CHELTENHAM GARDEN MACHINERY,C-L21100-3101,Town Hall-Equipment purchases,02-Sep-11,4.99
http://statistics.data.gov.uk/id/local-authority-district/23UB,Cheltenham Borough Council,456613,48311,CHELTENHAM GARDEN MACHINERY,C-L21100-3101,Town Hall-Equipment purchases,02-Sep-11,9.79
http://statistics.data.gov.uk/id/local-authority-district/23UB,Cheltenham Borough Council,456613,48311,CHELTENHAM GARDEN MACHINERY,C-L21100-3101,Town Hall-Equipment purchases,02-Sep-11,227.20
http://statistics.data.gov.uk/id/local-authority-district/23UB,Cheltenham Borough Council,456601,48310,CHELTENHAM GARDEN MACHINERY,C-L21200-3101,Pump Room-Equipment purchases,02-Sep-11,227.20
http://statistics.data.gov.uk/id/local-authority-district/23UB,Cheltenham Borough Council,456601,48310,CHELTENHAM GARDEN MACHINERY,C-L21200-3101,Pump Room-Equipment purchases,02-Sep-11,4.99
http://statistics.data.gov.uk/id/local-authority-district/23UB,Cheltenham Borough Council,456601,48310,CHELTENHAM GARDEN MACHINERY,C-L21200-3101,Pump Room-Equipment purchases,02-Sep-11,8.96
http://statistics.data.gov.uk/id/local-authority-district/23UB,Cheltenham Borough Council,456466,CHELTDW/7/2011,CHELTENHAM ANIMAL SHELTER,C-E61300-3501,Animal Welfare-Hire of outside services,02-Sep-11,"1,324.33"
http://statistics.data.gov.uk/id/local-authority-district/23UB,Cheltenham Borough Council,457970,CHELTDW/8/2011,CHELTENHAM ANIMAL SHELTER,C-E61300-3501,Animal Welfare-Hire of outside services,23-Sep-11,542.62
http://statistics.data.gov.uk/id/local-authority-district/23UB,Cheltenham Borough Council,456440,WCP01161,CHERRINGTON WEST END ESTATE AGENT,C-H44500-1104,Prop.Manager-Council House repairs,02-Sep-11,"1,500.00"
http://statistics.data.gov.uk/id/local-authority-district/23UB,Cheltenham Borough Council,457324,39,CHELTENHAM CAFE CO.LLP,C-L17300-3501,Sport Dev-Hire of outside services,15-Sep-11,735.00
http://statistics.data.gov.uk/id/local-authority-district/23UB,Cheltenham Borough Council,458358,4050,CHRIST COLLEGE,C-L17300-3501,Sport Dev-Hire of outside services,29-Sep-11,810.00
http://statistics.data.gov.uk/id/local-authority-district/23UB,Cheltenham Borough Council,457038,M/RB006992,CIVICA UK LIMITED,C-D12446-3623,IBS license ren-Cmpter-sftwre lic purch,09-Sep-11,"1,151.70"
http://statistics.data.gov.uk/id/local-authority-district/23UB,Cheltenham Borough Council,458198,CIRBI05615/XRB1,CIVICA UK LIMITED,C-D12446-3623,IBS license ren-Cmpter-sftwre lic purch,29-Sep-11,"1,825.00"
http://statistics.data.gov.uk/id/local-authority-district/23UB,Cheltenham Borough Council,458198,CIRBI05615/XRB1,CIVICA UK LIMITED,C-D12446-3623,IBS license ren-Cmpter-sftwre lic purch,29-Sep-11,108.00
http://statistics.data.gov.uk/id/local-authority-district/23UB,Cheltenham Borough Council,458199,C/RB105616,CIVICA UK LIMITED,C-D31300-3623,NNDR Collection-Cmpter-sftwre lic purch,29-Sep-11,"1,250.00"
http://statistics.data.gov.uk/id/local-authority-district/23UB,Cheltenham Borough Council,458387,13982,CLES,C-D34400-3221,Bus & Econ Dev-Economic Impact Studies,29-Sep-11,"3,000.00"
http://statistics.data.gov.uk/id/local-authority-district/23UB,Cheltenham Borough Council,456568,20784,COLLETT TRANSPORT SERVICES LIMITED,C-C24100-2701,Fleet Maint-Hired transport,02-Sep-11,"1,820.00"
http://statistics.data.gov.uk/id/local-authority-district/23UB,Cheltenham Borough Council,456567,20757,COLLETT TRANSPORT SERVICES LIMITED,C-C24100-2701,Fleet Maint-Hired transport,02-Sep-11,280.00
http://statistics.data.gov.uk/id/local-authority-district/23UB,Cheltenham Borough Council,457447,20918,COLLETT TRANSPORT SERVICES LIMITED,C-C24100-2701,Fleet Maint-Hired transport,15-Sep-11,"1,265.00"
http://statistics.data.gov.uk/id/local-authority-district/23UB,Cheltenham Borough Council,457446,20929,COLLETT TRANSPORT SERVICES LIMITED,C-C24100-2701,Fleet Maint-Hired transport,15-Sep-11,"3,220.00"
http://statistics.data.gov.uk/id/local-authority-district/23UB,Cheltenham Borough Council,457710,20317,COLLETT TRANSPORT SERVICES LIMITED,C-C24100-2701,Fleet Maint-Hired transport,23-Sep-11,186.31
http://statistics.data.gov.uk/id/local-authority-district/23UB,Cheltenham Borough Council,457708,21091,COLLETT TRANSPORT SERVICES LIMITED,C-C24100-2701,Fleet Maint-Hired transport,23-Sep-11,485.00
http://statistics.data.gov.uk/id/local-authority-district/23UB,Cheltenham Borough Council,458175,21167,COLLETT TRANSPORT SERVICES LIMITED,C-C22140-2702,Nursery-Additional vehicle hire,29-Sep-11,510.00
http://statistics.data.gov.uk/id/local-authority-district/23UB,Cheltenham Borough Council,458174,21169,COLLETT TRANSPORT SERVICES LIMITED,C-C24100-2701,Fleet Maint-Hired transport,29-Sep-11,165.00
http://statistics.data.gov.uk/id/local-authority-district/23UB,Cheltenham Borough Council,457688,2386,COMPLETE WEED CONTROL,C-D30200-8802,Misc Props & Ld-Service charges,23-Sep-11,540.00
http://statistics.data.gov.uk/id/local-authority-district/23UB,Cheltenham Borough Council,458204,SIT100619,COMMERCIAL LIMITED,C-D11820-3660,IT Infrastructu-Hardware PC & Servers,29-Sep-11,"4,485.00"
http://statistics.data.gov.uk/id/local-authority-district/23UB,Cheltenham Borough Council,458204,SIT100619,COMMERCIAL LIMITED,C-D11820-3660,IT Infrastructu-Hardware PC & Servers,29-Sep-11,202.00
http://statistics.data.gov.uk/id/local-authority-district/23UB,Cheltenham Borough Council,457855,509017,COMENSURA LIMITED,C-C22100-0115,Green Env Div-Temporary Agency Staff,23-Sep-11,209.40
http://statistics.data.gov.uk/id/local-authority-district/23UB,Cheltenham Borough Council,457855,509017,COMENSURA LIMITED,C-C22100-0115,Green Env Div-Temporary Agency Staff,23-Sep-11,346.88
http://statistics.data.gov.uk/id/local-authority-district/23UB,Cheltenham Borough Council,457855,509017,COMENSURA LIMITED,C-C22100-0115,Green Env Div-Temporary Agency Staff,23-Sep-11,277.08
http://statistics.data.gov.uk/id/local-authority-district/23UB,Cheltenham Borough Council,457856,509159,COMENSURA LIMITED,C-C22100-0115,Green Env Div-Temporary Agency Staff,23-Sep-11,69.80
http://statistics.data.gov.uk/id/local-authority-district/23UB,Cheltenham Borough Council,457856,509159,COMENSURA LIMITED,C-C22100-0115,Green Env Div-Temporary Agency Staff,23-Sep-11,346.88
http://statistics.data.gov.uk/id/local-authority-district/23UB,Cheltenham Borough Council,457856,509159,COMENSURA LIMITED,C-C22100-0115,Green Env Div-Temporary Agency Staff,23-Sep-11,279.20
http://statistics.data.gov.uk/id/local-authority-district/23UB,Cheltenham Borough Council,457855,509017,COMENSURA LIMITED,C-C22100-0115,Green Env Div-Temporary Agency Staff,23-Sep-11,209.40
http://statistics.data.gov.uk/id/local-authority-district/23UB,Cheltenham Borough Council,457857,509326,COMENSURA LIMITED,C-C22100-0115,Green Env Div-Temporary Agency Staff,23-Sep-11,346.88
http://statistics.data.gov.uk/id/local-authority-district/23UB,Cheltenham Borough Council,457857,509326,COMENSURA LIMITED,C-C22100-0115,Green Env Div-Temporary Agency Staff,23-Sep-11,346.88
http://statistics.data.gov.uk/id/local-authority-district/23UB,Cheltenham Borough Council,457857,509326,COMENSURA LIMITED,C-C22100-0115,Green Env Div-Temporary Agency Staff,23-Sep-11,289.77
http://statistics.data.gov.uk/id/local-authority-district/23UB,Cheltenham Borough Council,457855,509017,COMENSURA LIMITED,C-C22100-0115,Green Env Div-Temporary Agency Staff,23-Sep-11,346.88
http://statistics.data.gov.uk/id/local-authority-district/23UB,Cheltenham Borough Council,457855,509017,COMENSURA LIMITED,C-C22100-0115,Green Env Div-Temporary Agency Staff,23-Sep-11,346.88
http://statistics.data.gov.uk/id/local-authority-district/23UB,Cheltenham Borough Council,457855,509017,COMENSURA LIMITED,C-C22100-0115,Green Env Div-Temporary Agency Staff,23-Sep-11,346.88
http://statistics.data.gov.uk/id/local-authority-district/23UB,Cheltenham Borough Council,457856,509159,COMENSURA LIMITED,C-C22105-0115,Hsg Forecourts-Temporary Agency Staff,23-Sep-11,274.95
http://statistics.data.gov.uk/id/local-authority-district/23UB,Cheltenham Borough Council,457857,509326,COMENSURA LIMITED,C-C22105-0115,Hsg Forecourts-Temporary Agency Staff,23-Sep-11,346.86
http://statistics.data.gov.uk/id/local-authority-district/23UB,Cheltenham Borough Council,457857,509326,COMENSURA LIMITED,C-C22105-0115,Hsg Forecourts-Temporary Agency Staff,23-Sep-11,346.86
http://statistics.data.gov.uk/id/local-authority-district/23UB,Cheltenham Borough Council,457856,509159,COMENSURA LIMITED,C-C22105-0115,Hsg Forecourts-Temporary Agency Staff,23-Sep-11,346.86
http://statistics.data.gov.uk/id/local-authority-district/23UB,Cheltenham Borough Council,457857,509326,COMENSURA LIMITED,C-C22105-0115,Hsg Forecourts-Temporary Agency Staff,23-Sep-11,8.46
http://statistics.data.gov.uk/id/local-authority-district/23UB,Cheltenham Borough Council,457857,509326,COMENSURA LIMITED,C-C22105-0115,Hsg Forecourts-Temporary Agency Staff,23-Sep-11,215.73
http://statistics.data.gov.uk/id/local-authority-district/23UB,Cheltenham Borough Council,457855,509017,COMENSURA LIMITED,C-C22120-0115,Spts/Open Space-Temporary Agency Staff,23-Sep-11,287.64
http://statistics.data.gov.uk/id/local-authority-district/23UB,Cheltenham Borough Council,457857,509326,COMENSURA LIMITED,C-C22120-0115,Spts/Open Space-Temporary Agency Staff,23-Sep-11,346.86
http://statistics.data.gov.uk/id/local-authority-district/23UB,Cheltenham Borough Council,457857,509326,COMENSURA LIMITED,C-C22120-0115,Spts/Open Space-Temporary Agency Staff,23-Sep-11,274.95
http://statistics.data.gov.uk/id/local-authority-district/23UB,Cheltenham Borough Council,457857,509326,COMENSURA LIMITED,C-C22120-0115,Spts/Open Space-Temporary Agency Staff,23-Sep-11,346.86
http://statistics.data.gov.uk/id/local-authority-district/23UB,Cheltenham Borough Council,457856,509159,COMENSURA LIMITED,C-C22120-0115,Spts/Open Space-Temporary Agency Staff,23-Sep-11,274.95
http://statistics.data.gov.uk/id/local-authority-district/23UB,Cheltenham Borough Council,457856,509159,COMENSURA LIMITED,C-C22120-0115,Spts/Open Space-Temporary Agency Staff,23-Sep-11,274.95
http://statistics.data.gov.uk/id/local-authority-district/23UB,Cheltenham Borough Council,457855,509017,COMENSURA LIMITED,C-C22120-0115,Spts/Open Space-Temporary Agency Staff,23-Sep-11,346.86
http://statistics.data.gov.uk/id/local-authority-district/23UB,Cheltenham Borough Council,457855,509017,COMENSURA LIMITED,C-C22120-0115,Spts/Open Space-Temporary Agency Staff,23-Sep-11,274.95
http://statistics.data.gov.uk/id/local-authority-district/23UB,Cheltenham Borough Council,457855,509017,COMENSURA LIMITED,C-C22120-0115,Spts/Open Space-Temporary Agency Staff,23-Sep-11,346.86
http://statistics.data.gov.uk/id/local-authority-district/23UB,Cheltenham Borough Council,457854,508884,COMENSURA LIMITED,C-C23100-0115,Refuse Collection-Temporary Agency Staff,23-Sep-11,485.20
http://statistics.data.gov.uk/id/local-authority-district/23UB,Cheltenham Borough Council,457854,508884,COMENSURA LIMITED,C-C23100-0115,Refuse Collection-Temporary Agency Staff,23-Sep-11,313.02
http://statistics.data.gov.uk/id/local-authority-district/23UB,Cheltenham Borough Council,457857,509326,COMENSURA LIMITED,C-C23100-0115,Refuse Collection-Temporary Agency Staff,23-Sep-11,313.02
http://statistics.data.gov.uk/id/local-authority-district/23UB,Cheltenham Borough Council,457857,509326,COMENSURA LIMITED,C-C23100-0115,Refuse Collection-Temporary Agency Staff,23-Sep-11,313.02
http://statistics.data.gov.uk/id/local-authority-district/23UB,Cheltenham Borough Council,457857,509326,COMENSURA LIMITED,C-C23100-0115,Refuse Collection-Temporary Agency Staff,23-Sep-11,285.52
http://statistics.data.gov.uk/id/local-authority-district/23UB,Cheltenham Borough Council,457857,509326,COMENSURA LIMITED,C-C23100-0115,Refuse Collection-Temporary Agency Staff,23-Sep-11,399.73
http://statistics.data.gov.uk/id/local-authority-district/23UB,Cheltenham Borough Council,457857,509326,COMENSURA LIMITED,C-C23100-0115,Refuse Collection-Temporary Agency Staff,23-Sep-11,50.76
http://statistics.data.gov.uk/id/local-authority-district/23UB,Cheltenham Borough Council,457857,509326,COMENSURA LIMITED,C-C23100-0115,Refuse Collection-Temporary Agency Staff,23-Sep-11,135.36
http://statistics.data.gov.uk/id/local-authority-district/23UB,Cheltenham Borough Council,457857,509326,COMENSURA LIMITED,C-C23100-0115,Refuse Collection-Temporary Agency Staff,23-Sep-11,63.45
http://statistics.data.gov.uk/id/local-authority-district/23UB,Cheltenham Borough Council,457857,509326,COMENSURA LIMITED,C-C23100-0115,Refuse Collection-Temporary Agency Staff,23-Sep-11,54.99
http://statistics.data.gov.uk/id/local-authority-district/23UB,Cheltenham Borough Council,457857,509326,COMENSURA LIMITED,C-C23100-0115,Refuse Collection-Temporary Agency Staff,23-Sep-11,247.47
http://statistics.data.gov.uk/id/local-authority-district/23UB,Cheltenham Borough Council,457857,509326,COMENSURA LIMITED,C-C23100-0115,Refuse Collection-Temporary Agency Staff,23-Sep-11,67.68
http://statistics.data.gov.uk/id/local-authority-district/23UB,Cheltenham Borough Council,457857,509326,COMENSURA LIMITED,C-C23100-0115,Refuse Collection-Temporary Agency Staff,23-Sep-11,213.62
http://statistics.data.gov.uk/id/local-authority-district/23UB,Cheltenham Borough Council,457857,509326,COMENSURA LIMITED,C-C23100-0115,Refuse Collection-Temporary Agency Staff,23-Sep-11,281.30
http://statistics.data.gov.uk/id/local-authority-district/23UB,Cheltenham Borough Council,457857,509326,COMENSURA LIMITED,C-C23100-0115,Refuse Collection-Temporary Agency Staff,23-Sep-11,270.72
http://statistics.data.gov.uk/id/local-authority-district/23UB,Cheltenham Borough Council,457857,509326,COMENSURA LIMITED,C-C23100-0115,Refuse Collection-Temporary Agency Staff,23-Sep-11,277.07
http://statistics.data.gov.uk/id/local-authority-district/23UB,Cheltenham Borough Council,457857,509326,COMENSURA LIMITED,C-C23100-0115,Refuse Collection-Temporary Agency Staff,23-Sep-11,63.45
http://statistics.data.gov.uk/id/local-authority-district/23UB,Cheltenham Borough Council,457857,509326,COMENSURA LIMITED,C-C23100-0115,Refuse Collection-Temporary Agency Staff,23-Sep-11,236.88
http://statistics.data.gov.uk/id/local-authority-district/23UB,Cheltenham Borough Council,457857,509326,COMENSURA LIMITED,C-C23100-0115,Refuse Collection-Temporary Agency Staff,23-Sep-11,126.90
http://statistics.data.gov.uk/id/local-authority-district/23UB,Cheltenham Borough Council,457857,509326,COMENSURA LIMITED,C-C23100-0115,Refuse Collection-Temporary Agency Staff,23-Sep-11,50.76
http://statistics.data.gov.uk/id/local-authority-district/23UB,Cheltenham Borough Council,457857,509326,COMENSURA LIMITED,C-C23100-0115,Refuse Collection-Temporary Agency Staff,23-Sep-11,126.90
http://statistics.data.gov.uk/id/local-authority-district/23UB,Cheltenham Borough Council,457857,509326,COMENSURA LIMITED,C-C23100-0115,Refuse Collection-Temporary Agency Staff,23-Sep-11,249.57
http://statistics.data.gov.uk/id/local-authority-district/23UB,Cheltenham Borough Council,457856,509159,COMENSURA LIMITED,C-C23100-0115,Refuse Collection-Temporary Agency Staff,23-Sep-11,186.12
http://statistics.data.gov.uk/id/local-authority-district/23UB,Cheltenham Borough Council,457856,509159,COMENSURA LIMITED,C-C23100-0115,Refuse Collection-Temporary Agency Staff,23-Sep-11,253.80
http://statistics.data.gov.uk/id/local-authority-district/23UB,Cheltenham Borough Council,457856,509159,COMENSURA LIMITED,C-C23100-0115,Refuse Collection-Temporary Agency Staff,23-Sep-11,313.02
http://statistics.data.gov.uk/id/local-authority-district/23UB,Cheltenham Borough Council,457856,509159,COMENSURA LIMITED,C-C23100-0115,Refuse Collection-Temporary Agency Staff,23-Sep-11,249.57
http://statistics.data.gov.uk/id/local-authority-district/23UB,Cheltenham Borough Council,457856,509159,COMENSURA LIMITED,C-C23100-0115,Refuse Collection-Temporary Agency Staff,23-Sep-11,203.04
http://statistics.data.gov.uk/id/local-authority-district/23UB,Cheltenham Borough Council,457856,509159,COMENSURA LIMITED,C-C23100-0115,Refuse Collection-Temporary Agency Staff,23-Sep-11,118.44
http://statistics.data.gov.uk/id/local-authority-district/23UB,Cheltenham Borough Council,457856,509159,COMENSURA LIMITED,C-C23100-0115,Refuse Collection-Temporary Agency Staff,23-Sep-11,50.76
http://statistics.data.gov.uk/id/local-authority-district/23UB,Cheltenham Borough Council,457855,509017,COMENSURA LIMITED,C-C23100-0115,Refuse Collection-Temporary Agency Staff,23-Sep-11,215.73
http://statistics.data.gov.uk/id/local-authority-district/23UB,Cheltenham Borough Council,457855,509017,COMENSURA LIMITED,C-C23100-0115,Refuse Collection-Temporary Agency Staff,23-Sep-11,54.99
http://statistics.data.gov.uk/id/local-authority-district/23UB,Cheltenham Borough Council,457855,509017,COMENSURA LIMITED,C-C23100-0115,Refuse Collection-Temporary Agency Staff,23-Sep-11,126.90
http://statistics.data.gov.uk/id/local-authority-district/23UB,Cheltenham Borough Council,457855,509017,COMENSURA LIMITED,C-C23100-0115,Refuse Collection-Temporary Agency Staff,23-Sep-11,313.02
http://statistics.data.gov.uk/id/local-authority-district/23UB,Cheltenham Borough Council,457855,509017,COMENSURA LIMITED,C-C23100-0115,Refuse Collection-Temporary Agency Staff,23-Sep-11,120.55
http://statistics.data.gov.uk/id/local-authority-district/23UB,Cheltenham Borough Council,457855,509017,COMENSURA LIMITED,C-C23100-0115,Refuse Collection-Temporary Agency Staff,23-Sep-11,313.02
http://statistics.data.gov.uk/id/local-authority-district/23UB,Cheltenham Borough Council,457855,509017,COMENSURA LIMITED,C-C23100-0115,Refuse Collection-Temporary Agency Staff,23-Sep-11,313.02
http://statistics.data.gov.uk/id/local-authority-district/23UB,Cheltenham Borough Council,457855,509017,COMENSURA LIMITED,C-C23100-0115,Refuse Collection-Temporary Agency Staff,23-Sep-11,260.14
http://statistics.data.gov.uk/id/local-authority-district/23UB,Cheltenham Borough Council,457855,509017,COMENSURA LIMITED,C-C23100-0115,Refuse Collection-Temporary Agency Staff,23-Sep-11,118.44
http://statistics.data.gov.uk/id/local-authority-district/23UB,Cheltenham Borough Council,457855,509017,COMENSURA LIMITED,C-C23100-0115,Refuse Collection-Temporary Agency Staff,23-Sep-11,190.35
http://statistics.data.gov.uk/id/local-authority-district/23UB,Cheltenham Borough Council,457855,509017,COMENSURA LIMITED,C-C23100-0115,Refuse Collection-Temporary Agency Staff,23-Sep-11,105.75
http://statistics.data.gov.uk/id/local-authority-district/23UB,Cheltenham Borough Council,457854,508884,COMENSURA LIMITED,C-C23100-0115,Refuse Collection-Temporary Agency Staff,23-Sep-11,194.08
http://statistics.data.gov.uk/id/local-authority-district/23UB,Cheltenham Borough Council,457855,509017,COMENSURA LIMITED,C-C23100-0115,Refuse Collection-Temporary Agency Staff,23-Sep-11,50.76
http://statistics.data.gov.uk/id/local-authority-district/23UB,Cheltenham Borough Council,457855,509017,COMENSURA LIMITED,C-C23100-0115,Refuse Collection-Temporary Agency Staff,23-Sep-11,76.14
http://statistics.data.gov.uk/id/local-authority-district/23UB,Cheltenham Borough Council,457855,509017,COMENSURA LIMITED,C-C23100-0115,Refuse Collection-Temporary Agency Staff,23-Sep-11,310.91
http://statistics.data.gov.uk/id/local-authority-district/23UB,Cheltenham Borough Council,457855,509017,COMENSURA LIMITED,C-C23100-0115,Refuse Collection-Temporary Agency Staff,23-Sep-11,122.67
http://statistics.data.gov.uk/id/local-authority-district/23UB,Cheltenham Borough Council,457855,509017,COMENSURA LIMITED,C-C23100-0115,Refuse Collection-Temporary Agency Staff,23-Sep-11,304.56
http://statistics.data.gov.uk/id/local-authority-district/23UB,Cheltenham Borough Council,457855,509017,COMENSURA LIMITED,C-C23100-0115,Refuse Collection-Temporary Agency Staff,23-Sep-11,177.66
http://statistics.data.gov.uk/id/local-authority-district/23UB,Cheltenham Borough Council,457855,509017,COMENSURA LIMITED,C-C23100-0115,Refuse Collection-Temporary Agency Staff,23-Sep-11,336.28
http://statistics.data.gov.uk/id/local-authority-district/23UB,Cheltenham Borough Council,457855,509017,COMENSURA LIMITED,C-C23100-0115,Refuse Collection-Temporary Agency Staff,23-Sep-11,296.05
http://statistics.data.gov.uk/id/local-authority-district/23UB,Cheltenham Borough Council,457855,509017,COMENSURA LIMITED,C-C23100-0115,Refuse Collection-Temporary Agency Staff,23-Sep-11,545.89
http://statistics.data.gov.uk/id/local-authority-district/23UB,Cheltenham Borough Council,457856,509159,COMENSURA LIMITED,C-C23100-0115,Refuse Collection-Temporary Agency Staff,23-Sep-11,109.98
http://statistics.data.gov.uk/id/local-authority-district/23UB,Cheltenham Borough Council,457856,509159,COMENSURA LIMITED,C-C23100-0115,Refuse Collection-Temporary Agency Staff,23-Sep-11,272.83
http://statistics.data.gov.uk/id/local-authority-district/23UB,Cheltenham Borough Council,457856,509159,COMENSURA LIMITED,C-C23100-0115,Refuse Collection-Temporary Agency Staff,23-Sep-11,194.08
http://statistics.data.gov.uk/id/local-authority-district/23UB,Cheltenham Borough Council,457856,509159,COMENSURA LIMITED,C-C23100-0115,Refuse Collection-Temporary Agency Staff,23-Sep-11,207.27
http://statistics.data.gov.uk/id/local-authority-district/23UB,Cheltenham Borough Council,457856,509159,COMENSURA LIMITED,C-C23100-0115,Refuse Collection-Temporary Agency Staff,23-Sep-11,268.61
http://statistics.data.gov.uk/id/local-authority-district/23UB,Cheltenham Borough Council,457856,509159,COMENSURA LIMITED,C-C23100-0115,Refuse Collection-Temporary Agency Staff,23-Sep-11,109.98
http://statistics.data.gov.uk/id/local-authority-district/23UB,Cheltenham Borough Council,457856,509159,COMENSURA LIMITED,C-C23100-0115,Refuse Collection-Temporary Agency Staff,23-Sep-11,200.92
http://statistics.data.gov.uk/id/local-authority-district/23UB,Cheltenham Borough Council,457856,509159,COMENSURA LIMITED,C-C23100-0115,Refuse Collection-Temporary Agency Staff,23-Sep-11,67.68
http://statistics.data.gov.uk/id/local-authority-district/23UB,Cheltenham Borough Council,457856,509159,COMENSURA LIMITED,C-C23100-0115,Refuse Collection-Temporary Agency Staff,23-Sep-11,270.72
http://statistics.data.gov.uk/id/local-authority-district/23UB,Cheltenham Borough Council,457856,509159,COMENSURA LIMITED,C-C23100-0115,Refuse Collection-Temporary Agency Staff,23-Sep-11,268.61
http://statistics.data.gov.uk/id/local-authority-district/23UB,Cheltenham Borough Council,457856,509159,COMENSURA LIMITED,C-C23100-0115,Refuse Collection-Temporary Agency Staff,23-Sep-11,63.45
http://statistics.data.gov.uk/id/local-authority-district/23UB,Cheltenham Borough Council,457856,509159,COMENSURA LIMITED,C-C23100-0115,Refuse Collection-Temporary Agency Staff,23-Sep-11,126.90
http://statistics.data.gov.uk/id/local-authority-district/23UB,Cheltenham Borough Council,457855,509017,COMENSURA LIMITED,C-C23100-0115,Refuse Collection-Temporary Agency Staff,23-Sep-11,203.04
http://statistics.data.gov.uk/id/local-authority-district/23UB,Cheltenham Borough Council,457855,509017,COMENSURA LIMITED,C-C23100-0115,Refuse Collection-Temporary Agency Staff,23-Sep-11,249.57
http://statistics.data.gov.uk/id/local-authority-district/23UB,Cheltenham Borough Council,457855,509017,COMENSURA LIMITED,C-C23100-0115,Refuse Collection-Temporary Agency Staff,23-Sep-11,249.57
http://statistics.data.gov.uk/id/local-authority-district/23UB,Cheltenham Borough Council,457855,509017,COMENSURA LIMITED,C-C23100-0115,Refuse Collection-Temporary Agency Staff,23-Sep-11,249.57
http://statistics.data.gov.uk/id/local-authority-district/23UB,Cheltenham Borough Council,457855,509017,COMENSURA LIMITED,C-C23100-0115,Refuse Collection-Temporary Agency Staff,23-Sep-11,88.53
http://statistics.data.gov.uk/id/local-authority-district/23UB,Cheltenham Borough Council,457855,509017,COMENSURA LIMITED,C-C23100-0115,Refuse Collection-Temporary Agency Staff,23-Sep-11,242.64
http://statistics.data.gov.uk/id/local-authority-district/23UB,Cheltenham Borough Council,457855,509017,COMENSURA LIMITED,C-C23100-0115,Refuse Collection-Temporary Agency Staff,23-Sep-11,304.50
http://statistics.data.gov.uk/id/local-authority-district/23UB,Cheltenham Borough Council,457855,509017,COMENSURA LIMITED,C-C23100-0115,Refuse Collection-Temporary Agency Staff,23-Sep-11,80.37
http://statistics.data.gov.uk/id/local-authority-district/23UB,Cheltenham Borough Council,457855,509017,COMENSURA LIMITED,C-C23100-0115,Refuse Collection-Temporary Agency Staff,23-Sep-11,126.90
http://statistics.data.gov.uk/id/local-authority-district/23UB,Cheltenham Borough Council,457855,509017,COMENSURA LIMITED,C-C23100-0115,Refuse Collection-Temporary Agency Staff,23-Sep-11,340.51
http://statistics.data.gov.uk/id/local-authority-district/23UB,Cheltenham Borough Council,457855,509017,COMENSURA LIMITED,C-C23100-0115,Refuse Collection-Temporary Agency Staff,23-Sep-11,313.02
http://statistics.data.gov.uk/id/local-authority-district/23UB,Cheltenham Borough Council,457854,508884,COMENSURA LIMITED,C-C23100-0115,Refuse Collection-Temporary Agency Staff,23-Sep-11,255.91
http://statistics.data.gov.uk/id/local-authority-district/23UB,Cheltenham Borough Council,457854,508884,COMENSURA LIMITED,C-C23100-0115,Refuse Collection-Temporary Agency Staff,23-Sep-11,281.29
http://statistics.data.gov.uk/id/local-authority-district/23UB,Cheltenham Borough Council,457854,508884,COMENSURA LIMITED,C-C23100-0115,Refuse Collection-Temporary Agency Staff,23-Sep-11,234.77
http://statistics.data.gov.uk/id/local-authority-district/23UB,Cheltenham Borough Council,457854,508884,COMENSURA LIMITED,C-C23100-0115,Refuse Collection-Temporary Agency Staff,23-Sep-11,285.53
http://statistics.data.gov.uk/id/local-authority-district/23UB,Cheltenham Borough Council,457854,508884,COMENSURA LIMITED,C-C23100-0115,Refuse Collection-Temporary Agency Staff,23-Sep-11,90.95
http://statistics.data.gov.uk/id/local-authority-district/23UB,Cheltenham Borough Council,457854,508884,COMENSURA LIMITED,C-C23100-0115,Refuse Collection-Temporary Agency Staff,23-Sep-11,173.43
http://statistics.data.gov.uk/id/local-authority-district/23UB,Cheltenham Borough Council,457854,508884,COMENSURA LIMITED,C-C23100-0115,Refuse Collection-Temporary Agency Staff,23-Sep-11,192.47
http://statistics.data.gov.uk/id/local-authority-district/23UB,Cheltenham Borough Council,457855,509017,COMENSURA LIMITED,C-C23110-0115,Street Cleaning-Temporary Agency Staff,23-Sep-11,363.78
http://statistics.data.gov.uk/id/local-authority-district/23UB,Cheltenham Borough Council,457855,509017,COMENSURA LIMITED,C-C23110-0115,Street Cleaning-Temporary Agency Staff,23-Sep-11,382.81
http://statistics.data.gov.uk/id/local-authority-district/23UB,Cheltenham Borough Council,457855,509017,COMENSURA LIMITED,C-C23110-0115,Street Cleaning-Temporary Agency Staff,23-Sep-11,249.57
http://statistics.data.gov.uk/id/local-authority-district/23UB,Cheltenham Borough Council,457856,509159,COMENSURA LIMITED,C-C23110-0115,Street Cleaning-Temporary Agency Staff,23-Sep-11,418.77
http://statistics.data.gov.uk/id/local-authority-district/23UB,Cheltenham Borough Council,457857,509326,COMENSURA LIMITED,C-C23110-0115,Street Cleaning-Temporary Agency Staff,23-Sep-11,126.90
http://statistics.data.gov.uk/id/local-authority-district/23UB,Cheltenham Borough Council,457857,509326,COMENSURA LIMITED,C-C23110-0115,Street Cleaning-Temporary Agency Staff,23-Sep-11,363.78
http://statistics.data.gov.uk/id/local-authority-district/23UB,Cheltenham Borough Council,457856,509159,COMENSURA LIMITED,C-C23110-0115,Street Cleaning-Temporary Agency Staff,23-Sep-11,50.76
http://statistics.data.gov.uk/id/local-authority-district/23UB,Cheltenham Borough Council,457855,509017,COMENSURA LIMITED,C-C23110-0115,Street Cleaning-Temporary Agency Staff,23-Sep-11,334.17
http://statistics.data.gov.uk/id/local-authority-district/23UB,Cheltenham Borough Council,457855,509017,COMENSURA LIMITED,C-C23110-0115,Street Cleaning-Temporary Agency Staff,23-Sep-11,186.12
http://statistics.data.gov.uk/id/local-authority-district/23UB,Cheltenham Borough Council,457854,508884,COMENSURA LIMITED,C-C23125-0115,Recyl Bring Schms-Temporary Agency Staff,23-Sep-11,97.04
http://statistics.data.gov.uk/id/local-authority-district/23UB,Cheltenham Borough Council,457855,509017,COMENSURA LIMITED,C-C23125-0115,Recyl Bring Schms-Temporary Agency Staff,23-Sep-11,194.08
http://statistics.data.gov.uk/id/local-authority-district/23UB,Cheltenham Borough Council,457855,509017,COMENSURA LIMITED,C-C23160-0115,Env Maint Div-Temporary Agency Staff,23-Sep-11,341.55
http://statistics.data.gov.uk/id/local-authority-district/23UB,Cheltenham Borough Council,457856,509159,COMENSURA LIMITED,C-C23160-0115,Env Maint Div-Temporary Agency Staff,23-Sep-11,276.92
http://statistics.data.gov.uk/id/local-authority-district/23UB,Cheltenham Borough Council,457857,509326,COMENSURA LIMITED,C-C23160-0115,Env Maint Div-Temporary Agency Staff,23-Sep-11,316.48
http://statistics.data.gov.uk/id/local-authority-district/23UB,Cheltenham Borough Council,457857,509326,COMENSURA LIMITED,C-C23160-0115,Env Maint Div-Temporary Agency Staff,23-Sep-11,341.20
http://statistics.data.gov.uk/id/local-authority-district/23UB,Cheltenham Borough Council,457855,509017,COMENSURA LIMITED,C-C23160-0115,Env Maint Div-Temporary Agency Staff,23-Sep-11,336.60
http://statistics.data.gov.uk/id/local-authority-district/23UB,Cheltenham Borough Council,457856,509159,COMENSURA LIMITED,C-C23160-0115,Env Maint Div-Temporary Agency Staff,23-Sep-11,276.92
http://statistics.data.gov.uk/id/local-authority-district/23UB,Cheltenham Borough Council,457854,508884,COMENSURA LIMITED,C-C23180-0115,Rcycl Coltn Schms-Temporary Agency Staff,23-Sep-11,421.51
http://statistics.data.gov.uk/id/local-authority-district/23UB,Cheltenham Borough Council,457856,509159,COMENSURA LIMITED,C-C23180-0115,Rcycl Coltn Schms-Temporary Agency Staff,23-Sep-11,344.75
http://statistics.data.gov.uk/id/local-authority-district/23UB,Cheltenham Borough Council,457856,509159,COMENSURA LIMITED,C-C23180-0115,Rcycl Coltn Schms-Temporary Agency Staff,23-Sep-11,560.55
http://statistics.data.gov.uk/id/local-authority-district/23UB,Cheltenham Borough Council,457856,509159,COMENSURA LIMITED,C-C23180-0115,Rcycl Coltn Schms-Temporary Agency Staff,23-Sep-11,313.03
http://statistics.data.gov.uk/id/local-authority-district/23UB,Cheltenham Borough Council,457856,509159,COMENSURA LIMITED,C-C23180-0115,Rcycl Coltn Schms-Temporary Agency Staff,23-Sep-11,105.75
http://statistics.data.gov.uk/id/local-authority-district/23UB,Cheltenham Borough Council,457856,509159,COMENSURA LIMITED,C-C23180-0115,Rcycl Coltn Schms-Temporary Agency Staff,23-Sep-11,122.67
http://statistics.data.gov.uk/id/local-authority-district/23UB,Cheltenham Borough Council,457855,509017,COMENSURA LIMITED,C-C23180-0115,Rcycl Coltn Schms-Temporary Agency Staff,23-Sep-11,164.97
http://statistics.data.gov.uk/id/local-authority-district/23UB,Cheltenham Borough Council,457855,509017,COMENSURA LIMITED,C-C23180-0115,Rcycl Coltn Schms-Temporary Agency Staff,23-Sep-11,181.60
http://statistics.data.gov.uk/id/local-authority-district/23UB,Cheltenham Borough Council,457855,509017,COMENSURA LIMITED,C-C23180-0115,Rcycl Coltn Schms-Temporary Agency Staff,23-Sep-11,281.30
http://statistics.data.gov.uk/id/local-authority-district/23UB,Cheltenham Borough Council,457855,509017,COMENSURA LIMITED,C-C23180-0115,Rcycl Coltn Schms-Temporary Agency Staff,23-Sep-11,321.47
http://statistics.data.gov.uk/id/local-authority-district/23UB,Cheltenham Borough Council,457855,509017,COMENSURA LIMITED,C-C23180-0115,Rcycl Coltn Schms-Temporary Agency Staff,23-Sep-11,382.00
http://statistics.data.gov.uk/id/local-authority-district/23UB,Cheltenham Borough Council,457855,509017,COMENSURA LIMITED,C-C23180-0115,Rcycl Coltn Schms-Temporary Agency Staff,23-Sep-11,263.32
http://statistics.data.gov.uk/id/local-authority-district/23UB,Cheltenham Borough Council,457855,509017,COMENSURA LIMITED,C-C23180-0115,Rcycl Coltn Schms-Temporary Agency Staff,23-Sep-11,239.00
http://statistics.data.gov.uk/id/local-authority-district/23UB,Cheltenham Borough Council,457855,509017,COMENSURA LIMITED,C-C23180-0115,Rcycl Coltn Schms-Temporary Agency Staff,23-Sep-11,107.86
http://statistics.data.gov.uk/id/local-authority-district/23UB,Cheltenham Borough Council,457855,509017,COMENSURA LIMITED,C-C23180-0115,Rcycl Coltn Schms-Temporary Agency Staff,23-Sep-11,323.53
http://statistics.data.gov.uk/id/local-authority-district/23UB,Cheltenham Borough Council,457855,509017,COMENSURA LIMITED,C-C23180-0115,Rcycl Coltn Schms-Temporary Agency Staff,23-Sep-11,103.10
http://statistics.data.gov.uk/id/local-authority-district/23UB,Cheltenham Borough Council,457855,509017,COMENSURA LIMITED,C-C23180-0115,Rcycl Coltn Schms-Temporary Agency Staff,23-Sep-11,190.35
http://statistics.data.gov.uk/id/local-authority-district/23UB,Cheltenham Borough Council,457854,508884,COMENSURA LIMITED,C-C23180-0115,Rcycl Coltn Schms-Temporary Agency Staff,23-Sep-11,448.80
http://statistics.data.gov.uk/id/local-authority-district/23UB,Cheltenham Borough Council,457854,508884,COMENSURA LIMITED,C-C23180-0115,Rcycl Coltn Schms-Temporary Agency Staff,23-Sep-11,253.80
http://statistics.data.gov.uk/id/local-authority-district/23UB,Cheltenham Borough Council,457854,508884,COMENSURA LIMITED,C-C23180-0115,Rcycl Coltn Schms-Temporary Agency Staff,23-Sep-11,302.44
http://statistics.data.gov.uk/id/local-authority-district/23UB,Cheltenham Borough Council,457854,508884,COMENSURA LIMITED,C-C23180-0115,Rcycl Coltn Schms-Temporary Agency Staff,23-Sep-11,302.44
http://statistics.data.gov.uk/id/local-authority-district/23UB,Cheltenham Borough Council,457854,508884,COMENSURA LIMITED,C-C23180-0115,Rcycl Coltn Schms-Temporary Agency Staff,23-Sep-11,207.27
http://statistics.data.gov.uk/id/local-authority-district/23UB,Cheltenham Borough Council,457854,508884,COMENSURA LIMITED,C-C23180-0115,Rcycl Coltn Schms-Temporary Agency Staff,23-Sep-11,503.39
http://statistics.data.gov.uk/id/local-authority-district/23UB,Cheltenham Borough Council,457854,508884,COMENSURA LIMITED,C-C23180-0115,Rcycl Coltn Schms-Temporary Agency Staff,23-Sep-11,126.90
http://statistics.data.gov.uk/id/local-authority-district/23UB,Cheltenham Borough Council,457854,508884,COMENSURA LIMITED,C-C23180-0115,Rcycl Coltn Schms-Temporary Agency Staff,23-Sep-11,323.60
http://statistics.data.gov.uk/id/local-authority-district/23UB,Cheltenham Borough Council,457855,509017,COMENSURA LIMITED,C-C23180-0115,Rcycl Coltn Schms-Temporary Agency Staff,23-Sep-11,298.15
http://statistics.data.gov.uk/id/local-authority-district/23UB,Cheltenham Borough Council,457855,509017,COMENSURA LIMITED,C-C23180-0115,Rcycl Coltn Schms-Temporary Agency Staff,23-Sep-11,533.20
http://statistics.data.gov.uk/id/local-authority-district/23UB,Cheltenham Borough Council,457855,509017,COMENSURA LIMITED,C-C23180-0115,Rcycl Coltn Schms-Temporary Agency Staff,23-Sep-11,57.06
http://statistics.data.gov.uk/id/local-authority-district/23UB,Cheltenham Borough Council,457855,509017,COMENSURA LIMITED,C-C23180-0115,Rcycl Coltn Schms-Temporary Agency Staff,23-Sep-11,82.49
http://statistics.data.gov.uk/id/local-authority-district/23UB,Cheltenham Borough Council,457855,509017,COMENSURA LIMITED,C-C23180-0115,Rcycl Coltn Schms-Temporary Agency Staff,23-Sep-11,63.45
http://statistics.data.gov.uk/id/local-authority-district/23UB,Cheltenham Borough Council,457854,508884,COMENSURA LIMITED,C-C23180-0115,Rcycl Coltn Schms-Temporary Agency Staff,23-Sep-11,63.45
http://statistics.data.gov.uk/id/local-authority-district/23UB,Cheltenham Borough Council,457854,508884,COMENSURA LIMITED,C-C23180-0115,Rcycl Coltn Schms-Temporary Agency Staff,23-Sep-11,74.02
http://statistics.data.gov.uk/id/local-authority-district/23UB,Cheltenham Borough Council,457854,508884,COMENSURA LIMITED,C-C23180-0115,Rcycl Coltn Schms-Temporary Agency Staff,23-Sep-11,97.04
http://statistics.data.gov.uk/id/local-authority-district/23UB,Cheltenham Borough Council,457854,508884,COMENSURA LIMITED,C-C23180-0115,Rcycl Coltn Schms-Temporary Agency Staff,23-Sep-11,424.40
http://statistics.data.gov.uk/id/local-authority-district/23UB,Cheltenham Borough Council,457855,509017,COMENSURA LIMITED,C-C23180-0115,Rcycl Coltn Schms-Temporary Agency Staff,23-Sep-11,539.82
http://statistics.data.gov.uk/id/local-authority-district/23UB,Cheltenham Borough Council,457855,509017,COMENSURA LIMITED,C-C23180-0115,Rcycl Coltn Schms-Temporary Agency Staff,23-Sep-11,59.22
http://statistics.data.gov.uk/id/local-authority-district/23UB,Cheltenham Borough Council,457855,509017,COMENSURA LIMITED,C-C23180-0115,Rcycl Coltn Schms-Temporary Agency Staff,23-Sep-11,334.17
http://statistics.data.gov.uk/id/local-authority-district/23UB,Cheltenham Borough Council,457855,509017,COMENSURA LIMITED,C-C23180-0115,Rcycl Coltn Schms-Temporary Agency Staff,23-Sep-11,322.53
http://statistics.data.gov.uk/id/local-authority-district/23UB,Cheltenham Borough Council,457855,509017,COMENSURA LIMITED,C-C23180-0115,Rcycl Coltn Schms-Temporary Agency Staff,23-Sep-11,533.76
http://statistics.data.gov.uk/id/local-authority-district/23UB,Cheltenham Borough Council,457855,509017,COMENSURA LIMITED,C-C23180-0115,Rcycl Coltn Schms-Temporary Agency Staff,23-Sep-11,203.04
http://statistics.data.gov.uk/id/local-authority-district/23UB,Cheltenham Borough Council,457855,509017,COMENSURA LIMITED,C-C23180-0115,Rcycl Coltn Schms-Temporary Agency Staff,23-Sep-11,314.08
http://statistics.data.gov.uk/id/local-authority-district/23UB,Cheltenham Borough Council,457855,509017,COMENSURA LIMITED,C-C23180-0115,Rcycl Coltn Schms-Temporary Agency Staff,23-Sep-11,79.31
http://statistics.data.gov.uk/id/local-authority-district/23UB,Cheltenham Borough Council,457855,509017,COMENSURA LIMITED,C-C23180-0115,Rcycl Coltn Schms-Temporary Agency Staff,23-Sep-11,296.10
http://statistics.data.gov.uk/id/local-authority-district/23UB,Cheltenham Borough Council,457856,509159,COMENSURA LIMITED,C-C23180-0115,Rcycl Coltn Schms-Temporary Agency Staff,23-Sep-11,329.94
http://statistics.data.gov.uk/id/local-authority-district/23UB,Cheltenham Borough Council,457856,509159,COMENSURA LIMITED,C-C23180-0115,Rcycl Coltn Schms-Temporary Agency Staff,23-Sep-11,228.41
http://statistics.data.gov.uk/id/local-authority-district/23UB,Cheltenham Borough Council,457856,509159,COMENSURA LIMITED,C-C23180-0115,Rcycl Coltn Schms-Temporary Agency Staff,23-Sep-11,84.88
http://statistics.data.gov.uk/id/local-authority-district/23UB,Cheltenham Borough Council,457856,509159,COMENSURA LIMITED,C-C23180-0115,Rcycl Coltn Schms-Temporary Agency Staff,23-Sep-11,334.17
http://statistics.data.gov.uk/id/local-authority-district/23UB,Cheltenham Borough Council,457856,509159,COMENSURA LIMITED,C-C23180-0115,Rcycl Coltn Schms-Temporary Agency Staff,23-Sep-11,33.84
http://statistics.data.gov.uk/id/local-authority-district/23UB,Cheltenham Borough Council,457856,509159,COMENSURA LIMITED,C-C23180-0115,Rcycl Coltn Schms-Temporary Agency Staff,23-Sep-11,323.58
http://statistics.data.gov.uk/id/local-authority-district/23UB,Cheltenham Borough Council,457856,509159,COMENSURA LIMITED,C-C23180-0115,Rcycl Coltn Schms-Temporary Agency Staff,23-Sep-11,112.10
http://statistics.data.gov.uk/id/local-authority-district/23UB,Cheltenham Borough Council,457856,509159,COMENSURA LIMITED,C-C23180-0115,Rcycl Coltn Schms-Temporary Agency Staff,23-Sep-11,67.68
http://statistics.data.gov.uk/id/local-authority-district/23UB,Cheltenham Borough Council,457856,509159,COMENSURA LIMITED,C-C23180-0115,Rcycl Coltn Schms-Temporary Agency Staff,23-Sep-11,218.34
http://statistics.data.gov.uk/id/local-authority-district/23UB,Cheltenham Borough Council,457857,509326,COMENSURA LIMITED,C-C23180-0115,Rcycl Coltn Schms-Temporary Agency Staff,23-Sep-11,485.20
http://statistics.data.gov.uk/id/local-authority-district/23UB,Cheltenham Borough Council,457857,509326,COMENSURA LIMITED,C-C23180-0115,Rcycl Coltn Schms-Temporary Agency Staff,23-Sep-11,105.74
http://statistics.data.gov.uk/id/local-authority-district/23UB,Cheltenham Borough Council,457857,509326,COMENSURA LIMITED,C-C23180-0115,Rcycl Coltn Schms-Temporary Agency Staff,23-Sep-11,283.41
http://statistics.data.gov.uk/id/local-authority-district/23UB,Cheltenham Borough Council,457857,509326,COMENSURA LIMITED,C-C23180-0115,Rcycl Coltn Schms-Temporary Agency Staff,23-Sep-11,485.20
http://statistics.data.gov.uk/id/local-authority-district/23UB,Cheltenham Borough Council,457857,509326,COMENSURA LIMITED,C-C23180-0115,Rcycl Coltn Schms-Temporary Agency Staff,23-Sep-11,300.33
http://statistics.data.gov.uk/id/local-authority-district/23UB,Cheltenham Borough Council,457857,509326,COMENSURA LIMITED,C-C23180-0115,Rcycl Coltn Schms-Temporary Agency Staff,23-Sep-11,394.22
http://statistics.data.gov.uk/id/local-authority-district/23UB,Cheltenham Borough Council,457857,509326,COMENSURA LIMITED,C-C23180-0115,Rcycl Coltn Schms-Temporary Agency Staff,23-Sep-11,306.68
http://statistics.data.gov.uk/id/local-authority-district/23UB,Cheltenham Borough Council,457857,509326,COMENSURA LIMITED,C-C23180-0115,Rcycl Coltn Schms-Temporary Agency Staff,23-Sep-11,274.95
http://statistics.data.gov.uk/id/local-authority-district/23UB,Cheltenham Borough Council,457857,509326,COMENSURA LIMITED,C-C23180-0115,Rcycl Coltn Schms-Temporary Agency Staff,23-Sep-11,490.86
http://statistics.data.gov.uk/id/local-authority-district/23UB,Cheltenham Borough Council,457857,509326,COMENSURA LIMITED,C-C23180-0115,Rcycl Coltn Schms-Temporary Agency Staff,23-Sep-11,171.31
http://statistics.data.gov.uk/id/local-authority-district/23UB,Cheltenham Borough Council,457857,509326,COMENSURA LIMITED,C-C23180-0115,Rcycl Coltn Schms-Temporary Agency Staff,23-Sep-11,219.95
http://statistics.data.gov.uk/id/local-authority-district/23UB,Cheltenham Borough Council,457857,509326,COMENSURA LIMITED,C-C23180-0115,Rcycl Coltn Schms-Temporary Agency Staff,23-Sep-11,107.87
http://statistics.data.gov.uk/id/local-authority-district/23UB,Cheltenham Borough Council,457857,509326,COMENSURA LIMITED,C-C23180-0115,Rcycl Coltn Schms-Temporary Agency Staff,23-Sep-11,63.45
http://statistics.data.gov.uk/id/local-authority-district/23UB,Cheltenham Borough Council,457857,509326,COMENSURA LIMITED,C-C23180-0115,Rcycl Coltn Schms-Temporary Agency Staff,23-Sep-11,239.00
http://statistics.data.gov.uk/id/local-authority-district/23UB,Cheltenham Borough Council,457857,509326,COMENSURA LIMITED,C-C23180-0115,Rcycl Coltn Schms-Temporary Agency Staff,23-Sep-11,219.96
http://statistics.data.gov.uk/id/local-authority-district/23UB,Cheltenham Borough Council,457857,509326,COMENSURA LIMITED,C-C23180-0115,Rcycl Coltn Schms-Temporary Agency Staff,23-Sep-11,120.55
http://statistics.data.gov.uk/id/local-authority-district/23UB,Cheltenham Borough Council,457857,509326,COMENSURA LIMITED,C-C23180-0115,Rcycl Coltn Schms-Temporary Agency Staff,23-Sep-11,97.04
http://statistics.data.gov.uk/id/local-authority-district/23UB,Cheltenham Borough Council,457857,509326,COMENSURA LIMITED,C-C23180-0115,Rcycl Coltn Schms-Temporary Agency Staff,23-Sep-11,302.44
http://statistics.data.gov.uk/id/local-authority-district/23UB,Cheltenham Borough Council,457854,508884,COMENSURA LIMITED,C-C23180-0115,Rcycl Coltn Schms-Temporary Agency Staff,23-Sep-11,302.44
http://statistics.data.gov.uk/id/local-authority-district/23UB,Cheltenham Borough Council,457854,508884,COMENSURA LIMITED,C-C23180-0115,Rcycl Coltn Schms-Temporary Agency Staff,23-Sep-11,325.70
http://statistics.data.gov.uk/id/local-authority-district/23UB,Cheltenham Borough Council,457854,508884,COMENSURA LIMITED,C-C23180-0115,Rcycl Coltn Schms-Temporary Agency Staff,23-Sep-11,551.46
http://statistics.data.gov.uk/id/local-authority-district/23UB,Cheltenham Borough Council,457854,508884,COMENSURA LIMITED,C-C23180-0115,Rcycl Coltn Schms-Temporary Agency Staff,23-Sep-11,230.54
http://statistics.data.gov.uk/id/local-authority-district/23UB,Cheltenham Borough Council,457854,508884,COMENSURA LIMITED,C-C23180-0115,Rcycl Coltn Schms-Temporary Agency Staff,23-Sep-11,54.99
http://statistics.data.gov.uk/id/local-authority-district/23UB,Cheltenham Borough Council,457857,509326,COMENSURA LIMITED,C-C23180-0115,Rcycl Coltn Schms-Temporary Agency Staff,23-Sep-11,177.67
http://statistics.data.gov.uk/id/local-authority-district/23UB,Cheltenham Borough Council,457857,509326,COMENSURA LIMITED,C-C23180-0115,Rcycl Coltn Schms-Temporary Agency Staff,23-Sep-11,313.26
http://statistics.data.gov.uk/id/local-authority-district/23UB,Cheltenham Borough Council,457857,509326,COMENSURA LIMITED,C-C23180-0115,Rcycl Coltn Schms-Temporary Agency Staff,23-Sep-11,308.79
http://statistics.data.gov.uk/id/local-authority-district/23UB,Cheltenham Borough Council,457857,509326,COMENSURA LIMITED,C-C23180-0115,Rcycl Coltn Schms-Temporary Agency Staff,23-Sep-11,264.37
http://statistics.data.gov.uk/id/local-authority-district/23UB,Cheltenham Borough Council,457857,509326,COMENSURA LIMITED,C-C23180-0115,Rcycl Coltn Schms-Temporary Agency Staff,23-Sep-11,175.54
http://statistics.data.gov.uk/id/local-authority-district/23UB,Cheltenham Borough Council,457857,509326,COMENSURA LIMITED,C-C23180-0115,Rcycl Coltn Schms-Temporary Agency Staff,23-Sep-11,126.90
http://statistics.data.gov.uk/id/local-authority-district/23UB,Cheltenham Borough Council,457856,509159,COMENSURA LIMITED,C-C23180-0115,Rcycl Coltn Schms-Temporary Agency Staff,23-Sep-11,184.00
http://statistics.data.gov.uk/id/local-authority-district/23UB,Cheltenham Borough Council,457856,509159,COMENSURA LIMITED,C-C23180-0115,Rcycl Coltn Schms-Temporary Agency Staff,23-Sep-11,67.68
http://statistics.data.gov.uk/id/local-authority-district/23UB,Cheltenham Borough Council,457856,509159,COMENSURA LIMITED,C-C23180-0115,Rcycl Coltn Schms-Temporary Agency Staff,23-Sep-11,74.02
http://statistics.data.gov.uk/id/local-authority-district/23UB,Cheltenham Borough Council,457856,509159,COMENSURA LIMITED,C-C23180-0115,Rcycl Coltn Schms-Temporary Agency Staff,23-Sep-11,109.17
http://statistics.data.gov.uk/id/local-authority-district/23UB,Cheltenham Borough Council,457856,509159,COMENSURA LIMITED,C-C23180-0115,Rcycl Coltn Schms-Temporary Agency Staff,23-Sep-11,376.82
http://statistics.data.gov.uk/id/local-authority-district/23UB,Cheltenham Borough Council,457856,509159,COMENSURA LIMITED,C-C23180-0115,Rcycl Coltn Schms-Temporary Agency Staff,23-Sep-11,372.24
http://statistics.data.gov.uk/id/local-authority-district/23UB,Cheltenham Borough Council,457856,509159,COMENSURA LIMITED,C-C23180-0115,Rcycl Coltn Schms-Temporary Agency Staff,23-Sep-11,126.90
http://statistics.data.gov.uk/id/local-authority-district/23UB,Cheltenham Borough Council,457856,509159,COMENSURA LIMITED,C-C23180-0115,Rcycl Coltn Schms-Temporary Agency Staff,23-Sep-11,323.58
http://statistics.data.gov.uk/id/local-authority-district/23UB,Cheltenham Borough Council,457856,509159,COMENSURA LIMITED,C-C23180-0115,Rcycl Coltn Schms-Temporary Agency Staff,23-Sep-11,512.48
http://statistics.data.gov.uk/id/local-authority-district/23UB,Cheltenham Borough Council,457856,509159,COMENSURA LIMITED,C-C23180-0115,Rcycl Coltn Schms-Temporary Agency Staff,23-Sep-11,338.40
http://statistics.data.gov.uk/id/local-authority-district/23UB,Cheltenham Borough Council,457856,509159,COMENSURA LIMITED,C-C23180-0115,Rcycl Coltn Schms-Temporary Agency Staff,23-Sep-11,334.17
http://statistics.data.gov.uk/id/local-authority-district/23UB,Cheltenham Borough Council,457856,509159,COMENSURA LIMITED,C-C23180-0115,Rcycl Coltn Schms-Temporary Agency Staff,23-Sep-11,409.38
http://statistics.data.gov.uk/id/local-authority-district/23UB,Cheltenham Borough Council,457856,509159,COMENSURA LIMITED,C-C23180-0115,Rcycl Coltn Schms-Temporary Agency Staff,23-Sep-11,363.78
http://statistics.data.gov.uk/id/local-authority-district/23UB,Cheltenham Borough Council,457856,509159,COMENSURA LIMITED,C-C23180-0115,Rcycl Coltn Schms-Temporary Agency Staff,23-Sep-11,527.64
http://statistics.data.gov.uk/id/local-authority-district/23UB,Cheltenham Borough Council,457854,508884,COMENSURA LIMITED,C-C23180-0115,Rcycl Coltn Schms-Temporary Agency Staff,23-Sep-11,304.56
http://statistics.data.gov.uk/id/local-authority-district/23UB,Cheltenham Borough Council,457854,508884,COMENSURA LIMITED,C-C23180-0115,Rcycl Coltn Schms-Temporary Agency Staff,23-Sep-11,323.60
http://statistics.data.gov.uk/id/local-authority-district/23UB,Cheltenham Borough Council,457854,508884,COMENSURA LIMITED,C-C23180-0115,Rcycl Coltn Schms-Temporary Agency Staff,23-Sep-11,205.16
http://statistics.data.gov.uk/id/local-authority-district/23UB,Cheltenham Borough Council,457854,508884,COMENSURA LIMITED,C-C23180-0115,Rcycl Coltn Schms-Temporary Agency Staff,23-Sep-11,298.21
http://statistics.data.gov.uk/id/local-authority-district/23UB,Cheltenham Borough Council,457854,508884,COMENSURA LIMITED,C-C23180-0115,Rcycl Coltn Schms-Temporary Agency Staff,23-Sep-11,42.30
http://statistics.data.gov.uk/id/local-authority-district/23UB,Cheltenham Borough Council,457854,508884,COMENSURA LIMITED,C-C23180-0115,Rcycl Coltn Schms-Temporary Agency Staff,23-Sep-11,69.80
http://statistics.data.gov.uk/id/local-authority-district/23UB,Cheltenham Borough Council,457854,508884,COMENSURA LIMITED,C-C23180-0115,Rcycl Coltn Schms-Temporary Agency Staff,23-Sep-11,57.10
http://statistics.data.gov.uk/id/local-authority-district/23UB,Cheltenham Borough Council,457854,508884,COMENSURA LIMITED,C-C23180-0115,Rcycl Coltn Schms-Temporary Agency Staff,23-Sep-11,120.56
http://statistics.data.gov.uk/id/local-authority-district/23UB,Cheltenham Borough Council,457854,508884,COMENSURA LIMITED,C-C23180-0115,Rcycl Coltn Schms-Temporary Agency Staff,23-Sep-11,97.04
http://statistics.data.gov.uk/id/local-authority-district/23UB,Cheltenham Borough Council,457854,508884,COMENSURA LIMITED,C-C23180-0115,Rcycl Coltn Schms-Temporary Agency Staff,23-Sep-11,283.75
http://statistics.data.gov.uk/id/local-authority-district/23UB,Cheltenham Borough Council,457854,508884,COMENSURA LIMITED,C-C23180-0115,Rcycl Coltn Schms-Temporary Agency Staff,23-Sep-11,355.32
http://statistics.data.gov.uk/id/local-authority-district/23UB,Cheltenham Borough Council,457854,508884,COMENSURA LIMITED,C-C23180-0115,Rcycl Coltn Schms-Temporary Agency Staff,23-Sep-11,293.98
http://statistics.data.gov.uk/id/local-authority-district/23UB,Cheltenham Borough Council,457854,508884,COMENSURA LIMITED,C-C23180-0115,Rcycl Coltn Schms-Temporary Agency Staff,23-Sep-11,283.41
http://statistics.data.gov.uk/id/local-authority-district/23UB,Cheltenham Borough Council,457854,508884,COMENSURA LIMITED,C-C23180-0115,Rcycl Coltn Schms-Temporary Agency Staff,23-Sep-11,298.21
http://statistics.data.gov.uk/id/local-authority-district/23UB,Cheltenham Borough Council,457854,508884,COMENSURA LIMITED,C-C23190-0115,Garden Collectn-Temporary Agency Staff,23-Sep-11,192.47
http://statistics.data.gov.uk/id/local-authority-district/23UB,Cheltenham Borough Council,457854,508884,COMENSURA LIMITED,C-C23190-0115,Garden Collectn-Temporary Agency Staff,23-Sep-11,54.99
http://statistics.data.gov.uk/id/local-authority-district/23UB,Cheltenham Borough Council,457855,509017,COMENSURA LIMITED,C-C23190-0115,Garden Collectn-Temporary Agency Staff,23-Sep-11,106.76
http://statistics.data.gov.uk/id/local-authority-district/23UB,Cheltenham Borough Council,457855,509017,COMENSURA LIMITED,C-C23190-0115,Garden Collectn-Temporary Agency Staff,23-Sep-11,184.00
http://statistics.data.gov.uk/id/local-authority-district/23UB,Cheltenham Borough Council,457855,509017,COMENSURA LIMITED,C-C23190-0115,Garden Collectn-Temporary Agency Staff,23-Sep-11,40.86
http://statistics.data.gov.uk/id/local-authority-district/23UB,Cheltenham Borough Council,457855,509017,COMENSURA LIMITED,C-C23190-0115,Garden Collectn-Temporary Agency Staff,23-Sep-11,46.53
http://statistics.data.gov.uk/id/local-authority-district/23UB,Cheltenham Borough Council,457855,509017,COMENSURA LIMITED,C-C23190-0115,Garden Collectn-Temporary Agency Staff,23-Sep-11,40.18
http://statistics.data.gov.uk/id/local-authority-district/23UB,Cheltenham Borough Council,457855,509017,COMENSURA LIMITED,C-C23190-0115,Garden Collectn-Temporary Agency Staff,23-Sep-11,210.40
http://statistics.data.gov.uk/id/local-authority-district/23UB,Cheltenham Borough Council,457857,509326,COMENSURA LIMITED,C-C23190-0115,Garden Collectn-Temporary Agency Staff,23-Sep-11,48.64
http://statistics.data.gov.uk/id/local-authority-district/23UB,Cheltenham Borough Council,457857,509326,COMENSURA LIMITED,C-C23190-0115,Garden Collectn-Temporary Agency Staff,23-Sep-11,93.06
http://statistics.data.gov.uk/id/local-authority-district/23UB,Cheltenham Borough Council,457857,509326,COMENSURA LIMITED,C-C23190-0115,Garden Collectn-Temporary Agency Staff,23-Sep-11,50.76
http://statistics.data.gov.uk/id/local-authority-district/23UB,Cheltenham Borough Council,457857,509326,COMENSURA LIMITED,C-C23190-0115,Garden Collectn-Temporary Agency Staff,23-Sep-11,203.04
http://statistics.data.gov.uk/id/local-authority-district/23UB,Cheltenham Borough Council,457856,509159,COMENSURA LIMITED,C-C23190-0115,Garden Collectn-Temporary Agency Staff,23-Sep-11,46.53
http://statistics.data.gov.uk/id/local-authority-district/23UB,Cheltenham Borough Council,457856,509159,COMENSURA LIMITED,C-C23190-0115,Garden Collectn-Temporary Agency Staff,23-Sep-11,50.76
http://statistics.data.gov.uk/id/local-authority-district/23UB,Cheltenham Borough Council,457856,509159,COMENSURA LIMITED,C-C23190-0115,Garden Collectn-Temporary Agency Staff,23-Sep-11,105.75
http://statistics.data.gov.uk/id/local-authority-district/23UB,Cheltenham Borough Council,457856,509159,COMENSURA LIMITED,C-C23190-0115,Garden Collectn-Temporary Agency Staff,23-Sep-11,97.04
http://statistics.data.gov.uk/id/local-authority-district/23UB,Cheltenham Borough Council,457856,509159,COMENSURA LIMITED,C-C23190-0115,Garden Collectn-Temporary Agency Staff,23-Sep-11,228.42
http://statistics.data.gov.uk/id/local-authority-district/23UB,Cheltenham Borough Council,457854,508884,COMENSURA LIMITED,C-C23190-0115,Garden Collectn-Temporary Agency Staff,23-Sep-11,44.42
http://statistics.data.gov.uk/id/local-authority-district/23UB,Cheltenham Borough Council,457854,508884,COMENSURA LIMITED,C-C23190-0115,Garden Collectn-Temporary Agency Staff,23-Sep-11,184.02
http://statistics.data.gov.uk/id/local-authority-district/23UB,Cheltenham Borough Council,457855,509017,COMENSURA LIMITED,C-D12500-0115,Property Servs-Temporary Agency Staff,23-Sep-11,84.60
http://statistics.data.gov.uk/id/local-authority-district/23UB,Cheltenham Borough Council,457856,509159,COMENSURA LIMITED,C-D12500-0115,Property Servs-Temporary Agency Staff,23-Sep-11,105.75
http://statistics.data.gov.uk/id/local-authority-district/23UB,Cheltenham Borough Council,457854,508884,COMENSURA LIMITED,C-D12500-0115,Property Servs-Temporary Agency Staff,23-Sep-11,63.45
http://statistics.data.gov.uk/id/local-authority-district/23UB,Cheltenham Borough Council,457857,509326,COMENSURA LIMITED,C-D12500-0115,Property Servs-Temporary Agency Staff,23-Sep-11,105.75
http://statistics.data.gov.uk/id/local-authority-district/23UB,Cheltenham Borough Council,457855,509017,COMENSURA LIMITED,C-D13100-0115,Muni Off Blgs-Temporary Agency Staff,23-Sep-11,59.22
http://statistics.data.gov.uk/id/local-authority-district/23UB,Cheltenham Borough Council,457856,509159,COMENSURA LIMITED,C-D13100-0115,Muni Off Blgs-Temporary Agency Staff,23-Sep-11,21.15
http://statistics.data.gov.uk/id/local-authority-district/23UB,Cheltenham Borough Council,457854,508884,COMENSURA LIMITED,C-D13100-0115,Muni Off Blgs-Temporary Agency Staff,23-Sep-11,114.21
http://statistics.data.gov.uk/id/local-authority-district/23UB,Cheltenham Borough Council,457854,508884,COMENSURA LIMITED,C-D13100-0115,Muni Off Blgs-Temporary Agency Staff,23-Sep-11,105.75
http://statistics.data.gov.uk/id/local-authority-district/23UB,Cheltenham Borough Council,457856,509159,COMENSURA LIMITED,C-E36200-0115,On-St Car Prkng-Temporary Agency Staff,23-Sep-11,575.20
http://statistics.data.gov.uk/id/local-authority-district/23UB,Cheltenham Borough Council,457857,509326,COMENSURA LIMITED,C-E36200-0115,On-St Car Prkng-Temporary Agency Staff,23-Sep-11,513.34
http://statistics.data.gov.uk/id/local-authority-district/23UB,Cheltenham Borough Council,457854,508884,COMENSURA LIMITED,C-E36200-0115,On-St Car Prkng-Temporary Agency Staff,23-Sep-11,531.89
http://statistics.data.gov.uk/id/local-authority-district/23UB,Cheltenham Borough Council,457854,508884,COMENSURA LIMITED,C-E36200-0115,On-St Car Prkng-Temporary Agency Staff,23-Sep-11,296.88
http://statistics.data.gov.uk/id/local-authority-district/23UB,Cheltenham Borough Council,457855,509017,COMENSURA LIMITED,C-E63100-0115,Cemetery & Crem-Temporary Agency Staff,23-Sep-11,249.57
http://statistics.data.gov.uk/id/local-authority-district/23UB,Cheltenham Borough Council,457855,509017,COMENSURA LIMITED,C-E63100-0115,Cemetery & Crem-Temporary Agency Staff,23-Sep-11,249.57
http://statistics.data.gov.uk/id/local-authority-district/23UB,Cheltenham Borough Council,457854,508884,COMENSURA LIMITED,C-E63100-0115,Cemetery & Crem-Temporary Agency Staff,23-Sep-11,313.02
http://statistics.data.gov.uk/id/local-authority-district/23UB,Cheltenham Borough Council,457854,508884,COMENSURA LIMITED,C-E63100-0115,Cemetery & Crem-Temporary Agency Staff,23-Sep-11,296.10
http://statistics.data.gov.uk/id/local-authority-district/23UB,Cheltenham Borough Council,457857,509326,COMENSURA LIMITED,C-E63100-0115,Cemetery & Crem-Temporary Agency Staff,23-Sep-11,253.80
http://statistics.data.gov.uk/id/local-authority-district/23UB,Cheltenham Borough Council,457857,509326,COMENSURA LIMITED,C-E63100-0115,Cemetery & Crem-Temporary Agency Staff,23-Sep-11,313.02
http://statistics.data.gov.uk/id/local-authority-district/23UB,Cheltenham Borough Council,457857,509326,COMENSURA LIMITED,C-E63100-0115,Cemetery & Crem-Temporary Agency Staff,23-Sep-11,249.57
http://statistics.data.gov.uk/id/local-authority-district/23UB,Cheltenham Borough Council,457857,509326,COMENSURA LIMITED,C-E63100-0115,Cemetery & Crem-Temporary Agency Staff,23-Sep-11,126.90
http://statistics.data.gov.uk/id/local-authority-district/23UB,Cheltenham Borough Council,457856,509159,COMENSURA LIMITED,C-E63100-0115,Cemetery & Crem-Temporary Agency Staff,23-Sep-11,313.02
http://statistics.data.gov.uk/id/local-authority-district/23UB,Cheltenham Borough Council,457856,509159,COMENSURA LIMITED,C-E63100-0115,Cemetery & Crem-Temporary Agency Staff,23-Sep-11,291.87
http://statistics.data.gov.uk/id/local-authority-district/23UB,Cheltenham Borough Council,457855,509017,COMENSURA LIMITED,C-E63100-0115,Cemetery & Crem-Temporary Agency Staff,23-Sep-11,249.57
http://statistics.data.gov.uk/id/local-authority-district/23UB,Cheltenham Borough Council,457854,508884,COMENSURA LIMITED,C-E63100-0115,Cemetery & Crem-Temporary Agency Staff,23-Sep-11,313.02
http://statistics.data.gov.uk/id/local-authority-district/23UB,Cheltenham Borough Council,457857,509326,COMENSURA LIMITED,C-GCERP-3501,GO Capital Cost-Hire of outside services,23-Sep-11,574.40
http://statistics.data.gov.uk/id/local-authority-district/23UB,Cheltenham Borough Council,457857,509326,COMENSURA LIMITED,C-GCERP-3501,GO Capital Cost-Hire of outside services,23-Sep-11,524.14
http://statistics.data.gov.uk/id/local-authority-district/23UB,Cheltenham Borough Council,457854,508884,COMENSURA LIMITED,C-L41100-0115,AG & M-Temporary Agency Staff,23-Sep-11,16.34
http://statistics.data.gov.uk/id/local-authority-district/23UB,Cheltenham Borough Council,458339,509506,COMENSURA LIMITED,C-C22100-0115,Green Env Div-Temporary Agency Staff,29-Sep-11,277.08
http://statistics.data.gov.uk/id/local-authority-district/23UB,Cheltenham Borough Council,458339,509506,COMENSURA LIMITED,C-C22100-0115,Green Env Div-Temporary Agency Staff,29-Sep-11,346.88
http://statistics.data.gov.uk/id/local-authority-district/23UB,Cheltenham Borough Council,458339,509506,COMENSURA LIMITED,C-C22100-0115,Green Env Div-Temporary Agency Staff,29-Sep-11,346.88
http://statistics.data.gov.uk/id/local-authority-district/23UB,Cheltenham Borough Council,458339,509506,COMENSURA LIMITED,C-C22100-0115,Green Env Div-Temporary Agency Staff,29-Sep-11,346.88
http://statistics.data.gov.uk/id/local-authority-district/23UB,Cheltenham Borough Council,458339,509506,COMENSURA LIMITED,C-C22100-0115,Green Env Div-Temporary Agency Staff,29-Sep-11,346.88
http://statistics.data.gov.uk/id/local-authority-district/23UB,Cheltenham Borough Council,458339,509506,COMENSURA LIMITED,C-C22105-0115,Hsg Forecourts-Temporary Agency Staff,29-Sep-11,346.86
http://statistics.data.gov.uk/id/local-authority-district/23UB,Cheltenham Borough Council,458339,509506,COMENSURA LIMITED,C-C22105-0115,Hsg Forecourts-Temporary Agency Staff,29-Sep-11,346.86
http://statistics.data.gov.uk/id/local-authority-district/23UB,Cheltenham Borough Council,458339,509506,COMENSURA LIMITED,C-C23100-0115,Refuse Collection-Temporary Agency Staff,29-Sep-11,272.25
http://statistics.data.gov.uk/id/local-authority-district/23UB,Cheltenham Borough Council,458339,509506,COMENSURA LIMITED,C-C23100-0115,Refuse Collection-Temporary Agency Staff,29-Sep-11,249.57
http://statistics.data.gov.uk/id/local-authority-district/23UB,Cheltenham Borough Council,458339,509506,COMENSURA LIMITED,C-C23100-0115,Refuse Collection-Temporary Agency Staff,29-Sep-11,249.58
http://statistics.data.gov.uk/id/local-authority-district/23UB,Cheltenham Borough Council,458339,509506,COMENSURA LIMITED,C-C23100-0115,Refuse Collection-Temporary Agency Staff,29-Sep-11,54.99
http://statistics.data.gov.uk/id/local-authority-district/23UB,Cheltenham Borough Council,458339,509506,COMENSURA LIMITED,C-C23100-0115,Refuse Collection-Temporary Agency Staff,29-Sep-11,272.83
http://statistics.data.gov.uk/id/local-authority-district/23UB,Cheltenham Borough Council,458339,509506,COMENSURA LIMITED,C-C23100-0115,Refuse Collection-Temporary Agency Staff,29-Sep-11,258.03
http://statistics.data.gov.uk/id/local-authority-district/23UB,Cheltenham Borough Council,458339,509506,COMENSURA LIMITED,C-C23100-0115,Refuse Collection-Temporary Agency Staff,29-Sep-11,95.18
http://statistics.data.gov.uk/id/local-authority-district/23UB,Cheltenham Borough Council,458339,509506,COMENSURA LIMITED,C-C23100-0115,Refuse Collection-Temporary Agency Staff,29-Sep-11,148.05
http://statistics.data.gov.uk/id/local-authority-district/23UB,Cheltenham Borough Council,458339,509506,COMENSURA LIMITED,C-C23100-0115,Refuse Collection-Temporary Agency Staff,29-Sep-11,249.58
http://statistics.data.gov.uk/id/local-authority-district/23UB,Cheltenham Borough Council,458339,509506,COMENSURA LIMITED,C-C23100-0115,Refuse Collection-Temporary Agency Staff,29-Sep-11,251.69
http://statistics.data.gov.uk/id/local-authority-district/23UB,Cheltenham Borough Council,458339,509506,COMENSURA LIMITED,C-C23100-0115,Refuse Collection-Temporary Agency Staff,29-Sep-11,245.35
http://statistics.data.gov.uk/id/local-authority-district/23UB,Cheltenham Borough Council,458339,509506,COMENSURA LIMITED,C-C23100-0115,Refuse Collection-Temporary Agency Staff,29-Sep-11,485.20
http://statistics.data.gov.uk/id/local-authority-district/23UB,Cheltenham Borough Council,458339,509506,COMENSURA LIMITED,C-C23100-0115,Refuse Collection-Temporary Agency Staff,29-Sep-11,46.53
http://statistics.data.gov.uk/id/local-authority-district/23UB,Cheltenham Borough Council,458339,509506,COMENSURA LIMITED,C-C23100-0115,Refuse Collection-Temporary Agency Staff,29-Sep-11,207.27
http://statistics.data.gov.uk/id/local-authority-district/23UB,Cheltenham Borough Council,458339,509506,COMENSURA LIMITED,C-C23100-0115,Refuse Collection-Temporary Agency Staff,29-Sep-11,340.51
http://statistics.data.gov.uk/id/local-authority-district/23UB,Cheltenham Borough Council,458339,509506,COMENSURA LIMITED,C-C23100-0115,Refuse Collection-Temporary Agency Staff,29-Sep-11,242.55
http://statistics.data.gov.uk/id/local-authority-district/23UB,Cheltenham Borough Council,458339,509506,COMENSURA LIMITED,C-C23100-0115,Refuse Collection-Temporary Agency Staff,29-Sep-11,126.90
http://statistics.data.gov.uk/id/local-authority-district/23UB,Cheltenham Borough Council,458339,509506,COMENSURA LIMITED,C-C23160-0115,Env Maint Div-Temporary Agency Staff,29-Sep-11,276.92
http://statistics.data.gov.uk/id/local-authority-district/23UB,Cheltenham Borough Council,458339,509506,COMENSURA LIMITED,C-C23160-0115,Env Maint Div-Temporary Agency Staff,29-Sep-11,346.15
http://statistics.data.gov.uk/id/local-authority-district/23UB,Cheltenham Borough Council,458339,509506,COMENSURA LIMITED,C-C23160-0115,Env Maint Div-Temporary Agency Staff,29-Sep-11,346.15
http://statistics.data.gov.uk/id/local-authority-district/23UB,Cheltenham Borough Council,458339,509506,COMENSURA LIMITED,C-C23180-0115,Rcycl Coltn Schms-Temporary Agency Staff,29-Sep-11,63.45
http://statistics.data.gov.uk/id/local-authority-district/23UB,Cheltenham Borough Council,458339,509506,COMENSURA LIMITED,C-C23180-0115,Rcycl Coltn Schms-Temporary Agency Staff,29-Sep-11,323.61
http://statistics.data.gov.uk/id/local-authority-district/23UB,Cheltenham Borough Council,458339,509506,COMENSURA LIMITED,C-C23180-0115,Rcycl Coltn Schms-Temporary Agency Staff,29-Sep-11,327.82
http://statistics.data.gov.uk/id/local-authority-district/23UB,Cheltenham Borough Council,458339,509506,COMENSURA LIMITED,C-C23180-0115,Rcycl Coltn Schms-Temporary Agency Staff,29-Sep-11,196.70
http://statistics.data.gov.uk/id/local-authority-district/23UB,Cheltenham Borough Council,458339,509506,COMENSURA LIMITED,C-C23180-0115,Rcycl Coltn Schms-Temporary Agency Staff,29-Sep-11,200.93
http://statistics.data.gov.uk/id/local-authority-district/23UB,Cheltenham Borough Council,458339,509506,COMENSURA LIMITED,C-C23180-0115,Rcycl Coltn Schms-Temporary Agency Staff,29-Sep-11,448.81
http://statistics.data.gov.uk/id/local-authority-district/23UB,Cheltenham Borough Council,458339,509506,COMENSURA LIMITED,C-C23180-0115,Rcycl Coltn Schms-Temporary Agency Staff,29-Sep-11,103.10
http://statistics.data.gov.uk/id/local-authority-district/23UB,Cheltenham Borough Council,458339,509506,COMENSURA LIMITED,C-C23180-0115,Rcycl Coltn Schms-Temporary Agency Staff,29-Sep-11,74.02
http://statistics.data.gov.uk/id/local-authority-district/23UB,Cheltenham Borough Council,458339,509506,COMENSURA LIMITED,C-C23180-0115,Rcycl Coltn Schms-Temporary Agency Staff,29-Sep-11,323.61
http://statistics.data.gov.uk/id/local-authority-district/23UB,Cheltenham Borough Council,458339,509506,COMENSURA LIMITED,C-C23180-0115,Rcycl Coltn Schms-Temporary Agency Staff,29-Sep-11,332.06
http://statistics.data.gov.uk/id/local-authority-district/23UB,Cheltenham Borough Council,458339,509506,COMENSURA LIMITED,C-C23180-0115,Rcycl Coltn Schms-Temporary Agency Staff,29-Sep-11,279.18
http://statistics.data.gov.uk/id/local-authority-district/23UB,Cheltenham Borough Council,458339,509506,COMENSURA LIMITED,C-C23180-0115,Rcycl Coltn Schms-Temporary Agency Staff,29-Sep-11,118.27
http://statistics.data.gov.uk/id/local-authority-district/23UB,Cheltenham Borough Council,458339,509506,COMENSURA LIMITED,C-C23180-0115,Rcycl Coltn Schms-Temporary Agency Staff,29-Sep-11,76.14
http://statistics.data.gov.uk/id/local-authority-district/23UB,Cheltenham Borough Council,458339,509506,COMENSURA LIMITED,C-C23180-0115,Rcycl Coltn Schms-Temporary Agency Staff,29-Sep-11,97.09
http://statistics.data.gov.uk/id/local-authority-district/23UB,Cheltenham Borough Council,458339,509506,COMENSURA LIMITED,C-C23180-0115,Rcycl Coltn Schms-Temporary Agency Staff,29-Sep-11,329.15
http://statistics.data.gov.uk/id/local-authority-district/23UB,Cheltenham Borough Council,458339,509506,COMENSURA LIMITED,C-C23180-0115,Rcycl Coltn Schms-Temporary Agency Staff,29-Sep-11,357.44
http://statistics.data.gov.uk/id/local-authority-district/23UB,Cheltenham Borough Council,458339,509506,COMENSURA LIMITED,C-C23180-0115,Rcycl Coltn Schms-Temporary Agency Staff,29-Sep-11,274.96
http://statistics.data.gov.uk/id/local-authority-district/23UB,Cheltenham Borough Council,458339,509506,COMENSURA LIMITED,C-C23180-0115,Rcycl Coltn Schms-Temporary Agency Staff,29-Sep-11,78.26
http://statistics.data.gov.uk/id/local-authority-district/23UB,Cheltenham Borough Council,458339,509506,COMENSURA LIMITED,C-C23180-0115,Rcycl Coltn Schms-Temporary Agency Staff,29-Sep-11,90.18
http://statistics.data.gov.uk/id/local-authority-district/23UB,Cheltenham Borough Council,458339,509506,COMENSURA LIMITED,C-C23180-0115,Rcycl Coltn Schms-Temporary Agency Staff,29-Sep-11,509.45
http://statistics.data.gov.uk/id/local-authority-district/23UB,Cheltenham Borough Council,458339,509506,COMENSURA LIMITED,C-C23180-0115,Rcycl Coltn Schms-Temporary Agency Staff,29-Sep-11,54.99
http://statistics.data.gov.uk/id/local-authority-district/23UB,Cheltenham Borough Council,458339,509506,COMENSURA LIMITED,C-C23180-0115,Rcycl Coltn Schms-Temporary Agency Staff,29-Sep-11,548.43
http://statistics.data.gov.uk/id/local-authority-district/23UB,Cheltenham Borough Council,458339,509506,COMENSURA LIMITED,C-C23180-0115,Rcycl Coltn Schms-Temporary Agency Staff,29-Sep-11,336.30
http://statistics.data.gov.uk/id/local-authority-district/23UB,Cheltenham Borough Council,458339,509506,COMENSURA LIMITED,C-C23180-0115,Rcycl Coltn Schms-Temporary Agency Staff,29-Sep-11,346.85
http://statistics.data.gov.uk/id/local-authority-district/23UB,Cheltenham Borough Council,458339,509506,COMENSURA LIMITED,C-C23180-0115,Rcycl Coltn Schms-Temporary Agency Staff,29-Sep-11,135.36
http://statistics.data.gov.uk/id/local-authority-district/23UB,Cheltenham Borough Council,458339,509506,COMENSURA LIMITED,C-C23190-0115,Garden Collectn-Temporary Agency Staff,29-Sep-11,224.19
http://statistics.data.gov.uk/id/local-authority-district/23UB,Cheltenham Borough Council,458339,509506,COMENSURA LIMITED,C-C23190-0115,Garden Collectn-Temporary Agency Staff,29-Sep-11,485.20
http://statistics.data.gov.uk/id/local-authority-district/23UB,Cheltenham Borough Council,458339,509506,COMENSURA LIMITED,C-C23190-0115,Garden Collectn-Temporary Agency Staff,29-Sep-11,213.60
http://statistics.data.gov.uk/id/local-authority-district/23UB,Cheltenham Borough Council,458339,509506,COMENSURA LIMITED,C-C23190-0115,Garden Collectn-Temporary Agency Staff,29-Sep-11,67.68
http://statistics.data.gov.uk/id/local-authority-district/23UB,Cheltenham Borough Council,458339,509506,COMENSURA LIMITED,C-C23190-0115,Garden Collectn-Temporary Agency Staff,29-Sep-11,101.52
http://statistics.data.gov.uk/id/local-authority-district/23UB,Cheltenham Borough Council,458339,509506,COMENSURA LIMITED,C-D12500-0115,Property Servs-Temporary Agency Staff,29-Sep-11,105.75
http://statistics.data.gov.uk/id/local-authority-district/23UB,Cheltenham Borough Council,458339,509506,COMENSURA LIMITED,C-E36200-0115,On-St Car Prkng-Temporary Agency Staff,29-Sep-11,522.63
http://statistics.data.gov.uk/id/local-authority-district/23UB,Cheltenham Borough Council,458339,509506,COMENSURA LIMITED,C-E63100-0115,Cemetery & Crem-Temporary Agency Staff,29-Sep-11,249.57
http://statistics.data.gov.uk/id/local-authority-district/23UB,Cheltenham Borough Council,458339,509506,COMENSURA LIMITED,C-E63100-0115,Cemetery & Crem-Temporary Agency Staff,29-Sep-11,313.02
http://statistics.data.gov.uk/id/local-authority-district/23UB,Cheltenham Borough Council,458339,509506,COMENSURA LIMITED,C-GCERP-3501,GO Capital Cost-Hire of outside services,29-Sep-11,394.90
http://statistics.data.gov.uk/id/local-authority-district/23UB,Cheltenham Borough Council,458339,509506,COMENSURA LIMITED,C-GCERP-3501,GO Capital Cost-Hire of outside services,29-Sep-11,538.50
http://statistics.data.gov.uk/id/local-authority-district/23UB,Cheltenham Borough Council,456659,2486,COMBUSTION SOLUTIONS,C-E63100-1215,Cemetery & Crem-Cremator servicing & rep,02-Sep-11,"1,760.00"
http://statistics.data.gov.uk/id/local-authority-district/23UB,Cheltenham Borough Council,456659,2486,COMBUSTION SOLUTIONS,C-E63100-1215,Cemetery & Crem-Cremator servicing & rep,02-Sep-11,7.00
http://statistics.data.gov.uk/id/local-authority-district/23UB,Cheltenham Borough Council,457348,2502,COMBUSTION SOLUTIONS,C-E63100-1215,Cemetery & Crem-Cremator servicing & rep,15-Sep-11,"1,978.00"
http://statistics.data.gov.uk/id/local-authority-district/23UB,Cheltenham Borough Council,457349,2491,COMBUSTION SOLUTIONS,C-E63100-1215,Cemetery & Crem-Cremator servicing & rep,15-Sep-11,774.00
http://statistics.data.gov.uk/id/local-authority-district/23UB,Cheltenham Borough Council,458206,SIT100618,COMMERCIAL IT SERVICES LIMITED,C-D11820-3660,IT Infrastructu-Hardware PC & Servers,29-Sep-11,"14,396.30"
http://statistics.data.gov.uk/id/local-authority-district/23UB,Cheltenham Borough Council,456458,0008614,CORINIUM CARPETS,C-HC4736-C302,Robert Harvey H-Building Contractor,02-Sep-11,"2,268.50"
http://statistics.data.gov.uk/id/local-authority-district/23UB,Cheltenham Borough Council,456634,015554,CORY ENVIRONMENTAL LTD,C-C23100-3581,Refuse Collctn-Tipping charges,02-Sep-11,"5,297.87"
http://statistics.data.gov.uk/id/local-authority-district/23UB,Cheltenham Borough Council,456636,015611,CORY ENVIRONMENTAL LTD,C-C23100-3581,Refuse Collctn-Tipping charges,02-Sep-11,"5,310.60"
http://statistics.data.gov.uk/id/local-authority-district/23UB,Cheltenham Borough Council,457069,015730,CORY ENVIRONMENTAL LTD,C-C23100-3581,Refuse Collctn-Tipping charges,09-Sep-11,"5,474.18"
http://statistics.data.gov.uk/id/local-authority-district/23UB,Cheltenham Borough Council,456679,015667,CORY ENVIRONMENTAL LTD,C-C23100-3581,Refuse Collctn-Tipping charges,09-Sep-11,"5,115.21"
http://statistics.data.gov.uk/id/local-authority-district/23UB,Cheltenham Borough Council,457412,015791,CORY ENVIRONMENTAL LTD,C-C23100-3581,Refuse Collctn-Tipping charges,15-Sep-11,"4,675.00"
http://statistics.data.gov.uk/id/local-authority-district/23UB,Cheltenham Borough Council,458190,015844,CORY ENVIRONMENTAL LTD,C-C23100-3581,Refuse Collctn-Tipping charges,29-Sep-11,"5,138.59"
http://statistics.data.gov.uk/id/local-authority-district/23UB,Cheltenham Borough Council,458115,015898,CORY ENVIRONMENTAL LTD,C-C23100-3581,Refuse Collctn-Tipping charges,29-Sep-11,"5,038.39"
http://statistics.data.gov.uk/id/local-authority-district/23UB,Cheltenham Borough Council,456426,64231320,COTSWOLD DISTRICT  COUNCIL,C-D11800-3501,IT Services-Hire of outside services,02-Sep-11,"3,402.67"
http://statistics.data.gov.uk/id/local-authority-district/23UB,Cheltenham Borough Council,457697,6422179,COTSWOLD DISTRICT  COUNCIL,C-D11400-0204,Audit & Assrnce-Training fees/exp (Prof),23-Sep-11,200.38
http://statistics.data.gov.uk/id/local-authority-district/23UB,Cheltenham Borough Council,457696,642216X,COTSWOLD DISTRICT  COUNCIL,C-D11400-3501,Audit & Assrnce-Hire of outside services,23-Sep-11,"8,335.34"
http://statistics.data.gov.uk/id/local-authority-district/23UB,Cheltenham Borough Council,456632,20595,COTSWOLD DRAIN SERVICES LTD,C-E22100-1129,Chel River&W/C-CBC Riparian Ownership,02-Sep-11,360.00
http://statistics.data.gov.uk/id/local-authority-district/23UB,Cheltenham Borough Council,456406,20596,COTSWOLD DRAIN SERVICES LTD,C-H13200-3501,Rents Rates Tax-Hire of outside services,02-Sep-11,355.00
http://statistics.data.gov.uk/id/local-authority-district/23UB,Cheltenham Borough Council,456652,96141,AQUAAID,C-L11500-3167,Rec Facilities-Maintenance Agreements,02-Sep-11,"1,290.00"
http://statistics.data.gov.uk/id/local-authority-district/23UB,Cheltenham Borough Council,456653,96120,AQUAAID,C-L11500-3167,Rec Facilities-Maintenance Agreements,02-Sep-11,50.40
http://statistics.data.gov.uk/id/local-authority-district/23UB,Cheltenham Borough Council,457938,810035,CRIMINAL RECORDS BUREAU,C-A21500-3501,Licensing-Hire of outside services,23-Sep-11,644.00
http://statistics.data.gov.uk/id/local-authority-district/23UB,Cheltenham Borough Council,457938,810035,CRIMINAL RECORDS BUREAU,C-H22600-3501,Community Servs-Hire of outside services,23-Sep-11,44.00
http://statistics.data.gov.uk/id/local-authority-district/23UB,Cheltenham Borough Council,457938,810035,CRIMINAL RECORDS BUREAU,C-L11500-3501,Rec Facilities-Hire of outside services,23-Sep-11,44.00
http://statistics.data.gov.uk/id/local-authority-district/23UB,Cheltenham Borough Council,457938,810035,CRIMINAL RECORDS BUREAU,C-L16100-3501,Holiday Rec-Hire of outside services,23-Sep-11,132.00
http://statistics.data.gov.uk/id/local-authority-district/23UB,Cheltenham Borough Council,457933,810035,CRIMINAL RECORDS BUREAU,C-A21500-3501,Licensing-Hire of outside services,29-Sep-11,644.00
http://statistics.data.gov.uk/id/local-authority-district/23UB,Cheltenham Borough Council,457728,60058,CRYSTAL  CLEAR PRODUCTS 2000 LIMITED,C-L11500-3101,Rec Facilities-Equipment purchases,23-Sep-11,680.40
http://statistics.data.gov.uk/id/local-authority-district/23UB,Cheltenham Borough Council,457506,REDACTED,CRAIG DAY DEVELOPMENTS,C-HC7440-C801,DFG.96.Act-Grants,15-Sep-11,"3,520.00"
http://statistics.data.gov.uk/id/local-authority-district/23UB,Cheltenham Borough Council,457922,REDACTED,CRAIG DAY DEVELOPMENTS,C-HC7440-C801,DFG.96.Act-Grants,23-Sep-11,"14,400.00"
http://statistics.data.gov.uk/id/local-authority-district/23UB,Cheltenham Borough Council,450866,1224957,DECENT AND SAFE HOMES PROJECT (DASH),C-H22600-0204,Community Servs-Training fees/exp (Prof),23-Sep-11,600.00
http://statistics.data.gov.uk/id/local-authority-district/23UB,Cheltenham Borough Council,457844,7401869665,DELL COMPUTER CORPORATION LTD,C-D11820-3660,IT Infrastructu-Hardware PC & Servers,23-Sep-11,10.99
http://statistics.data.gov.uk/id/local-authority-district/23UB,Cheltenham Borough Council,457845,7401869165,DELL COMPUTER CORPORATION LTD,C-D11820-3660,IT Infrastructu-Hardware PC & Servers,23-Sep-11,578.90
http://statistics.data.gov.uk/id/local-authority-district/23UB,Cheltenham Borough Council,457853,7401868772,DELL COMPUTER CORPORATION LTD,C-D11820-3660,IT Infrastructu-Hardware PC & Servers,23-Sep-11,867.75
http://statistics.data.gov.uk/id/local-authority-district/23UB,Cheltenham Borough Council,457853,7401868772,DELL COMPUTER CORPORATION LTD,C-D11820-3660,IT Infrastructu-Hardware PC & Servers,23-Sep-11,539.00
http://statistics.data.gov.uk/id/local-authority-district/23UB,Cheltenham Borough Council,457853,7401868772,DELL COMPUTER CORPORATION LTD,C-D11820-3660,IT Infrastructu-Hardware PC & Servers,23-Sep-11,432.42
http://statistics.data.gov.uk/id/local-authority-district/23UB,Cheltenham Borough Council,457853,7401868772,DELL COMPUTER CORPORATION LTD,C-D11820-3660,IT Infrastructu-Hardware PC & Servers,23-Sep-11,921.61
http://statistics.data.gov.uk/id/local-authority-district/23UB,Cheltenham Borough Council,457853,7401868772,DELL COMPUTER CORPORATION LTD,C-D11820-3660,IT Infrastructu-Hardware PC & Servers,23-Sep-11,21.06
http://statistics.data.gov.uk/id/local-authority-district/23UB,Cheltenham Borough Council,457853,7401868772,DELL COMPUTER CORPORATION LTD,C-D11820-3660,IT Infrastructu-Hardware PC & Servers,23-Sep-11,459.00
http://statistics.data.gov.uk/id/local-authority-district/23UB,Cheltenham Borough Council,457853,7401868772,DELL COMPUTER CORPORATION LTD,C-D11820-3660,IT Infrastructu-Hardware PC & Servers,23-Sep-11,742.00
http://statistics.data.gov.uk/id/local-authority-district/23UB,Cheltenham Borough Council,457853,7401868772,DELL COMPUTER CORPORATION LTD,C-D11820-3660,IT Infrastructu-Hardware PC & Servers,23-Sep-11,237.84
http://statistics.data.gov.uk/id/local-authority-district/23UB,Cheltenham Borough Council,457853,7401868772,DELL COMPUTER CORPORATION LTD,C-D11820-3660,IT Infrastructu-Hardware PC & Servers,23-Sep-11,"1,446.00"
http://statistics.data.gov.uk/id/local-authority-district/23UB,Cheltenham Borough Council,457853,7401868772,DELL COMPUTER CORPORATION LTD,C-D11820-3660,IT Infrastructu-Hardware PC & Servers,23-Sep-11,432.40
http://statistics.data.gov.uk/id/local-authority-district/23UB,Cheltenham Borough Council,457853,7401868772,DELL COMPUTER CORPORATION LTD,C-D11820-3660,IT Infrastructu-Hardware PC & Servers,23-Sep-11,"2,162.08"
http://statistics.data.gov.uk/id/local-authority-district/23UB,Cheltenham Borough Council,457853,7401868772,DELL COMPUTER CORPORATION LTD,C-D11820-3660,IT Infrastructu-Hardware PC & Servers,23-Sep-11,742.00
http://statistics.data.gov.uk/id/local-authority-district/23UB,Cheltenham Borough Council,457853,7401868772,DELL COMPUTER CORPORATION LTD,C-D11820-3660,IT Infrastructu-Hardware PC & Servers,23-Sep-11,216.21
http://statistics.data.gov.uk/id/local-authority-district/23UB,Cheltenham Borough Council,457853,7401868772,DELL COMPUTER CORPORATION LTD,C-D11820-3660,IT Infrastructu-Hardware PC & Servers,23-Sep-11,934.24
http://statistics.data.gov.uk/id/local-authority-district/23UB,Cheltenham Borough Council,457853,7401868772,DELL COMPUTER CORPORATION LTD,C-D11820-3660,IT Infrastructu-Hardware PC & Servers,23-Sep-11,64.80
http://statistics.data.gov.uk/id/local-authority-district/23UB,Cheltenham Borough Council,457853,7401868772,DELL COMPUTER CORPORATION LTD,C-D11820-3660,IT Infrastructu-Hardware PC & Servers,23-Sep-11,392.00
http://statistics.data.gov.uk/id/local-authority-district/23UB,Cheltenham Borough Council,457853,7401868772,DELL COMPUTER CORPORATION LTD,C-D11820-3660,IT Infrastructu-Hardware PC & Servers,23-Sep-11,399.32
http://statistics.data.gov.uk/id/local-authority-district/23UB,Cheltenham Borough Council,456410,150554,DELAWARE COMMUNICATIONS PLC,C-E61500-3103,CCTV/TC Safety-Equipment repairs & maint,02-Sep-11,41.00
http://statistics.data.gov.uk/id/local-authority-district/23UB,Cheltenham Borough Council,456411,39482,DELAWARE COMMUNICATIONS PLC,C-E61500-3103,CCTV/TC Safety-Equipment repairs & maint,02-Sep-11,"1,419.17"
http://statistics.data.gov.uk/id/local-authority-district/23UB,Cheltenham Borough Council,457514,147113,DELAWARE COMMUNICATIONS PLC,C-E61500-3103,CCTV/TC Safety-Equipment repairs & maint,15-Sep-11,329.50
http://statistics.data.gov.uk/id/local-authority-district/23UB,Cheltenham Borough Council,457539,144217,DELAWARE COMMUNICATIONS PLC,C-E61500-3103,CCTV/TC Safety-Equipment repairs & maint,15-Sep-11,104.50
http://statistics.data.gov.uk/id/local-authority-district/23UB,Cheltenham Borough Council,457515,147112,DELAWARE COMMUNICATIONS PLC,C-E61500-3103,CCTV/TC Safety-Equipment repairs & maint,15-Sep-11,"1,077.58"
http://statistics.data.gov.uk/id/local-authority-district/23UB,Cheltenham Borough Council,456566,DE10573390,DENNIS EAGLE,C-C24100-3582,Fleet Maint-DSO Invoices,02-Sep-11,128.77
http://statistics.data.gov.uk/id/local-authority-district/23UB,Cheltenham Borough Council,456565,DE10575592,DENNIS EAGLE,C-C24100-3582,Fleet Maint-DSO Invoices,02-Sep-11,853.58
http://statistics.data.gov.uk/id/local-authority-district/23UB,Cheltenham Borough Council,456564,DE10573948,DENNIS EAGLE,C-C24100-3582,Fleet Maint-DSO Invoices,02-Sep-11,85.46
http://statistics.data.gov.uk/id/local-authority-district/23UB,Cheltenham Borough Council,457479,DE10577206,DENNIS EAGLE,C-C24100-3582,Fleet Maint-DSO Invoices,15-Sep-11,390.56
http://statistics.data.gov.uk/id/local-authority-district/23UB,Cheltenham Borough Council,457478,DE10569993,DENNIS EAGLE,C-C24100-3582,Fleet Maint-DSO Invoices,15-Sep-11,100.57
http://statistics.data.gov.uk/id/local-authority-district/23UB,Cheltenham Borough Council,457483,DE10577535,DENNIS EAGLE,C-C24100-3582,Fleet Maint-DSO Invoices,15-Sep-11,206.78
http://statistics.data.gov.uk/id/local-authority-district/23UB,Cheltenham Borough Council,457482,DE10577850,DENNIS EAGLE,C-C24100-3582,Fleet Maint-DSO Invoices,15-Sep-11,32.52
http://statistics.data.gov.uk/id/local-authority-district/23UB,Cheltenham Borough Council,457481,DE10577851,DENNIS EAGLE,C-C24100-3582,Fleet Maint-DSO Invoices,15-Sep-11,701.54
http://statistics.data.gov.uk/id/local-authority-district/23UB,Cheltenham Borough Council,457480,DE10576944,DENNIS EAGLE,C-C24100-3582,Fleet Maint-DSO Invoices,15-Sep-11,35.14
http://statistics.data.gov.uk/id/local-authority-district/23UB,Cheltenham Borough Council,457889,DE10579885,DENNIS EAGLE,C-C24100-3582,Fleet Maint-DSO Invoices,23-Sep-11,125.33
http://statistics.data.gov.uk/id/local-authority-district/23UB,Cheltenham Borough Council,457686,DE10579003,DENNIS EAGLE,C-C24100-3582,Fleet Maint-DSO Invoices,23-Sep-11,118.25
http://statistics.data.gov.uk/id/local-authority-district/23UB,Cheltenham Borough Council,457685,DE10578675,DENNIS EAGLE,C-C24100-3582,Fleet Maint-DSO Invoices,23-Sep-11,204.55
http://statistics.data.gov.uk/id/local-authority-district/23UB,Cheltenham Borough Council,458379,513580,DESIGNA UK LIMITED,C-E21100-3103,Car Prks-Off St-Equipment repairs & main,29-Sep-11,"1,584.08"
http://statistics.data.gov.uk/id/local-authority-district/23UB,Cheltenham Borough Council,457042,062.11.19/LN0115,DEWHURST MACFARLANE & PARTNERS,C-LC4006-C702,AG&M Dev Scheme-CBC - Engineers,09-Sep-11,"2,200.00"
http://statistics.data.gov.uk/id/local-authority-district/23UB,Cheltenham Borough Council,457953,4713,DFO INTERNATIONAL,C-1T28F1-3568,The Manfreds-Artist Fees,23-Sep-11,"4,250.00"
http://statistics.data.gov.uk/id/local-authority-district/23UB,Cheltenham Borough Council,457893,BD4539,DIRECT PUBLICITY,C-1T04H1-3527,BSO-Distribution/Mailing,23-Sep-11,57.77
http://statistics.data.gov.uk/id/local-authority-district/23UB,Cheltenham Borough Council,457893,BD4539,DIRECT PUBLICITY,C-1T10M1-3527,Halle-Distribution/Mailing,23-Sep-11,57.78
http://statistics.data.gov.uk/id/local-authority-district/23UB,Cheltenham Borough Council,457893,BD4539,DIRECT PUBLICITY,C-1T17F1-3527,BBC NOW-Distribution/Mailing,23-Sep-11,57.77
http://statistics.data.gov.uk/id/local-authority-district/23UB,Cheltenham Borough Council,457893,BD4539,DIRECT PUBLICITY,C-1T19K1-3527,BBC NOW 2-Distribution/Mailing,23-Sep-11,57.78
http://statistics.data.gov.uk/id/local-authority-district/23UB,Cheltenham Borough Council,457893,BD4539,DIRECT PUBLICITY,C-1T24L1-3527,Orch of the Swn-Distribution/Mailing,23-Sep-11,57.78
http://statistics.data.gov.uk/id/local-authority-district/23UB,Cheltenham Borough Council,457893,BD4539,DIRECT PUBLICITY,C-1T26K1-3527,BSO 2-Distribution/Mailing,23-Sep-11,57.78
http://statistics.data.gov.uk/id/local-authority-district/23UB,Cheltenham Borough Council,457893,BD4539,DIRECT PUBLICITY,C-2T01B1-3527,Philharmonia-Distribution/Mailing,23-Sep-11,57.78
http://statistics.data.gov.uk/id/local-authority-district/23UB,Cheltenham Borough Council,457893,BD4539,DIRECT PUBLICITY,C-2T12A1-3527,Royal Philharm-Distribution/Mailing,23-Sep-11,57.78
http://statistics.data.gov.uk/id/local-authority-district/23UB,Cheltenham Borough Council,457893,BD4539,DIRECT PUBLICITY,C-2T26B1-3527,CBSO-Distribution/Mailing,23-Sep-11,57.78
http://statistics.data.gov.uk/id/local-authority-district/23UB,Cheltenham Borough Council,458097,BD4535,DIRECT PUBLICITY,C-L21100-3920,Town Hall-Advertising,29-Sep-11,630.00
http://statistics.data.gov.uk/id/local-authority-district/23UB,Cheltenham Borough Council,457407,417757,DTZ,C-E21100-1106,Car Prks-Off St-Reg Arcade-fixed mnt cst,15-Sep-11,"14,250.00"
http://statistics.data.gov.uk/id/local-authority-district/23UB,Cheltenham Borough Council,457382,10511,ECLIPSE AUTOMATIVE TECHNOLOGY LIMITED,C-C24150-3103,Fleet Managemen-Equipment repairs & main,15-Sep-11,695.00
http://statistics.data.gov.uk/id/local-authority-district/23UB,Cheltenham Borough Council,456453,T0001558,C B RICHARD ELLIS,C-D13550-1501,Area Off -E.Hse-Rents,02-Sep-11,"17,170.50"
http://statistics.data.gov.uk/id/local-authority-district/23UB,Cheltenham Borough Council,457627,2011000007319711,C B RICHARD ELLIS,C-D13550-1901,Area Off -E.Hse-Insurance-fire,23-Sep-11,871.87
http://statistics.data.gov.uk/id/local-authority-district/23UB,Cheltenham Borough Council,456427,001390,MISS DAWN EMBREY,C-H22400-5204,Homelessness-Provision of accommo(B&B),02-Sep-11,"1,036.95"
http://statistics.data.gov.uk/id/local-authority-district/23UB,Cheltenham Borough Council,457325,9369,EMMDEE BUILDING SERVICES,C-C22110-1801,Parks & Gardens-RM-Electrical repairs,15-Sep-11,144.88
http://statistics.data.gov.uk/id/local-authority-district/23UB,Cheltenham Borough Council,457245,9583,EMMDEE BUILDING SERVICES,C-C23140-1801,Public Convnces-RM-Electrical repairs,15-Sep-11,104.62
http://statistics.data.gov.uk/id/local-authority-district/23UB,Cheltenham Borough Council,457309,9524,EMMDEE BUILDING SERVICES,C-D13100-1801,Muni Off Blgs-RM-Electrical repairs,15-Sep-11,67.50
http://statistics.data.gov.uk/id/local-authority-district/23UB,Cheltenham Borough Council,457315,9480,EMMDEE BUILDING SERVICES,C-D13100-1801,Muni Off Blgs-RM-Electrical repairs,15-Sep-11,123.83
http://statistics.data.gov.uk/id/local-authority-district/23UB,Cheltenham Borough Council,457322,9525,EMMDEE BUILDING SERVICES,C-D13100-1801,Muni Off Blgs-RM-Electrical repairs,15-Sep-11,90.00
http://statistics.data.gov.uk/id/local-authority-district/23UB,Cheltenham Borough Council,457242,9481,EMMDEE BUILDING SERVICES,C-D13550-1801,Area Off -E.Hse-RM-Electrical repairs,15-Sep-11,16.87
http://statistics.data.gov.uk/id/local-authority-district/23UB,Cheltenham Borough Council,457313,9478,EMMDEE BUILDING SERVICES,C-D30200-1801,Misc Props & Ld-RM-Electrical repairs,15-Sep-11,33.06
http://statistics.data.gov.uk/id/local-authority-district/23UB,Cheltenham Borough Council,457241,9479,EMMDEE BUILDING SERVICES,C-E63100-1801,Cemetery & Crem-RM-Electrical repairs,15-Sep-11,32.26
http://statistics.data.gov.uk/id/local-authority-district/23UB,Cheltenham Borough Council,457243,9547,EMMDEE BUILDING SERVICES,C-E63100-1801,Cemetery & Crem-RM-Electrical repairs,15-Sep-11,73.12
http://statistics.data.gov.uk/id/local-authority-district/23UB,Cheltenham Borough Council,457319,9523,EMMDEE BUILDING SERVICES,C-L11500-1801,Rec Facilities-RM-Electrical repairs,15-Sep-11,78.75
http://statistics.data.gov.uk/id/local-authority-district/23UB,Cheltenham Borough Council,457318,9482,EMMDEE BUILDING SERVICES,C-L11500-1801,Rec Facilities-RM-Electrical repairs,15-Sep-11,78.75
http://statistics.data.gov.uk/id/local-authority-district/23UB,Cheltenham Borough Council,457691,301267/8/2011,ENER-G,C-L11500-1402,Rec Facilities-Electricity,23-Sep-11,"3,373.36"
http://statistics.data.gov.uk/id/local-authority-district/23UB,Cheltenham Borough Council,456664,2213,ENFORCE TECHNOLOGY,C-D11820-3660,IT Infrastructu-Hardware PC & Servers,02-Sep-11,"1,458.61"
http://statistics.data.gov.uk/id/local-authority-district/23UB,Cheltenham Borough Council,456664,2213,ENFORCE TECHNOLOGY,C-D11820-3660,IT Infrastructu-Hardware PC & Servers,02-Sep-11,369.00
http://statistics.data.gov.uk/id/local-authority-district/23UB,Cheltenham Borough Council,457567,WHFA/2150/06,ENVEX CONTRACTORS LTD,C-D21250-3973,Civil Emergency-EA FDGIA allocation,23-Sep-11,"50,115.23"
http://statistics.data.gov.uk/id/local-authority-district/23UB,Cheltenham Borough Council,456656,1125005,ERMIN PLANT HIRE LTD,C-E63100-3105,Cemetery & Crem-Plant/tools(& Hire),02-Sep-11,18.00
http://statistics.data.gov.uk/id/local-authority-district/23UB,Cheltenham Borough Council,458207,109843,ESRI UK,C-D21200-3645,Corp Mgt-GIS Costs,29-Sep-11,"1,925.00"
http://statistics.data.gov.uk/id/local-authority-district/23UB,Cheltenham Borough Council,458207,109843,ESRI UK,C-D21200-3645,Corp Mgt-GIS Costs,29-Sep-11,660.00
http://statistics.data.gov.uk/id/local-authority-district/23UB,Cheltenham Borough Council,458207,109843,ESRI UK,C-D21200-3645,Corp Mgt-GIS Costs,29-Sep-11,"2,950.00"
http://statistics.data.gov.uk/id/local-authority-district/23UB,Cheltenham Borough Council,458207,109843,ESRI UK,C-D21200-3645,Corp Mgt-GIS Costs,29-Sep-11,"1,150.00"
http://statistics.data.gov.uk/id/local-authority-district/23UB,Cheltenham Borough Council,458207,109843,ESRI UK,C-D21200-3645,Corp Mgt-GIS Costs,29-Sep-11,850.00
http://statistics.data.gov.uk/id/local-authority-district/23UB,Cheltenham Borough Council,458207,109843,ESRI UK,C-D21200-3645,Corp Mgt-GIS Costs,29-Sep-11,990.00
http://statistics.data.gov.uk/id/local-authority-district/23UB,Cheltenham Borough Council,457846,55363,EUROLINK SECURITY INSTALLATIONS LIMITED,C-E21100-1114,Car Prks-Off St-Security systems,23-Sep-11,"1,008.00"
http://statistics.data.gov.uk/id/local-authority-district/23UB,Cheltenham Borough Council,457847,55354,EUROLINK SECURITY INSTALLATIONS LIMITED,C-E21100-1114,Car Prks-Off St-Security systems,23-Sep-11,960.00
http://statistics.data.gov.uk/id/local-authority-district/23UB,Cheltenham Borough Council,458366,3738/7/11,3D EYE LTD,C-L41100-3256,AG & M-Fine Form Horse Parade exp,29-Sep-11,"6,050.00"
http://statistics.data.gov.uk/id/local-authority-district/23UB,Cheltenham Borough Council,458196,1014,FAIRFORD TREE SERVICES,C-C22110-1305,Parks & Gardens-Tree surgery,29-Sep-11,500.00
http://statistics.data.gov.uk/id/local-authority-district/23UB,Cheltenham Borough Council,458196,1014,FAIRFORD TREE SERVICES,C-C22110-1312,Parks & Gardens-Annual felling prog,29-Sep-11,700.00
http://statistics.data.gov.uk/id/local-authority-district/23UB,Cheltenham Borough Council,458196,1014,FAIRFORD TREE SERVICES,C-C22120-1305,Spts/Open Space-Tree surgery,29-Sep-11,"1,500.00"
http://statistics.data.gov.uk/id/local-authority-district/23UB,Cheltenham Borough Council,458196,1014,FAIRFORD TREE SERVICES,C-C22120-1312,Spts/Open Space-Annual felling prog,29-Sep-11,"1,500.00"
http://statistics.data.gov.uk/id/local-authority-district/23UB,Cheltenham Borough Council,457518,REDACTED,FARMINGTON BUILDERS,C-HC7440-C801,DFG.96.Act-Grants,15-Sep-11,"4,624.00"
http://statistics.data.gov.uk/id/local-authority-district/23UB,Cheltenham Borough Council,458107,47673,FIBROUS LIMITED,C-E63100-3111,Cemetery & Crem-Goods purch for resale,29-Sep-11,100.00
http://statistics.data.gov.uk/id/local-authority-district/23UB,Cheltenham Borough Council,458107,47673,FIBROUS LIMITED,C-E63100-3111,Cemetery & Crem-Goods purch for resale,29-Sep-11,"1,150.00"
http://statistics.data.gov.uk/id/local-authority-district/23UB,Cheltenham Borough Council,458398,INGA DEPOSIT,FIRST BID LIMITED,C-H22400-3244,Homelessness-Supporting People,29-Sep-11,500.00
http://statistics.data.gov.uk/id/local-authority-district/23UB,Cheltenham Borough Council,458129,S/123513,FLEET LINE MARKERS LTD,C-C22120-3121,Spts/Open Space-Materials-Contract,29-Sep-11,"1,755.00"
http://statistics.data.gov.uk/id/local-authority-district/23UB,Cheltenham Borough Council,388643,793,FLEET MEDIA LIMITED,C-C24100-3501,Fleet Maint-Hire of outside services,20-Sep-11,"-5,724.00"
http://statistics.data.gov.uk/id/local-authority-district/23UB,Cheltenham Borough Council,388664,779,FLEET MEDIA LIMITED,C-C24100-3501,Fleet Maint-Hire of outside services,20-Sep-11,"5,724.00"
http://statistics.data.gov.uk/id/local-authority-district/23UB,Cheltenham Borough Council,458116,FMG147,FMG CONSULTING LTD,C-L11500-3501,Rec Facilities-Hire of outside services,29-Sep-11,"4,000.00"
http://statistics.data.gov.uk/id/local-authority-district/23UB,Cheltenham Borough Council,457055,0380,FRONTLINE COMMUNICATION,C-L41100-3501,AG & M-Hire of outside services,09-Sep-11,930.00
http://statistics.data.gov.uk/id/local-authority-district/23UB,Cheltenham Borough Council,457924,REDACTED,V FRY AND SONS,C-HC4100-C801,Dis.Adapt.HRA-Grants,23-Sep-11,"4,510.00"
http://statistics.data.gov.uk/id/local-authority-district/23UB,Cheltenham Borough Council,456815,5194,FUTRA LTD,C-C24150-3170,Fleet Managemnt-Fuel system maintenance,09-Sep-11,904.00
http://statistics.data.gov.uk/id/local-authority-district/23UB,Cheltenham Borough Council,457940,00097,GASKINS,C-C22115-3501,Grass Verges-Hire of outside services,23-Sep-11,140.00
http://statistics.data.gov.uk/id/local-authority-district/23UB,Cheltenham Borough Council,457932,99,GASKINS,C-C22120-1305,Spts/Open Space-Tree surgery,23-Sep-11,66.00
http://statistics.data.gov.uk/id/local-authority-district/23UB,Cheltenham Borough Council,457934,98,GASKINS,C-C22120-1312,Spts/Open Space-Annual felling prog,23-Sep-11,242.00
http://statistics.data.gov.uk/id/local-authority-district/23UB,Cheltenham Borough Council,457935,95,GASKINS,C-C22120-1312,Spts/Open Space-Annual felling prog,23-Sep-11,540.00
http://statistics.data.gov.uk/id/local-authority-district/23UB,Cheltenham Borough Council,457937,100,GASKINS,C-C22120-1312,Spts/Open Space-Annual felling prog,23-Sep-11,132.00
http://statistics.data.gov.uk/id/local-authority-district/23UB,Cheltenham Borough Council,457936,101,GASKINS,C-C22190-1301,Allotments-Routine grounds maint,23-Sep-11,352.00
http://statistics.data.gov.uk/id/local-authority-district/23UB,Cheltenham Borough Council,456678,036/2011,GET IT SORTED LIMITED,C-C23125-3920,Recyl Bring Schms-Advertising,09-Sep-11,"1,324.00"
http://statistics.data.gov.uk/id/local-authority-district/23UB,Cheltenham Borough Council,456603,23099,GLIDE MEDIA MARKETING,C-L21100-3920,Town Hall-Advertising,02-Sep-11,913.00
http://statistics.data.gov.uk/id/local-authority-district/23UB,Cheltenham Borough Council,458096,1800196981,GLOUCESTERSHIRE COUNTY COUNCIL,C-E36200-4528,On-St Car Prkng-Net income paid to GCC,29-Sep-11,"78,608.09"
http://statistics.data.gov.uk/id/local-authority-district/23UB,Cheltenham Borough Council,458153,1800196998,GLOUCESTERSHIRE COUNTY COUNCIL,C-H22300-3871,Housing Grants-Grants - Care & Repair,29-Sep-11,"7,975.00"
http://statistics.data.gov.uk/id/local-authority-district/23UB,Cheltenham Borough Council,457733,1800197119,GLOUCESTERSHIRE COUNTY COUNCIL,C-L16100-3501,Holiday Rec-Hire of outside services,23-Sep-11,520.00
http://statistics.data.gov.uk/id/local-authority-district/23UB,Cheltenham Borough Council,457394,DBFI00000958,GLOUCESTERSHIRE POLICE AUTHORITY,C-D21220-3890,Corp Subscrptns-Subscriptions - general,15-Sep-11,500.00
http://statistics.data.gov.uk/id/local-authority-district/23UB,Cheltenham Borough Council,457254,GCS/10111452,THE GLOUCESTERSHIRE COUNSELLING SERVICE,C-D12300-3506,Excluded,15-Sep-11,170.00
http://statistics.data.gov.uk/id/local-authority-district/23UB,Cheltenham Borough Council,457255,GCS/1011/449,THE GLOUCESTERSHIRE COUNSELLING SERVICE,C-D12300-3506,Excluded,15-Sep-11,340.00
http://statistics.data.gov.uk/id/local-authority-district/23UB,Cheltenham Borough Council,456750,INV047238,GLOUCESTERSHIRE COLLEGE,C-D11300-0204,Accountancy-Training fees/exp (Prof),09-Sep-11,"1,020.00"
http://statistics.data.gov.uk/id/local-authority-district/23UB,Cheltenham Borough Council,458335,REDACTED,REDACTED,C-P12250-9104,Tenants Rent-Refunds,29-Sep-11,854.22
http://statistics.data.gov.uk/id/local-authority-district/23UB,Cheltenham Borough Council,457088,47554,GOOCH GROUP LTD,C-E21100-1701,Car Prks-Off St-Cleaning,09-Sep-11,"4,123.08"
http://statistics.data.gov.uk/id/local-authority-district/23UB,Cheltenham Borough Council,457431,289,GPL GREENWAY PARTNERSHIP LIMITED,C-C22110-1301,Parks & Gardens-Routine grounds maint,15-Sep-11,302.40
http://statistics.data.gov.uk/id/local-authority-district/23UB,Cheltenham Borough Council,457432,318,GPL GREENWAY PARTNERSHIP LIMITED,C-C22110-1301,Parks & Gardens-Routine grounds maint,15-Sep-11,302.40
http://statistics.data.gov.uk/id/local-authority-district/23UB,Cheltenham Borough Council,457434,809055,GPL GREENWAY PARTNERSHIP LIMITED,C-LC6011-C401,Pittville Park-Civil Engineering Cntrctr,15-Sep-11,"19,644.85"
http://statistics.data.gov.uk/id/local-authority-district/23UB,Cheltenham Borough Council,457490,07157,GREENLINE CONTRACTS.,C-C24100-2701,Fleet Maint-Hired transport,15-Sep-11,-37.48
http://statistics.data.gov.uk/id/local-authority-district/23UB,Cheltenham Borough Council,457489,41880,GREENLINE CONTRACTS.,C-C24100-2701,Fleet Maint-Hired transport,15-Sep-11,612.95
http://statistics.data.gov.uk/id/local-authority-district/23UB,Cheltenham Borough Council,457488,41879,GREENLINE CONTRACTS.,C-C24100-2701,Fleet Maint-Hired transport,15-Sep-11,761.11
http://statistics.data.gov.uk/id/local-authority-district/23UB,Cheltenham Borough Council,457487,41815,GREENLINE CONTRACTS.,C-C24100-2701,Fleet Maint-Hired transport,15-Sep-11,320.00
http://statistics.data.gov.uk/id/local-authority-district/23UB,Cheltenham Borough Council,457486,07152,GREENLINE CONTRACTS.,C-C24100-2701,Fleet Maint-Hired transport,15-Sep-11,52.66
http://statistics.data.gov.uk/id/local-authority-district/23UB,Cheltenham Borough Council,457485,07057,GREENLINE CONTRACTS.,C-C24100-2701,Fleet Maint-Hired transport,15-Sep-11,21.06
http://statistics.data.gov.uk/id/local-authority-district/23UB,Cheltenham Borough Council,457484,07076,GREENLINE CONTRACTS.,C-C24100-2701,Fleet Maint-Hired transport,15-Sep-11,15.18
http://statistics.data.gov.uk/id/local-authority-district/23UB,Cheltenham Borough Council,458295,SETTLEMENT,GREENBELT FESTIVALS,C-N13125-9205,ASH Ledger-Town Hall Invoices Paid,29-Sep-11,-195.49
http://statistics.data.gov.uk/id/local-authority-district/23UB,Cheltenham Borough Council,458295,SETTLEMENT,GREENBELT FESTIVALS,C-Z12210-9128,Box Off A/C-Agent tickets paid out,29-Sep-11,370.00
http://statistics.data.gov.uk/id/local-authority-district/23UB,Cheltenham Borough Council,458295,SETTLEMENT,GREENBELT FESTIVALS,C-Z12210-9128,Box Off A/C-Agent tickets paid out,29-Sep-11,720.00
http://statistics.data.gov.uk/id/local-authority-district/23UB,Cheltenham Borough Council,458295,SETTLEMENT,GREENBELT FESTIVALS,C-Z12210-9128,Box Off A/C-Agent tickets paid out,29-Sep-11,400.00
http://statistics.data.gov.uk/id/local-authority-district/23UB,Cheltenham Borough Council,458295,SETTLEMENT,GREENBELT FESTIVALS,C-Z12210-9128,Box Off A/C-Agent tickets paid out,29-Sep-11,180.00
http://statistics.data.gov.uk/id/local-authority-district/23UB,Cheltenham Borough Council,457536,REDACTED,REDACTED,C-P12250-9104,Tenants Rent-Refunds,15-Sep-11,647.28
http://statistics.data.gov.uk/id/local-authority-district/23UB,Cheltenham Borough Council,456595,320,GREENWAY PARTNERSHIP LIMITED,C-L41100-3131,AG & M-Exhibition & Display,02-Sep-11,175.00
http://statistics.data.gov.uk/id/local-authority-district/23UB,Cheltenham Borough Council,456598,319,GREENWAY PARTNERSHIP LIMITED,C-L41100-3256,AG & M-Fine Form Horse Parade exp,02-Sep-11,432.00
http://statistics.data.gov.uk/id/local-authority-district/23UB,Cheltenham Borough Council,456598,319,GREENWAY PARTNERSHIP LIMITED,C-L41100-3256,AG & M-Fine Form Horse Parade exp,02-Sep-11,432.00
http://statistics.data.gov.uk/id/local-authority-district/23UB,Cheltenham Borough Council,456598,319,GREENWAY PARTNERSHIP LIMITED,C-L41100-3256,AG & M-Fine Form Horse Parade exp,02-Sep-11,98.00
http://statistics.data.gov.uk/id/local-authority-district/23UB,Cheltenham Borough Council,456598,319,GREENWAY PARTNERSHIP LIMITED,C-L41100-3256,AG & M-Fine Form Horse Parade exp,02-Sep-11,222.00
http://statistics.data.gov.uk/id/local-authority-district/23UB,Cheltenham Borough Council,456598,319,GREENWAY PARTNERSHIP LIMITED,C-L41100-3256,AG & M-Fine Form Horse Parade exp,02-Sep-11,228.00
http://statistics.data.gov.uk/id/local-authority-district/23UB,Cheltenham Borough Council,456598,319,GREENWAY PARTNERSHIP LIMITED,C-L41100-3256,AG & M-Fine Form Horse Parade exp,02-Sep-11,44.00
http://statistics.data.gov.uk/id/local-authority-district/23UB,Cheltenham Borough Council,456598,319,GREENWAY PARTNERSHIP LIMITED,C-L41100-3256,AG & M-Fine Form Horse Parade exp,02-Sep-11,228.00
http://statistics.data.gov.uk/id/local-authority-district/23UB,Cheltenham Borough Council,456882,283,GREENWAY PARTNERSHIP LIMITED,C-PM0042-R040,Pavillions-Internal Redecoration,09-Sep-11,"14,132.00"
http://statistics.data.gov.uk/id/local-authority-district/23UB,Cheltenham Borough Council,457302,336,GREENWAY PARTNERSHIP LIMITED,C-C23140-1809,Public Convnces-RM-sanitary works,15-Sep-11,122.50
http://statistics.data.gov.uk/id/local-authority-district/23UB,Cheltenham Borough Council,457304,229,GREENWAY PARTNERSHIP LIMITED,C-D13100-1703,Muni Off Blgs-Window cleaning,15-Sep-11,"2,420.00"
http://statistics.data.gov.uk/id/local-authority-district/23UB,Cheltenham Borough Council,457306,290,GREENWAY PARTNERSHIP LIMITED,C-D13100-1804,Muni Off Blgs-RM-External structures,15-Sep-11,167.11
http://statistics.data.gov.uk/id/local-authority-district/23UB,Cheltenham Borough Council,457307,321,GREENWAY PARTNERSHIP LIMITED,C-D13100-1805,Muni Off Blgs-RM-Int. fixtures/fittings,15-Sep-11,78.30
http://statistics.data.gov.uk/id/local-authority-district/23UB,Cheltenham Borough Council,457305,258,GREENWAY PARTNERSHIP LIMITED,C-D13100-1805,Muni Off Blgs-RM-Int. fixtures/fittings,15-Sep-11,157.50
http://statistics.data.gov.uk/id/local-authority-district/23UB,Cheltenham Borough Council,457308,323,GREENWAY PARTNERSHIP LIMITED,C-D13100-1809,Muni Off Blgs-RM-sanitary works,15-Sep-11,11.25
http://statistics.data.gov.uk/id/local-authority-district/23UB,Cheltenham Borough Council,457301,327,GREENWAY PARTNERSHIP LIMITED,C-D14100-1809,Depot Building-RM-sanitary works,15-Sep-11,172.00
http://statistics.data.gov.uk/id/local-authority-district/23UB,Cheltenham Borough Council,457248,264,GREENWAY PARTNERSHIP LIMITED,C-E21100-1804,Car Prks-Off St-RM-External structures,15-Sep-11,660.00
http://statistics.data.gov.uk/id/local-authority-district/23UB,Cheltenham Borough Council,457303,326,GREENWAY PARTNERSHIP LIMITED,C-E63100-1809,Cemetery & Crem-RM-sanitary works,15-Sep-11,78.75
http://statistics.data.gov.uk/id/local-authority-district/23UB,Cheltenham Borough Council,457406,331,GREENWAY PARTNERSHIP LIMITED,C-L11500-1809,Rec Facilities-RM-sanitary works,15-Sep-11,171.25
http://statistics.data.gov.uk/id/local-authority-district/23UB,Cheltenham Borough Council,457501,248,GREENWAY PARTNERSHIP LIMITED,C-L21100-1809,Town Hall-RM-sanitary works,15-Sep-11,418.00
http://statistics.data.gov.uk/id/local-authority-district/23UB,Cheltenham Borough Council,457564,276,GREENWAY PARTNERSHIP LIMITED,C-L21100-3103,Town Hall-Equipment repairs & maint,15-Sep-11,45.00
http://statistics.data.gov.uk/id/local-authority-district/23UB,Cheltenham Borough Council,457566,257,GREENWAY PARTNERSHIP LIMITED,C-L21100-3103,Town Hall-Equipment repairs & maint,15-Sep-11,123.75
http://statistics.data.gov.uk/id/local-authority-district/23UB,Cheltenham Borough Council,457565,272,GREENWAY PARTNERSHIP LIMITED,C-L21100-3103,Town Hall-Equipment repairs & maint,15-Sep-11,157.50
http://statistics.data.gov.uk/id/local-authority-district/23UB,Cheltenham Borough Council,457609,339,GREENWAY PARTNERSHIP LIMITED,C-C23140-1805,Public Convnces-RM-Int. fixtures/fitting,23-Sep-11,67.50
http://statistics.data.gov.uk/id/local-authority-district/23UB,Cheltenham Borough Council,457692,340,GREENWAY PARTNERSHIP LIMITED,C-D13100-1805,Muni Off Blgs-RM-Int. fixtures/fittings,23-Sep-11,95.50
http://statistics.data.gov.uk/id/local-authority-district/23UB,Cheltenham Borough Council,457610,341,GREENWAY PARTNERSHIP LIMITED,C-D14100-1805,Depot Building-RM-Int. fixtures/fittings,23-Sep-11,50.63
http://statistics.data.gov.uk/id/local-authority-district/23UB,Cheltenham Borough Council,457608,337,GREENWAY PARTNERSHIP LIMITED,C-D14100-1806,Depot Building-RM-Ext. fixtures/fittings,23-Sep-11,492.00
http://statistics.data.gov.uk/id/local-authority-district/23UB,Cheltenham Borough Council,457612,334,GREENWAY PARTNERSHIP LIMITED,C-E21100-1804,Car Prks-Off St-RM-External structures,23-Sep-11,46.00
http://statistics.data.gov.uk/id/local-authority-district/23UB,Cheltenham Borough Council,457742,325,GREENWAY PARTNERSHIP LIMITED,C-L21100-1101,Town Hall-General building repairs,23-Sep-11,423.97
http://statistics.data.gov.uk/id/local-authority-district/23UB,Cheltenham Borough Council,457611,324,GREENWAY PARTNERSHIP LIMITED,C-PM0042-R022,Pavillions-Electrical Works,23-Sep-11,"2,281.47"
http://statistics.data.gov.uk/id/local-authority-district/23UB,Cheltenham Borough Council,457607,280,GREENWAY PARTNERSHIP LIMITED,C-PM0092-R048,Central Nursery-Other Internal Improveme,23-Sep-11,"1,122.50"
http://statistics.data.gov.uk/id/local-authority-district/23UB,Cheltenham Borough Council,458346,338,GREENWAY PARTNERSHIP LIMITED,C-D13100-1804,Muni Off Blgs-RM-External structures,29-Sep-11,938.00
http://statistics.data.gov.uk/id/local-authority-district/23UB,Cheltenham Borough Council,458344,317,GREENWAY PARTNERSHIP LIMITED,C-H13100-1808,Cap Fin Costs-RM-Routine works,29-Sep-11,818.70
http://statistics.data.gov.uk/id/local-authority-district/23UB,Cheltenham Borough Council,458217,282,GREENWAY PARTNERSHIP LIMITED,C-PM0090-R164,Misc.Properties-Gardens,29-Sep-11,"6,865.00"
http://statistics.data.gov.uk/id/local-authority-district/23UB,Cheltenham Borough Council,457122,7018099,GVA GRIMLEY LLP,C-D35100-350A,Glos Airport-Consultants Fees,09-Sep-11,998.40
http://statistics.data.gov.uk/id/local-authority-district/23UB,Cheltenham Borough Council,458136,SETTLEMENT,GYPSY FIRE,C-N13125-9205,ASH Ledger-Town Hall Invoices Paid,29-Sep-11,-655.99
http://statistics.data.gov.uk/id/local-authority-district/23UB,Cheltenham Borough Council,458136,SETTLEMENT,GYPSY FIRE,C-Z12210-9138,Box Off A/C-TH Hirers Tkt Pd out,29-Sep-11,"2,028.00"
http://statistics.data.gov.uk/id/local-authority-district/23UB,Cheltenham Borough Council,457963,5219,HALSALL  CONSTRUCTION LIMITED,C-HC4845-C302,Neighbrhd works-Building Contractor,23-Sep-11,"8,807.14"
http://statistics.data.gov.uk/id/local-authority-district/23UB,Cheltenham Borough Council,452803,GRIFFIN,CYRIL HARBER INVESTMENT CO LTD,C-H22400-3244,Homelessness-Supporting People,13-Sep-11,530.00
http://statistics.data.gov.uk/id/local-authority-district/23UB,Cheltenham Borough Council,452803,GRIFFIN,CYRIL HARBER INVESTMENT CO LTD,C-H22400-3244,Homelessness-Supporting People,13-Sep-11,530.00
http://statistics.data.gov.uk/id/local-authority-district/23UB,Cheltenham Borough Council,457199,GRIFFIN,CYRIL HARBER INVESTMENT CO LTD,C-H22400-3244,Homelessness-Supporting People,13-Sep-11,-530.00
http://statistics.data.gov.uk/id/local-authority-district/23UB,Cheltenham Borough Council,457362,INVOICE 1,DR JOHN HARVEY,C-C22120-3874,Spts/Open Space-Grants-Conservation,15-Sep-11,500.00
http://statistics.data.gov.uk/id/local-authority-district/23UB,Cheltenham Borough Council,457852,6725022,HEWLETT PACKARD LIMITED,C-D11820-3660,IT Infrastructu-Hardware PC & Servers,23-Sep-11,"2,690.00"
http://statistics.data.gov.uk/id/local-authority-district/23UB,Cheltenham Borough Council,457050,FEE,SAM  CHARLES HODGSON,C-L41100-3256,AG & M-Fine Form Horse Parade exp,09-Sep-11,"2,033.49"
http://statistics.data.gov.uk/id/local-authority-district/23UB,Cheltenham Borough Council,457027,REDACTED,MARK HOLLAND,C-H22400-3828,Homelessness-Prevention Fund,09-Sep-11,500.00
http://statistics.data.gov.uk/id/local-authority-district/23UB,Cheltenham Borough Council,457458,1108048,HORTEC,C-C22140-3105,Nursery-Plant/tools(& Hire),15-Sep-11,925.00
http://statistics.data.gov.uk/id/local-authority-district/23UB,Cheltenham Borough Council,457754,HCUK0112194,HUMAN CONCEPTS UK LIMITED,C-GCERP-350A,GO Capital Cost-Consultants Fees,23-Sep-11,950.00
http://statistics.data.gov.uk/id/local-authority-district/23UB,Cheltenham Borough Council,456806,007,HAYLEY HUNTLEY,C-D21950-3193,Community Plan-Health grant,09-Sep-11,984.00
http://statistics.data.gov.uk/id/local-authority-district/23UB,Cheltenham Borough Council,457851,4944,ICON NET LIMITED,C-L41100-3920,AG & M-Advertising,23-Sep-11,"1,400.00"
http://statistics.data.gov.uk/id/local-authority-district/23UB,Cheltenham Borough Council,457173,54407062,IMPERIAL COMMERCIALS  LTD,C-C24100-3582,Fleet Maint-DSO Invoices,09-Sep-11,42.84
http://statistics.data.gov.uk/id/local-authority-district/23UB,Cheltenham Borough Council,457174,54407061,IMPERIAL COMMERCIALS  LTD,C-C24100-3582,Fleet Maint-DSO Invoices,09-Sep-11,567.55
http://statistics.data.gov.uk/id/local-authority-district/23UB,Cheltenham Borough Council,457962,5207,INDUSTRIAL MEDICAL AND SAFETY SVCE LTD,C-D12300-3250,Personnel and P-Occupational Health,23-Sep-11,"2,384.58"
http://statistics.data.gov.uk/id/local-authority-district/23UB,Cheltenham Borough Council,457172,PS1015455 PART,INTRINSIC TECHNOLOGY LIMITED,C-DC4003-C101,Telephy Switch-Project Est for this Year,09-Sep-11,"7,876.41"
http://statistics.data.gov.uk/id/local-authority-district/23UB,Cheltenham Borough Council,457172,PS1015455 PART,INTRINSIC TECHNOLOGY LIMITED,C-DC4003-C101,Telephy Switch-Project Est for this Year,09-Sep-11,"1,079.86"
http://statistics.data.gov.uk/id/local-authority-district/23UB,Cheltenham Borough Council,457172,PS1015455 PART,INTRINSIC TECHNOLOGY LIMITED,C-DC4003-C101,Telephy Switch-Project Est for this Year,09-Sep-11,"1,260.00"
http://statistics.data.gov.uk/id/local-authority-district/23UB,Cheltenham Borough Council,457317,119371,ITAB MK,C-L11500-3167,Rec Facilities-Maintenance Agreements,15-Sep-11,"2,068.00"
http://statistics.data.gov.uk/id/local-authority-district/23UB,Cheltenham Borough Council,457959,GAS AUGUST VA,P H JONES LIMITED,C-H46100-1104,Cen.Heat.Serv-Council House repairs,23-Sep-11,"50,253.07"
http://statistics.data.gov.uk/id/local-authority-district/23UB,Cheltenham Borough Council,457959,GAS AUGUST VA,P H JONES LIMITED,C-HC4862-C302,New Heating Ins-Building Contractor,23-Sep-11,"12,504.03"
http://statistics.data.gov.uk/id/local-authority-district/23UB,Cheltenham Borough Council,457959,GAS AUGUST VA,P H JONES LIMITED,C-HC4875-C302,Gas-Building Contractor,23-Sep-11,"3,808.31"
http://statistics.data.gov.uk/id/local-authority-district/23UB,Cheltenham Borough Council,457826,0911104,MR M JONES AND MRS M JONES,C-H22400-5204,Homelessness-Provision of accommo(B&B),23-Sep-11,222.85
http://statistics.data.gov.uk/id/local-authority-district/23UB,Cheltenham Borough Council,457829,0911123,MR M JONES AND MRS M JONES,C-H22400-5204,Homelessness-Provision of accommo(B&B),23-Sep-11,100.05
http://statistics.data.gov.uk/id/local-authority-district/23UB,Cheltenham Borough Council,457828,9811125,MR M JONES AND MRS M JONES,C-H22400-5204,Homelessness-Provision of accommo(B&B),23-Sep-11,195.00
http://statistics.data.gov.uk/id/local-authority-district/23UB,Cheltenham Borough Council,457827,9811101,MR M JONES AND MRS M JONES,C-H22400-5204,Homelessness-Provision of accommo(B&B),23-Sep-11,195.00
http://statistics.data.gov.uk/id/local-authority-district/23UB,Cheltenham Borough Council,457825,0911121,MR M JONES AND MRS M JONES,C-H22400-5204,Homelessness-Provision of accommo(B&B),23-Sep-11,175.00
http://statistics.data.gov.uk/id/local-authority-district/23UB,Cheltenham Borough Council,457956,24557,HARROLD-JONES  SERVICES,C-H46400-1104,Door Entry-Council House repairs,23-Sep-11,622.80
http://statistics.data.gov.uk/id/local-authority-district/23UB,Cheltenham Borough Council,457391,3728,J S FACILITIES GROUP LTD,C-D14100-1114,Depot Building-Security systems,15-Sep-11,465.00
http://statistics.data.gov.uk/id/local-authority-district/23UB,Cheltenham Borough Council,457392,3740,J S FACILITIES GROUP LTD,C-D14100-1114,Depot Building-Security systems,15-Sep-11,200.00
http://statistics.data.gov.uk/id/local-authority-district/23UB,Cheltenham Borough Council,457244,3674,J S FACILITIES GROUP LTD,C-L41100-3816,AG & M-RIBA - Competition,15-Sep-11,382.50
http://statistics.data.gov.uk/id/local-authority-district/23UB,Cheltenham Borough Council,457246,3709,J S FACILITIES GROUP LTD,C-L41100-3816,AG & M-RIBA - Competition,15-Sep-11,382.50
http://statistics.data.gov.uk/id/local-authority-district/23UB,Cheltenham Borough Council,457247,3751,J S FACILITIES GROUP LTD,C-L41100-3816,AG & M-RIBA - Competition,15-Sep-11,"1,372.50"
http://statistics.data.gov.uk/id/local-authority-district/23UB,Cheltenham Borough Council,456777,978,K B BUILDING SERVICES UK LIMITED,C-H4201G-1104,Gen Wks 2201-Council House repairs,09-Sep-11,510.00
http://statistics.data.gov.uk/id/local-authority-district/23UB,Cheltenham Borough Council,456778,976,K B BUILDING SERVICES UK LIMITED,C-H4201G-1104,Gen Wks 2201-Council House repairs,09-Sep-11,"5,000.00"
http://statistics.data.gov.uk/id/local-authority-district/23UB,Cheltenham Borough Council,456779,979,K B BUILDING SERVICES UK LIMITED,C-H4201G-1104,Gen Wks 2201-Council House repairs,09-Sep-11,"1,060.00"
http://statistics.data.gov.uk/id/local-authority-district/23UB,Cheltenham Borough Council,456780,977,K B BUILDING SERVICES UK LIMITED,C-H4201G-1104,Gen Wks 2201-Council House repairs,09-Sep-11,"1,540.50"
http://statistics.data.gov.uk/id/local-authority-district/23UB,Cheltenham Borough Council,456777,978,K B BUILDING SERVICES UK LIMITED,C-N11250-9227,Excluded,09-Sep-11,-76.20
http://statistics.data.gov.uk/id/local-authority-district/23UB,Cheltenham Borough Council,456779,979,K B BUILDING SERVICES UK LIMITED,C-N11250-9227,Excluded,09-Sep-11,-180.60
http://statistics.data.gov.uk/id/local-authority-district/23UB,Cheltenham Borough Council,456780,977,K B BUILDING SERVICES UK LIMITED,C-N11250-9227,Excluded,09-Sep-11,-267.70
http://statistics.data.gov.uk/id/local-authority-district/23UB,Cheltenham Borough Council,456778,976,K B BUILDING SERVICES UK LIMITED,C-N11250-9227,Excluded,09-Sep-11,-457.00
http://statistics.data.gov.uk/id/local-authority-district/23UB,Cheltenham Borough Council,457884,975,K B BUILDING SERVICES UK LIMITED,C-HC4841-C302,Major Voids-Building Contractor,23-Sep-11,"12,772.00"
http://statistics.data.gov.uk/id/local-authority-district/23UB,Cheltenham Borough Council,457884,975,K B BUILDING SERVICES UK LIMITED,C-N11250-9227,Excluded,23-Sep-11,"-2,188.60"
http://statistics.data.gov.uk/id/local-authority-district/23UB,Cheltenham Borough Council,457562,1569,KERRY PLUMBING LIMITED,C-H44752-1104,Dis Adapts-Tech-Council House repairs,15-Sep-11,"1,410.00"
http://statistics.data.gov.uk/id/local-authority-district/23UB,Cheltenham Borough Council,457563,1570,KERRY PLUMBING LIMITED,C-H44752-1104,Dis Adapts-Tech-Council House repairs,15-Sep-11,"1,410.00"
http://statistics.data.gov.uk/id/local-authority-district/23UB,Cheltenham Borough Council,457563,1570,KERRY PLUMBING LIMITED,C-N11250-9227,Excluded,15-Sep-11,-122.00
http://statistics.data.gov.uk/id/local-authority-district/23UB,Cheltenham Borough Council,457562,1569,KERRY PLUMBING LIMITED,C-N11250-9227,Excluded,15-Sep-11,-122.00
http://statistics.data.gov.uk/id/local-authority-district/23UB,Cheltenham Borough Council,456409,496,KNAPP RICHARDSON,C-D12205-3676,Specialist Legal Advice,02-Sep-11,600.00
http://statistics.data.gov.uk/id/local-authority-district/23UB,Cheltenham Borough Council,457375,5500409050,KPMG LLP,C-D21200-3507,Corp Mgt-Audit Commission fees,15-Sep-11,"3,620.00"
http://statistics.data.gov.uk/id/local-authority-district/23UB,Cheltenham Borough Council,457921,REDACTED,REDACTED,C-H22400-3828,Homelessness-Prevention Fund,23-Sep-11,595.00
http://statistics.data.gov.uk/id/local-authority-district/23UB,Cheltenham Borough Council,457538,NLP ECONOMIC S,NATHANIEL  LICHFIELD AND PARTNERS,C-B51145-3501,Joint Core Stra-Hire of outside services,15-Sep-11,"2,000.00"
http://statistics.data.gov.uk/id/local-authority-district/23UB,Cheltenham Borough Council,457967,14/AUG/2011,MR M J LOVERIDGE,C-H46300-1104,Comm.Light.Mtce-Council House repairs,23-Sep-11,589.75
http://statistics.data.gov.uk/id/local-authority-district/23UB,Cheltenham Borough Council,457969,586,MR M J LOVERIDGE,C-H46300-1104,Comm.Light.Mtce-Council House repairs,23-Sep-11,801.76
http://statistics.data.gov.uk/id/local-authority-district/23UB,Cheltenham Borough Council,458158,L591,MR M J LOVERIDGE,C-H46300-1104,Comm.Light.Mtce-Council House repairs,29-Sep-11,614.51
http://statistics.data.gov.uk/id/local-authority-district/23UB,Cheltenham Borough Council,458159,L592,MR M J LOVERIDGE,C-H46300-1104,Comm.Light.Mtce-Council House repairs,29-Sep-11,935.89
http://statistics.data.gov.uk/id/local-authority-district/23UB,Cheltenham Borough Council,458160,12/08/11,MR M J LOVERIDGE,C-H46300-1104,Comm.Light.Mtce-Council House repairs,29-Sep-11,768.31
http://statistics.data.gov.uk/id/local-authority-district/23UB,Cheltenham Borough Council,456475,105661,LRI,C-DC3210-3623,Learn & Dev Sys-Cmpter-sftwre lic purch,02-Sep-11,"6,000.00"
http://statistics.data.gov.uk/id/local-authority-district/23UB,Cheltenham Borough Council,456541,4140048200,MAN TRACK AND BUS UK LIMITED,C-C24100-2302,Fleet Maint-Vehicle licences,02-Sep-11,"1,255.00"
http://statistics.data.gov.uk/id/local-authority-district/23UB,Cheltenham Borough Council,456540,4140048197,MAN TRACK AND BUS UK LIMITED,C-NBS000-BI54,B/S-Leasing,02-Sep-11,"93,875.00"
http://statistics.data.gov.uk/id/local-authority-district/23UB,Cheltenham Borough Council,457774,0021,MARK MASTERS,C-L11500-3522,Rec Facilities-Coaching scheme,23-Sep-11,84.00
http://statistics.data.gov.uk/id/local-authority-district/23UB,Cheltenham Borough Council,457774,0021,MARK MASTERS,C-L11500-3522,Rec Facilities-Coaching scheme,23-Sep-11,189.00
http://statistics.data.gov.uk/id/local-authority-district/23UB,Cheltenham Borough Council,457774,0021,MARK MASTERS,C-L11500-3522,Rec Facilities-Coaching scheme,23-Sep-11,357.00
http://statistics.data.gov.uk/id/local-authority-district/23UB,Cheltenham Borough Council,457774,0021,MARK MASTERS,C-L11500-3522,Rec Facilities-Coaching scheme,23-Sep-11,168.00
http://statistics.data.gov.uk/id/local-authority-district/23UB,Cheltenham Borough Council,457774,0021,MARK MASTERS,C-L11500-3522,Rec Facilities-Coaching scheme,23-Sep-11,125.00
http://statistics.data.gov.uk/id/local-authority-district/23UB,Cheltenham Borough Council,457147,3589,MCDONNELL PRICE  ROOFING CONTRACTORS LTD,C-HC4847-C302,AldridgeCl Roof-Building Contractor,09-Sep-11,"34,952.63"
http://statistics.data.gov.uk/id/local-authority-district/23UB,Cheltenham Borough Council,456668,REDACTED,MEARS HOME IMPROVEMENTS LTD,C-HC4100-C801,Dis.Adapt.HRA-Grants,02-Sep-11,"3,965.63"
http://statistics.data.gov.uk/id/local-authority-district/23UB,Cheltenham Borough Council,456832,REDACTED,MEARS HOME IMPROVEMENTS LTD,C-HC4100-C801,Dis.Adapt.HRA-Grants,09-Sep-11,"5,824.13"
http://statistics.data.gov.uk/id/local-authority-district/23UB,Cheltenham Borough Council,456834,REDACTED,MEARS HOME IMPROVEMENTS LTD,C-HC4100-C801,Dis.Adapt.HRA-Grants,09-Sep-11,"1,399.16"
http://statistics.data.gov.uk/id/local-authority-district/23UB,Cheltenham Borough Council,456833,REDACTED,MEARS HOME IMPROVEMENTS LTD,C-HC7440-C801,DFG.96.Act-Grants,09-Sep-11,"5,551.88"
http://statistics.data.gov.uk/id/local-authority-district/23UB,Cheltenham Borough Council,457203,REDACTED,MEARS HOME IMPROVEMENTS LTD,C-HC7440-C801,DFG.96.Act-Grants,14-Sep-11,"8,280.00"
http://statistics.data.gov.uk/id/local-authority-district/23UB,Cheltenham Borough Council,457505,REDACTED,MEARS HOME IMPROVEMENTS LTD,C-HC7440-C801,DFG.96.Act-Grants,15-Sep-11,440.00
http://statistics.data.gov.uk/id/local-authority-district/23UB,Cheltenham Borough Council,457517,REDACTED,MEARS HOME IMPROVEMENTS LTD,C-HC7440-C801,DFG.96.Act-Grants,15-Sep-11,578.00
http://statistics.data.gov.uk/id/local-authority-district/23UB,Cheltenham Borough Council,457923,REDACTED,MEARS HOME IMPROVEMENTS LTD,C-HC4100-C801,Dis.Adapt.HRA-Grants,23-Sep-11,563.75
http://statistics.data.gov.uk/id/local-authority-district/23UB,Cheltenham Borough Council,458141,REDACTED,MEARS HOME IMPROVEMENTS LTD,C-HC7440-C801,DFG.96.Act-Grants,29-Sep-11,"1,097.70"
http://statistics.data.gov.uk/id/local-authority-district/23UB,Cheltenham Borough Council,458140,REDACTED,MEARS HOME IMPROVEMENTS LTD,C-HC7440-C801,DFG.96.Act-Grants,29-Sep-11,517.75
http://statistics.data.gov.uk/id/local-authority-district/23UB,Cheltenham Borough Council,456390,02919,MG WINDOWS CHELTENHAM LIMITED,C-H44350-1104,Window Repairs-Council House repairs,02-Sep-11,21.35
http://statistics.data.gov.uk/id/local-authority-district/23UB,Cheltenham Borough Council,456444,02925,MG WINDOWS CHELTENHAM LIMITED,C-H44350-1104,Window Repairs-Council House repairs,02-Sep-11,51.37
http://statistics.data.gov.uk/id/local-authority-district/23UB,Cheltenham Borough Council,456446,02917,MG WINDOWS CHELTENHAM LIMITED,C-H44350-1104,Window Repairs-Council House repairs,02-Sep-11,54.54
http://statistics.data.gov.uk/id/local-authority-district/23UB,Cheltenham Borough Council,456445,02921,MG WINDOWS CHELTENHAM LIMITED,C-H44350-1104,Window Repairs-Council House repairs,02-Sep-11,20.00
http://statistics.data.gov.uk/id/local-authority-district/23UB,Cheltenham Borough Council,456443,02926,MG WINDOWS CHELTENHAM LIMITED,C-H44350-1104,Window Repairs-Council House repairs,02-Sep-11,88.00
http://statistics.data.gov.uk/id/local-authority-district/23UB,Cheltenham Borough Council,456391,02918,MG WINDOWS CHELTENHAM LIMITED,C-H44350-1104,Window Repairs-Council House repairs,02-Sep-11,2.50
http://statistics.data.gov.uk/id/local-authority-district/23UB,Cheltenham Borough Council,456392,02924,MG WINDOWS CHELTENHAM LIMITED,C-H44350-1104,Window Repairs-Council House repairs,02-Sep-11,122.80
http://statistics.data.gov.uk/id/local-authority-district/23UB,Cheltenham Borough Council,456442,02923,MG WINDOWS CHELTENHAM LIMITED,C-H44350-1104,Window Repairs-Council House repairs,02-Sep-11,23.15
http://statistics.data.gov.uk/id/local-authority-district/23UB,Cheltenham Borough Council,456393,02922,MG WINDOWS CHELTENHAM LIMITED,C-HC4873-C302,Window/Door Ren-Building Contractor,02-Sep-11,261.00
http://statistics.data.gov.uk/id/local-authority-district/23UB,Cheltenham Borough Council,456964,02934,MG WINDOWS CHELTENHAM LIMITED,C-H44350-1104,Window Repairs-Council House repairs,09-Sep-11,36.20
http://statistics.data.gov.uk/id/local-authority-district/23UB,Cheltenham Borough Council,456967,02939,MG WINDOWS CHELTENHAM LIMITED,C-H44350-1104,Window Repairs-Council House repairs,09-Sep-11,62.37
http://statistics.data.gov.uk/id/local-authority-district/23UB,Cheltenham Borough Council,456969,02938,MG WINDOWS CHELTENHAM LIMITED,C-H44350-1104,Window Repairs-Council House repairs,09-Sep-11,27.60
http://statistics.data.gov.uk/id/local-authority-district/23UB,Cheltenham Borough Council,456978,02931,MG WINDOWS CHELTENHAM LIMITED,C-H44350-1104,Window Repairs-Council House repairs,09-Sep-11,74.93
http://statistics.data.gov.uk/id/local-authority-district/23UB,Cheltenham Borough Council,456977,02937,MG WINDOWS CHELTENHAM LIMITED,C-H44350-1104,Window Repairs-Council House repairs,09-Sep-11,10.00
http://statistics.data.gov.uk/id/local-authority-district/23UB,Cheltenham Borough Council,456976,02928,MG WINDOWS CHELTENHAM LIMITED,C-H44350-1104,Window Repairs-Council House repairs,09-Sep-11,32.60
http://statistics.data.gov.uk/id/local-authority-district/23UB,Cheltenham Borough Council,456975,02929,MG WINDOWS CHELTENHAM LIMITED,C-H44350-1104,Window Repairs-Council House repairs,09-Sep-11,20.00
http://statistics.data.gov.uk/id/local-authority-district/23UB,Cheltenham Borough Council,456974,02932,MG WINDOWS CHELTENHAM LIMITED,C-H44350-1104,Window Repairs-Council House repairs,09-Sep-11,58.15
http://statistics.data.gov.uk/id/local-authority-district/23UB,Cheltenham Borough Council,456973,02940,MG WINDOWS CHELTENHAM LIMITED,C-H44350-1104,Window Repairs-Council House repairs,09-Sep-11,20.00
http://statistics.data.gov.uk/id/local-authority-district/23UB,Cheltenham Borough Council,456972,02935,MG WINDOWS CHELTENHAM LIMITED,C-H44350-1104,Window Repairs-Council House repairs,09-Sep-11,35.53
http://statistics.data.gov.uk/id/local-authority-district/23UB,Cheltenham Borough Council,456971,02936,MG WINDOWS CHELTENHAM LIMITED,C-H44350-1104,Window Repairs-Council House repairs,09-Sep-11,11.72
http://statistics.data.gov.uk/id/local-authority-district/23UB,Cheltenham Borough Council,456970,02943,MG WINDOWS CHELTENHAM LIMITED,C-H44350-1104,Window Repairs-Council House repairs,09-Sep-11,45.48
http://statistics.data.gov.uk/id/local-authority-district/23UB,Cheltenham Borough Council,456995,02977,MG WINDOWS CHELTENHAM LIMITED,C-H44350-1104,Window Repairs-Council House repairs,09-Sep-11,77.60
http://statistics.data.gov.uk/id/local-authority-district/23UB,Cheltenham Borough Council,456994,02976,MG WINDOWS CHELTENHAM LIMITED,C-H44350-1104,Window Repairs-Council House repairs,09-Sep-11,40.15
http://statistics.data.gov.uk/id/local-authority-district/23UB,Cheltenham Borough Council,456993,02974,MG WINDOWS CHELTENHAM LIMITED,C-H44350-1104,Window Repairs-Council House repairs,09-Sep-11,10.00
http://statistics.data.gov.uk/id/local-authority-district/23UB,Cheltenham Borough Council,456992,02972,MG WINDOWS CHELTENHAM LIMITED,C-H44350-1104,Window Repairs-Council House repairs,09-Sep-11,20.00
http://statistics.data.gov.uk/id/local-authority-district/23UB,Cheltenham Borough Council,456991,02975,MG WINDOWS CHELTENHAM LIMITED,C-H44350-1104,Window Repairs-Council House repairs,09-Sep-11,20.00
http://statistics.data.gov.uk/id/local-authority-district/23UB,Cheltenham Borough Council,456990,02973,MG WINDOWS CHELTENHAM LIMITED,C-H44350-1104,Window Repairs-Council House repairs,09-Sep-11,34.21
http://statistics.data.gov.uk/id/local-authority-district/23UB,Cheltenham Borough Council,456989,02980,MG WINDOWS CHELTENHAM LIMITED,C-H44350-1104,Window Repairs-Council House repairs,09-Sep-11,28.00
http://statistics.data.gov.uk/id/local-authority-district/23UB,Cheltenham Borough Council,456988,02985,MG WINDOWS CHELTENHAM LIMITED,C-H44350-1104,Window Repairs-Council House repairs,09-Sep-11,54.29
http://statistics.data.gov.uk/id/local-authority-district/23UB,Cheltenham Borough Council,456987,02982,MG WINDOWS CHELTENHAM LIMITED,C-H44350-1104,Window Repairs-Council House repairs,09-Sep-11,28.92
http://statistics.data.gov.uk/id/local-authority-district/23UB,Cheltenham Borough Council,456986,02986,MG WINDOWS CHELTENHAM LIMITED,C-H44350-1104,Window Repairs-Council House repairs,09-Sep-11,23.45
http://statistics.data.gov.uk/id/local-authority-district/23UB,Cheltenham Borough Council,456985,02989,MG WINDOWS CHELTENHAM LIMITED,C-H44350-1104,Window Repairs-Council House repairs,09-Sep-11,106.32
http://statistics.data.gov.uk/id/local-authority-district/23UB,Cheltenham Borough Council,456984,02987,MG WINDOWS CHELTENHAM LIMITED,C-H44350-1104,Window Repairs-Council House repairs,09-Sep-11,60.09
http://statistics.data.gov.uk/id/local-authority-district/23UB,Cheltenham Borough Council,456983,02990,MG WINDOWS CHELTENHAM LIMITED,C-H44350-1104,Window Repairs-Council House repairs,09-Sep-11,14.00
http://statistics.data.gov.uk/id/local-authority-district/23UB,Cheltenham Borough Council,456982,02993,MG WINDOWS CHELTENHAM LIMITED,C-H44350-1104,Window Repairs-Council House repairs,09-Sep-11,36.78
http://statistics.data.gov.uk/id/local-authority-district/23UB,Cheltenham Borough Council,456981,02994,MG WINDOWS CHELTENHAM LIMITED,C-H44350-1104,Window Repairs-Council House repairs,09-Sep-11,26.61
http://statistics.data.gov.uk/id/local-authority-district/23UB,Cheltenham Borough Council,456980,02983,MG WINDOWS CHELTENHAM LIMITED,C-H44350-1104,Window Repairs-Council House repairs,09-Sep-11,2.50
http://statistics.data.gov.uk/id/local-authority-district/23UB,Cheltenham Borough Council,456979,02933,MG WINDOWS CHELTENHAM LIMITED,C-H44350-1104,Window Repairs-Council House repairs,09-Sep-11,32.56
http://statistics.data.gov.uk/id/local-authority-district/23UB,Cheltenham Borough Council,457067,02952,MG WINDOWS CHELTENHAM LIMITED,C-H44350-1104,Window Repairs-Council House repairs,09-Sep-11,30.00
http://statistics.data.gov.uk/id/local-authority-district/23UB,Cheltenham Borough Council,457065,02950,MG WINDOWS CHELTENHAM LIMITED,C-H44350-1104,Window Repairs-Council House repairs,09-Sep-11,96.72
http://statistics.data.gov.uk/id/local-authority-district/23UB,Cheltenham Borough Council,457064,02948,MG WINDOWS CHELTENHAM LIMITED,C-H44350-1104,Window Repairs-Council House repairs,09-Sep-11,14.00
http://statistics.data.gov.uk/id/local-authority-district/23UB,Cheltenham Borough Council,457063,02953,MG WINDOWS CHELTENHAM LIMITED,C-H44350-1104,Window Repairs-Council House repairs,09-Sep-11,60.49
http://statistics.data.gov.uk/id/local-authority-district/23UB,Cheltenham Borough Council,457061,02949,MG WINDOWS CHELTENHAM LIMITED,C-H44350-1104,Window Repairs-Council House repairs,09-Sep-11,14.00
http://statistics.data.gov.uk/id/local-authority-district/23UB,Cheltenham Borough Council,457060,02946,MG WINDOWS CHELTENHAM LIMITED,C-H44350-1104,Window Repairs-Council House repairs,09-Sep-11,39.83
http://statistics.data.gov.uk/id/local-authority-district/23UB,Cheltenham Borough Council,457057,02978,MG WINDOWS CHELTENHAM LIMITED,C-H44350-1104,Window Repairs-Council House repairs,09-Sep-11,31.24
http://statistics.data.gov.uk/id/local-authority-district/23UB,Cheltenham Borough Council,457059,02947,MG WINDOWS CHELTENHAM LIMITED,C-H44350-1104,Window Repairs-Council House repairs,09-Sep-11,59.74
http://statistics.data.gov.uk/id/local-authority-district/23UB,Cheltenham Borough Council,456996,02961,MG WINDOWS CHELTENHAM LIMITED,C-H44350-1104,Window Repairs-Council House repairs,09-Sep-11,39.50
http://statistics.data.gov.uk/id/local-authority-district/23UB,Cheltenham Borough Council,457086,02962,MG WINDOWS CHELTENHAM LIMITED,C-H44350-1104,Window Repairs-Council House repairs,09-Sep-11,42.81
http://statistics.data.gov.uk/id/local-authority-district/23UB,Cheltenham Borough Council,457084,02965,MG WINDOWS CHELTENHAM LIMITED,C-H44350-1104,Window Repairs-Council House repairs,09-Sep-11,72.22
http://statistics.data.gov.uk/id/local-authority-district/23UB,Cheltenham Borough Council,457083,02964,MG WINDOWS CHELTENHAM LIMITED,C-H44350-1104,Window Repairs-Council House repairs,09-Sep-11,21.90
http://statistics.data.gov.uk/id/local-authority-district/23UB,Cheltenham Borough Council,457081,02954,MG WINDOWS CHELTENHAM LIMITED,C-H44350-1104,Window Repairs-Council House repairs,09-Sep-11,12.25
http://statistics.data.gov.uk/id/local-authority-district/23UB,Cheltenham Borough Council,457080,02968,MG WINDOWS CHELTENHAM LIMITED,C-H44350-1104,Window Repairs-Council House repairs,09-Sep-11,60.02
http://statistics.data.gov.uk/id/local-authority-district/23UB,Cheltenham Borough Council,457079,02967,MG WINDOWS CHELTENHAM LIMITED,C-H44350-1104,Window Repairs-Council House repairs,09-Sep-11,30.50
http://statistics.data.gov.uk/id/local-authority-district/23UB,Cheltenham Borough Council,457077,02969,MG WINDOWS CHELTENHAM LIMITED,C-H44350-1104,Window Repairs-Council House repairs,09-Sep-11,28.00
http://statistics.data.gov.uk/id/local-authority-district/23UB,Cheltenham Borough Council,457076,02957,MG WINDOWS CHELTENHAM LIMITED,C-H44350-1104,Window Repairs-Council House repairs,09-Sep-11,30.58
http://statistics.data.gov.uk/id/local-authority-district/23UB,Cheltenham Borough Council,457075,02958,MG WINDOWS CHELTENHAM LIMITED,C-H44350-1104,Window Repairs-Council House repairs,09-Sep-11,54.42
http://statistics.data.gov.uk/id/local-authority-district/23UB,Cheltenham Borough Council,457073,02966,MG WINDOWS CHELTENHAM LIMITED,C-H44350-1104,Window Repairs-Council House repairs,09-Sep-11,94.32
http://statistics.data.gov.uk/id/local-authority-district/23UB,Cheltenham Borough Council,457072,02970,MG WINDOWS CHELTENHAM LIMITED,C-H44350-1104,Window Repairs-Council House repairs,09-Sep-11,2.50
http://statistics.data.gov.uk/id/local-authority-district/23UB,Cheltenham Borough Council,457071,02959,MG WINDOWS CHELTENHAM LIMITED,C-H44350-1104,Window Repairs-Council House repairs,09-Sep-11,34.87
http://statistics.data.gov.uk/id/local-authority-district/23UB,Cheltenham Borough Council,457070,02955,MG WINDOWS CHELTENHAM LIMITED,C-H44350-1104,Window Repairs-Council House repairs,09-Sep-11,37.55
http://statistics.data.gov.uk/id/local-authority-district/23UB,Cheltenham Borough Council,457068,02956,MG WINDOWS CHELTENHAM LIMITED,C-H44350-1104,Window Repairs-Council House repairs,09-Sep-11,29.20
http://statistics.data.gov.uk/id/local-authority-district/23UB,Cheltenham Borough Council,456968,02942,MG WINDOWS CHELTENHAM LIMITED,C-H44350-1104,Window Repairs-Council House repairs,09-Sep-11,50.42
http://statistics.data.gov.uk/id/local-authority-district/23UB,Cheltenham Borough Council,456966,02930,MG WINDOWS CHELTENHAM LIMITED,C-H44350-1104,Window Repairs-Council House repairs,09-Sep-11,49.21
http://statistics.data.gov.uk/id/local-authority-district/23UB,Cheltenham Borough Council,456965,02941,MG WINDOWS CHELTENHAM LIMITED,C-H44350-1104,Window Repairs-Council House repairs,09-Sep-11,66.80
http://statistics.data.gov.uk/id/local-authority-district/23UB,Cheltenham Borough Council,457265,063000,MG WINDOWS CHELTENHAM LIMITED,C-H44350-1104,Window Repairs-Council House repairs,15-Sep-11,20.00
http://statistics.data.gov.uk/id/local-authority-district/23UB,Cheltenham Borough Council,457266,02997,MG WINDOWS CHELTENHAM LIMITED,C-H44350-1104,Window Repairs-Council House repairs,15-Sep-11,25.80
http://statistics.data.gov.uk/id/local-authority-district/23UB,Cheltenham Borough Council,457267,02998,MG WINDOWS CHELTENHAM LIMITED,C-H44350-1104,Window Repairs-Council House repairs,15-Sep-11,58.60
http://statistics.data.gov.uk/id/local-authority-district/23UB,Cheltenham Borough Council,457269,03002,MG WINDOWS CHELTENHAM LIMITED,C-H44350-1104,Window Repairs-Council House repairs,15-Sep-11,56.29
http://statistics.data.gov.uk/id/local-authority-district/23UB,Cheltenham Borough Council,457271,02996,MG WINDOWS CHELTENHAM LIMITED,C-H44350-1104,Window Repairs-Council House repairs,15-Sep-11,53.66
http://statistics.data.gov.uk/id/local-authority-district/23UB,Cheltenham Borough Council,457281,02908,MG WINDOWS CHELTENHAM LIMITED,C-H44350-1104,Window Repairs-Council House repairs,15-Sep-11,450.00
http://statistics.data.gov.uk/id/local-authority-district/23UB,Cheltenham Borough Council,457279,02945,MG WINDOWS CHELTENHAM LIMITED,C-H44350-1104,Window Repairs-Council House repairs,15-Sep-11,78.00
http://statistics.data.gov.uk/id/local-authority-district/23UB,Cheltenham Borough Council,457278,02963,MG WINDOWS CHELTENHAM LIMITED,C-H44350-1104,Window Repairs-Council House repairs,15-Sep-11,108.99
http://statistics.data.gov.uk/id/local-authority-district/23UB,Cheltenham Borough Council,457277,02971,MG WINDOWS CHELTENHAM LIMITED,C-H44350-1104,Window Repairs-Council House repairs,15-Sep-11,207.36
http://statistics.data.gov.uk/id/local-authority-district/23UB,Cheltenham Borough Council,457276,02979,MG WINDOWS CHELTENHAM LIMITED,C-H44350-1104,Window Repairs-Council House repairs,15-Sep-11,174.70
http://statistics.data.gov.uk/id/local-authority-district/23UB,Cheltenham Borough Council,457275,02960,MG WINDOWS CHELTENHAM LIMITED,C-H44350-1104,Window Repairs-Council House repairs,15-Sep-11,236.63
http://statistics.data.gov.uk/id/local-authority-district/23UB,Cheltenham Borough Council,457274,03003,MG WINDOWS CHELTENHAM LIMITED,C-H44350-1104,Window Repairs-Council House repairs,15-Sep-11,51.48
http://statistics.data.gov.uk/id/local-authority-district/23UB,Cheltenham Borough Council,457273,03006,MG WINDOWS CHELTENHAM LIMITED,C-H44350-1104,Window Repairs-Council House repairs,15-Sep-11,20.00
http://statistics.data.gov.uk/id/local-authority-district/23UB,Cheltenham Borough Council,457272,03004,MG WINDOWS CHELTENHAM LIMITED,C-H44350-1104,Window Repairs-Council House repairs,15-Sep-11,60.98
http://statistics.data.gov.uk/id/local-authority-district/23UB,Cheltenham Borough Council,457270,02999,MG WINDOWS CHELTENHAM LIMITED,C-H44350-1104,Window Repairs-Council House repairs,15-Sep-11,30.00
http://statistics.data.gov.uk/id/local-authority-district/23UB,Cheltenham Borough Council,457268,02988,MG WINDOWS CHELTENHAM LIMITED,C-H44350-1104,Window Repairs-Council House repairs,15-Sep-11,55.37
http://statistics.data.gov.uk/id/local-authority-district/23UB,Cheltenham Borough Council,457280,02944,MG WINDOWS CHELTENHAM LIMITED,C-HC4873-C302,Window/Door Ren-Building Contractor,15-Sep-11,782.00
http://statistics.data.gov.uk/id/local-authority-district/23UB,Cheltenham Borough Council,457868,03023,MG WINDOWS CHELTENHAM LIMITED,C-H44350-1104,Window Repairs-Council House repairs,23-Sep-11,40.03
http://statistics.data.gov.uk/id/local-authority-district/23UB,Cheltenham Borough Council,457869,03024,MG WINDOWS CHELTENHAM LIMITED,C-H44350-1104,Window Repairs-Council House repairs,23-Sep-11,51.40
http://statistics.data.gov.uk/id/local-authority-district/23UB,Cheltenham Borough Council,457870,03028,MG WINDOWS CHELTENHAM LIMITED,C-H44350-1104,Window Repairs-Council House repairs,23-Sep-11,90.94
http://statistics.data.gov.uk/id/local-authority-district/23UB,Cheltenham Borough Council,457871,03026,MG WINDOWS CHELTENHAM LIMITED,C-H44350-1104,Window Repairs-Council House repairs,23-Sep-11,103.81
http://statistics.data.gov.uk/id/local-authority-district/23UB,Cheltenham Borough Council,457873,03020,MG WINDOWS CHELTENHAM LIMITED,C-H44350-1104,Window Repairs-Council House repairs,23-Sep-11,53.00
http://statistics.data.gov.uk/id/local-authority-district/23UB,Cheltenham Borough Council,457875,03021,MG WINDOWS CHELTENHAM LIMITED,C-H44350-1104,Window Repairs-Council House repairs,23-Sep-11,30.00
http://statistics.data.gov.uk/id/local-authority-district/23UB,Cheltenham Borough Council,457643,03013,MG WINDOWS CHELTENHAM LIMITED,C-H44350-1104,Window Repairs-Council House repairs,23-Sep-11,168.75
http://statistics.data.gov.uk/id/local-authority-district/23UB,Cheltenham Borough Council,457642,03017,MG WINDOWS CHELTENHAM LIMITED,C-H44350-1104,Window Repairs-Council House repairs,23-Sep-11,89.27
http://statistics.data.gov.uk/id/local-authority-district/23UB,Cheltenham Borough Council,457641,03014,MG WINDOWS CHELTENHAM LIMITED,C-H44350-1104,Window Repairs-Council House repairs,23-Sep-11,28.60
http://statistics.data.gov.uk/id/local-authority-district/23UB,Cheltenham Borough Council,457640,03012,MG WINDOWS CHELTENHAM LIMITED,C-H44350-1104,Window Repairs-Council House repairs,23-Sep-11,90.97
http://statistics.data.gov.uk/id/local-authority-district/23UB,Cheltenham Borough Council,457638,03005,MG WINDOWS CHELTENHAM LIMITED,C-H44350-1104,Window Repairs-Council House repairs,23-Sep-11,62.25
http://statistics.data.gov.uk/id/local-authority-district/23UB,Cheltenham Borough Council,457637,03018,MG WINDOWS CHELTENHAM LIMITED,C-H44350-1104,Window Repairs-Council House repairs,23-Sep-11,211.50
http://statistics.data.gov.uk/id/local-authority-district/23UB,Cheltenham Borough Council,457636,02992,MG WINDOWS CHELTENHAM LIMITED,C-H44350-1104,Window Repairs-Council House repairs,23-Sep-11,41.55
http://statistics.data.gov.uk/id/local-authority-district/23UB,Cheltenham Borough Council,457635,03019,MG WINDOWS CHELTENHAM LIMITED,C-H44350-1104,Window Repairs-Council House repairs,23-Sep-11,28.80
http://statistics.data.gov.uk/id/local-authority-district/23UB,Cheltenham Borough Council,457634,03009,MG WINDOWS CHELTENHAM LIMITED,C-H44350-1104,Window Repairs-Council House repairs,23-Sep-11,25.20
http://statistics.data.gov.uk/id/local-authority-district/23UB,Cheltenham Borough Council,457633,03008,MG WINDOWS CHELTENHAM LIMITED,C-H44350-1104,Window Repairs-Council House repairs,23-Sep-11,56.16
http://statistics.data.gov.uk/id/local-authority-district/23UB,Cheltenham Borough Council,457632,03007,MG WINDOWS CHELTENHAM LIMITED,C-H44350-1104,Window Repairs-Council House repairs,23-Sep-11,20.00
http://statistics.data.gov.uk/id/local-authority-district/23UB,Cheltenham Borough Council,457631,03010,MG WINDOWS CHELTENHAM LIMITED,C-H44350-1104,Window Repairs-Council House repairs,23-Sep-11,38.60
http://statistics.data.gov.uk/id/local-authority-district/23UB,Cheltenham Borough Council,457630,02981,MG WINDOWS CHELTENHAM LIMITED,C-H44350-1104,Window Repairs-Council House repairs,23-Sep-11,125.58
http://statistics.data.gov.uk/id/local-authority-district/23UB,Cheltenham Borough Council,457882,03031,MG WINDOWS CHELTENHAM LIMITED,C-H44350-1104,Window Repairs-Council House repairs,23-Sep-11,188.47
http://statistics.data.gov.uk/id/local-authority-district/23UB,Cheltenham Borough Council,457881,03022,MG WINDOWS CHELTENHAM LIMITED,C-H44350-1104,Window Repairs-Council House repairs,23-Sep-11,38.60
http://statistics.data.gov.uk/id/local-authority-district/23UB,Cheltenham Borough Council,457880,02951,MG WINDOWS CHELTENHAM LIMITED,C-H44350-1104,Window Repairs-Council House repairs,23-Sep-11,180.25
http://statistics.data.gov.uk/id/local-authority-district/23UB,Cheltenham Borough Council,457879,02096,MG WINDOWS CHELTENHAM LIMITED,C-H44350-1104,Window Repairs-Council House repairs,23-Sep-11,40.53
http://statistics.data.gov.uk/id/local-authority-district/23UB,Cheltenham Borough Council,457878,03030,MG WINDOWS CHELTENHAM LIMITED,C-H44350-1104,Window Repairs-Council House repairs,23-Sep-11,39.80
http://statistics.data.gov.uk/id/local-authority-district/23UB,Cheltenham Borough Council,457877,02927,MG WINDOWS CHELTENHAM LIMITED,C-H44350-1104,Window Repairs-Council House repairs,23-Sep-11,10.00
http://statistics.data.gov.uk/id/local-authority-district/23UB,Cheltenham Borough Council,457876,03029,MG WINDOWS CHELTENHAM LIMITED,C-H44350-1104,Window Repairs-Council House repairs,23-Sep-11,129.24
http://statistics.data.gov.uk/id/local-authority-district/23UB,Cheltenham Borough Council,457874,03027,MG WINDOWS CHELTENHAM LIMITED,C-H44350-1104,Window Repairs-Council House repairs,23-Sep-11,26.00
http://statistics.data.gov.uk/id/local-authority-district/23UB,Cheltenham Borough Council,457639,03001,MG WINDOWS CHELTENHAM LIMITED,C-H44350-1104,Window Repairs-Council House repairs,23-Sep-11,101.98
http://statistics.data.gov.uk/id/local-authority-district/23UB,Cheltenham Borough Council,457629,02984,MG WINDOWS CHELTENHAM LIMITED,C-H44350-1104,Window Repairs-Council House repairs,23-Sep-11,100.10
http://statistics.data.gov.uk/id/local-authority-district/23UB,Cheltenham Borough Council,457872,03025,MG WINDOWS CHELTENHAM LIMITED,C-H44350-1104,Window Repairs-Council House repairs,23-Sep-11,34.75
http://statistics.data.gov.uk/id/local-authority-district/23UB,Cheltenham Borough Council,457883,03015,MG WINDOWS CHELTENHAM LIMITED,C-HC4873-C302,Window/Door Ren-Building Contractor,23-Sep-11,326.00
http://statistics.data.gov.uk/id/local-authority-district/23UB,Cheltenham Borough Council,457493,E1163797,MIDLANDS VEHICLE RENTAL LIMITED,C-C24100-2701,Fleet Maint-Hired transport,15-Sep-11,960.00
http://statistics.data.gov.uk/id/local-authority-district/23UB,Cheltenham Borough Council,457492,H163806,MIDLANDS VEHICLE RENTAL LIMITED,C-C24100-2701,Fleet Maint-Hired transport,15-Sep-11,"1,200.00"
http://statistics.data.gov.uk/id/local-authority-district/23UB,Cheltenham Borough Council,457491,H163803,MIDLANDS VEHICLE RENTAL LIMITED,C-C24100-2701,Fleet Maint-Hired transport,15-Sep-11,"1,125.00"
http://statistics.data.gov.uk/id/local-authority-district/23UB,Cheltenham Borough Council,457470,P535364,MIDLANDS VEHICLE RENTAL LIMITED,C-C24100-3110,Fleet Maint-Materials,15-Sep-11,13.64
http://statistics.data.gov.uk/id/local-authority-district/23UB,Cheltenham Borough Council,457467,C297581,MIDLANDS VEHICLE RENTAL LIMITED,C-C24100-3110,Fleet Maint-Materials,15-Sep-11,42.90
http://statistics.data.gov.uk/id/local-authority-district/23UB,Cheltenham Borough Council,457459,C296821,MIDLANDS VEHICLE RENTAL LIMITED,C-C24100-3110,Fleet Maint-Materials,15-Sep-11,6.90
http://statistics.data.gov.uk/id/local-authority-district/23UB,Cheltenham Borough Council,457464,CC139893,MIDLANDS VEHICLE RENTAL LIMITED,C-C24100-3582,Fleet Maint-DSO Invoices,15-Sep-11,-6.88
http://statistics.data.gov.uk/id/local-authority-district/23UB,Cheltenham Borough Council,457461,C295446,MIDLANDS VEHICLE RENTAL LIMITED,C-C24100-3582,Fleet Maint-DSO Invoices,15-Sep-11,295.04
http://statistics.data.gov.uk/id/local-authority-district/23UB,Cheltenham Borough Council,457457,C296790,MIDLANDS VEHICLE RENTAL LIMITED,C-C24100-3582,Fleet Maint-DSO Invoices,15-Sep-11,7.54
http://statistics.data.gov.uk/id/local-authority-district/23UB,Cheltenham Borough Council,457677,H163425,MIDLANDS VEHICLE RENTAL LIMITED,C-C24100-2701,Fleet Maint-Hired transport,23-Sep-11,"1,275.00"
http://statistics.data.gov.uk/id/local-authority-district/23UB,Cheltenham Borough Council,458173,1000405,MIDLANDS VEHICLE RENTAL LIMITED,C-C22140-2702,Nursery-Additional vehicle hire,29-Sep-11,19.00
